Workbook

Sheet Menu
Z1: 3
Z4: 2
A6: North Texas Extension District - 4
D8: Budgets
D11: Forage Crops
D13: =+CoastalEstablish!A3 -> Coastal Bermudagrass Establishment
D14: =CoastalHay!A3 -> Coastal Bermudagrass Hay
D15: =CoastalPasture!A3 -> Coastal Bermudagrass Pasture
D16: =SorghumHay!A3 -> Sorghum for Hay
B18: Comparative Returns | D18: Field Crops
B20: Links | D20: =Sorghum!A3 -> Sorghum (Nitrogen Fertilizer Only)
D21: =Soybeans!A3 -> Soybeans
D22: =Wheat!A3 -> Soft Wheat
D24: Livestock
D26: =+CowCalfImprove!A3 -> Cow-Calf Improved Pasture
D27: =CowCalfNative!A3 -> Cow-Calf Native Pasture
D28: =+StockersNative!A3 -> Stockers on Native Pasture
D29: =StockerNovFeb!A3 -> November- February Stockers
D30: =StockersNovMay!A3 -> November- May Stockers
D32: Other Budgets
D34: ='Livestock Budget'!A3 -> Livestock Budget
D35: ='Crop Budget'!A3 -> Crop Enterprise
A54: Developed by Blake Bennet, Associate Professor and Extension Economist, Texas A&M AgriLife Extension Service, 972-952-9273.

Sheet Links
B2: Texas Crop and Livestock Budgets
B3: A Program of the Texas A&M AgriLife Extension Service
B4: Agricultural Economics Department, The Texas A&M University System
B6: Developed by Texas A&M AgriLife Extension Service Economists and Other Specialists
B8: Contact Us | G8: Clickable Logos
B10: Resources
B12: Decision Aids (includes Machinery Cost Estimator)
B14: Custom Rate Survey
B16: Basis Data
B18: Master Marketer
B20: Extension Ag Economics
B22: Department of Agricultural Economics
B24: Menu Page
B26: Links last checked 1/25/2024

Sheet CoastalEstablish
A1: Projections for Planning Purposes Only -- Not to be Used without Updating
A2: 2024 Estimated Costs and Returns per Acre
A3: Coastal Bermudagrass Establishment
A4: Enter your name for this budget in the cell above.
A5: Enter Your Values in the cells highlighed in MAROON.
E6: Your Acres | R6: Your
C7: Crop Acres | D7: 100 | L7: Your | Q7: Enterprise | R7: Enterprise
E8: Your | H8: Your | I8: Cash | J8: Your | K8: Landlord | L8: Landlord | N8: Your | P8: Your | Q8: Total | R8: Total
A9: REVENUE | D9: Quantity | E9: Quantity | F9: Units | G9: $/Unit | H9: $/Unit | I9: Total | J9: Total | K9: Share | L9: Share | M9: Landlord | N9: Landlord | O9: Tenant | P9: Tenant | Q9: (100 acres) | R9: ="(" & E7 & " acres)" -> ( acres)
B10: 0 | D10: 0 | G10: 0 | I10: 0 | J10: =E10*H10 -> 0 | K10: 0 | M10: 0 | N10: =J10*L10 -> 0 | O10: 0 | P10: =+J10-N10 -> 0 | Q10: 0 | R10: =+J10*E$7 -> 0
D11: 0 | G11: 0 | I11: 0 | J11: 0 | K11: 0 | M11: 0 | N11: 0 | O11: 0 | P11: 0 | Q11: 0 | R11: 0
D12: 0 | G12: 0 | I12: 0 | J12: 0 | K12: 0 | M12: 0 | N12: 0 | O12: 0 | P12: 0 | Q12: 0 | R12: 0
A13: Total Revenue | I13: 0 | J13: =SUM(J10:J12) -> 0 | M13: 0 | N13: =SUM(N10:N12) -> 0 | O13: 0 | P13: =SUM(P10:P12) -> 0 | Q13: 0 | R13: =SUM(R10:R12) -> 0
Q14: Enterprise | R14: Enterprise
A15: VARIABLE COSTS | D15: Quantity | E15: Quantity | F15: Units | G15: $/Unit | H15: $/Unit | I15: Total | J15: Total | K15: Share | L15: Share | M15: Landlord | N15: Landlord | O15: Tenant | P15: Tenant | Q15: Total | R15: Total
A16: Production Costs
B17: Fertilizer
C18: 18-46-0 | D18: 100 | F18: Pounds | G18: 0.6 | I18: 60 | J18: =E18*H18 -> 0 | K18: 0 | M18: 0 | N18: =J18*L18 -> 0 | O18: 60 | P18: =+J18-N18 -> 0 | Q18: 6000 | R18: =+J18*E$7 -> 0
C19: 34-0-0 | D19: 150 | F19: Pounds | G19: 0.82 | I19: 123 | J19: 0 | K19: 0 | M19: 0 | N19: 0 | O19: 123 | P19: 0 | Q19: 12300 | R19: 0
B20: Herbicide
C21: Pre-Emerge Bermuda | D21: 1 | F21: Acre | G21: 10.25 | I21: 10.25 | J21: 0 | K21: 0 | M21: 0 | N21: 0 | O21: 10.25 | P21: 0 | Q21: 1025 | R21: 0
B22: Seed
C23: Bermuda Sprigs | D23: 20 | F23: Bushels | G23: 2.25 | I23: 45 | J23: 0 | K23: 0 | M23: 0 | N23: 0 | O23: 45 | P23: 0 | Q23: 4500 | R23: 0
B24: Custom
C25: Custom Sprig | D25: 1 | F25: Acre | G25: 115.77 | I25: 115.77 | J25: 0 | K25: 0 | M25: 0 | N25: 0 | O25: 115.77 | P25: 0 | Q25: 11577 | R25: 0
D26: 0 | G26: 0 | I26: 0 | J26: 0 | K26: 0 | M26: 0 | N26: 0 | O26: 0 | P26: 0 | Q26: 0 | R26: 0
D27: 0 | G27: 0 | I27: 0 | J27: 0 | K27: 0 | M27: 0 | N27: 0 | O27: 0 | P27: 0 | Q27: 0 | R27: 0
D28: 0 | G28: 0 | I28: 0 | J28: =E28*H28 -> 0 | K28: 0 | M28: 0 | N28: =J28*L28 -> 0 | O28: 0 | P28: =+J28-N28 -> 0 | Q28: 0 | R28: =+J28*E$7 -> 0
B29: Machinery Labor
C30: Tractors/Self-Propelled | D30: 0.43 | F30: Hour | G30: 12 | I30: 5.16 | J30: =E30*H30 -> 0 | K30: 0 | M30: 0 | N30: =J30*L30 -> 0 | O30: 5.16 | P30: =+J30-N30 -> 0 | Q30: 516 | R30: =+J30*E$7 -> 0
C31: Other Labor | D31: 0 | F31: Hour | G31: 12 | I31: 0 | J31: =E31*H31 -> 0 | K31: 0 | M31: 0 | N31: =J31*L31 -> 0 | O31: 0 | P31: =+J31-N31 -> 0 | Q31: 0 | R31: =+J31*E$7 -> 0
B33: Diesel Fuel
C34: Pickup/General Use Equipment | D34: 1 | F34: Acre | G34: 0 | I34: 0 | J34: =E34*H34 -> 0 | K34: 0 | M34: 0 | N34: =J34*L34 -> 0 | O34: 0 | P34: =+J34-N34 -> 0 | Q34: 0 | R34: =+J34*E$7 -> 0
C35: Tractors/Self-Propelled | D35: 2.22 | F35: Gallon | G35: 3.7 | I35: 8.214 | J35: =E35*H35 -> 0 | K35: 0 | M35: 0 | N35: =J35*L35 -> 0 | O35: 8.214 | P35: =+J35-N35 -> 0 | Q35: 821.4 | R35: =+J35*E$7 -> 0
B37: Gasoline
C38: Pickup/General Use Equipment | D38: 1 | F38: Acre | G38: 0 | I38: 0 | J38: =E38*H38 -> 0 | K38: 0 | M38: 0 | N38: =J38*L38 -> 0 | O38: 0 | P38: =+J38-N38 -> 0 | Q38: 0 | R38: =+J38*E$7 -> 0
C39: Tractors/Self-Propelled | D39: 0 | F39: Gallon | G39: 3.15 | I39: 0 | J39: =E39*H39 -> 0 | K39: 0 | M39: 0 | N39: =J39*L39 -> 0 | O39: 0 | P39: =+J39-N39 -> 0 | Q39: 0 | R39: =+J39*E$7 -> 0
B41: Repairs & Maintenance
C42: Pickup/General Use Equipment | D42: 1 | F42: Acre | G42: 0 | I42: 0 | J42: =E42*H42 -> 0 | K42: 0 | M42: 0 | N42: =J42*L42 -> 0 | O42: 0 | P42: =+J42-N42 -> 0 | Q42: 0 | R42: =+J42*E$7 -> 0
C43: Irrigation Equipment | D43: 1 | F43: Acre | G43: 0 | I43: 0 | J43: 0 | K43: 0 | M43: 0 | N43: 0 | O43: 0 | P43: 0 | Q43: 0 | R43: 0
C44: Tractors/Self-Propelled | D44: 1 | F44: Acre | G44: 3.55586455 | I44: 3.55586455 | J44: 0 | K44: 0 | M44: 0 | N44: 0 | O44: 3.55586455 | P44: 0 | Q44: 355.586455 | R44: 0
C45: Implements | D45: 1 | F45: Acre | G45: 2.833846393 | I45: 2.833846393 | J45: 0 | K45: 0 | M45: 0 | N45: 0 | O45: 2.833846393 | P45: 0 | Q45: 283.3846393 | R45: 0
I46: 0 | J46: 0 | K46: 0 | M46: 0 | N46: 0 | O46: 0 | P46: 0 | Q46: 0 | R46: =+J46*E$7 -> 0
I47: 0 | J47: 0 | K47: 0 | M47: 0 | N47: 0 | O47: 0 | P47: 0 | Q47: 0 | R47: 0
B48: Interest on Credit Line | G48: 0.08 | I48: 14.94789629 | J48: =+SUM(J17:J47)/2*H48 -> 0 | M48: 0 | N48: =+SUM(N17:N47)/2*L48 -> 0 | O48: 14.94789629 | P48: =+SUM(P17:P47)/2*L48 -> 0 | Q48: 1494.789629 | R48: =+J48*E$7 -> 0
A49: Total Variable Costs | I49: 388.7316072 | J49: =SUM(J18:J48) -> 0 | M49: 0 | N49: =SUM(N18:N48) -> 0 | O49: 388.7316072 | P49: =SUM(P18:P48) -> 0 | Q49: 38873.16072 | R49: =SUM(R18:R48) -> 0
A50: Planned Returns Above Variable Costs: | I50: -388.7316072 | J50: =+J13-J49 -> 0 | M50: 0 | N50: =+N13-N49 -> 0 | O50: -388.7316072 | P50: =+P13-P49 -> 0 | Q50: -38873.16072 | R50: =+R13-R49 -> 0
B51: Breakeven Price to Cover Variable Costs | G51: n/a | H51: =IF(E10=0,"n/a",(YVarExp-(YTotExp+YTotRet-J10))/E10) -> n/a
Q52: Enterprise | R52: Enterprise
A53: FIXED COSTS | D53: Quantity | E53: Quantity | F53: Units | G53: $/Unit | H53: $/Unit | J53: Total | K53: Share | L53: Share | M53: Landlord | N53: Landlord | O53: Tenant | P53: Tenant | Q53: Total | R53: Total
B54: Machinery Depreciation
C55: Tractors/Self-Propelled | D55: 1 | F55: Acre | G55: 3.456259754 | I55: 3.456259754 | J55: =E55*H55 -> 0 | K55: 0 | M55: 0 | N55: =J55*L55 -> 0 | O55: 3.456259754 | P55: =+J55-N55 -> 0 | Q55: 345.6259754 | R55: =+J55*E$7 -> 0
C56: Implements | D56: 1 | F56: Acre | G56: 3.134880953 | I56: 3.134880953 | J56: 0 | K56: 0 | M56: 0 | N56: =J56*L56 -> 0 | O56: 3.134880953 | P56: 0 | Q56: 313.4880953 | R56: 0
B57: Equipment Investment
C58: Tractors/Self-Propelled | D58: 26.92537841 | F58: Dollars | G58: 0.08 | I58: 2.154030273 | J58: =E58*H58 -> 0 | K58: 0 | M58: 0 | N58: =J58*L58 -> 0 | O58: 2.154030273 | P58: =+J58-N58 -> 0 | Q58: 215.4030273 | R58: =+J58*E$7 -> 0
C59: Implements | D59: 13.77705185 | F59: Dollars | G59: 0.08 | I59: 1.102164148 | J59: 0 | K59: 0 | M59: 0 | N59: =J59*L59 -> 0 | O59: 1.102164148 | P59: 0 | Q59: 110.2164148 | R59: 0
B60: Salaried Labor | D60: 1 | F60: Acre | G60: 0 | I60: 0 | J60: 0 | K60: 0 | M60: 0 | N60: =J60*L60 -> 0 | O60: 0 | P60: =+J60-N60 -> 0 | Q60: 0 | R60: =+J60*E$7 -> 0
B61: Management Fee, Owner/Operator Labor | D61: 1 | F61: Acre | G61: 0 | I61: 0 | J61: 0 | K61: 0 | M61: 0 | N61: 0 | O61: 0 | P61: 0 | Q61: 0 | R61: 0
B62: Allocated Establishment Cost | D62: 1 | F62: Acre | G62: 0 | I62: 0 | J62: 0 | K62: 0 | M62: 0 | N62: 0 | O62: 0 | P62: 0 | Q62: 0 | R62: 0
B63: Rent-Coastal | D63: 1 | F63: Acre | G63: 12 | I63: 12 | J63: 0 | K63: 0 | M63: 0 | N63: 0 | O63: 12 | P63: 0 | Q63: 1200 | R63: 0
B64: Property Taxes | D64: 1 | F64: Acre | G64: 0 | I64: 0 | J64: =E64*H64 -> 0 | K64: 0 | M64: 0 | N64: 0 | O64: 0 | P64: 0 | Q64: 0 | R64: =+J64*E$7 -> 0
B65: Whole Farm Insurance | D65: 1 | F65: Acre | G65: 0 | I65: 0 | J65: 0 | K65: 0 | M65: 0 | N65: 0 | O65: 0 | P65: 0 | Q65: 0 | R65: 0
D66: 1 | G66: 0 | I66: 0 | J66: 0 | K66: 0 | M66: 0 | N66: 0 | O66: 0 | P66: 0 | Q66: 0 | R66: 0
D67: 1 | G67: 0 | I67: 0 | J67: 0 | K67: 0 | M67: 0 | N67: 0 | O67: 0 | P67: 0 | Q67: 0 | R67: 0
A68: Total Fixed Costs | I68: 21.84733513 | J68: =+SUM(J55:J67) -> 0 | M68: 0 | N68: =+SUM(N55:N67) -> 0 | O68: 21.84733513 | P68: =+SUM(P55:P67) -> 0 | Q68: 2184.733513 | R68: =+SUM(R55:R67) -> 0
A69: Total Specified Costs | I69: 410.5789424 | J69: =+J49+J68 -> 0 | M69: 0 | N69: =+N49+N68 -> 0 | O69: 410.5789424 | P69: =+P49+P68 -> 0 | Q69: 41057.89424 | R69: =+R49+R68 -> 0
A71: Returns Above Specified Costs | I71: -410.5789424 | J71: =+J13-J69 -> 0 | M71: 0 | N71: =+N13-N69 -> 0 | O71: -410.5789424 | P71: =+P13-P69 -> 0 | Q71: -41057.89424 | R71: =+R13-R69 -> 0
A73: Breakeven Price to Cover Total Costs | G73: n/a | H73: =IF(E10=0,"n/a",(YTotExp-(YTotExp+YTotRet-J10))/E10) -> n/a
D75: Example Breakeven Prices
B76: Example | C76: Example | D76: To Cover | G76: To Cover
B77: Yield | C77: Yield | D77: Variable | G77: Total
B78: Percent | D78: Costs | G78: Costs
B79: 0.75 | C79: 0 | D79: 0 | G79: 0
B80: 0.9 | C80: 0 | D80: 0 | G80: 0
B81: 1 | C81: 0 | D81: 0 | G81: 0
B82: 1.1 | C82: 0 | D82: 0 | G82: 0
B83: 1.25 | C83: 0 | D83: 0 | G83: 0
D85: Your Breakeven Prices
B86: Your | C86: Your | E86: To Cover | H86: To Cover
B87: Yield | C87: Yield | E87: Variable | H87: Total
B88: Percent | E88: Costs | H88: Costs
B89: 0.75 | C89: =E10*YPER1 -> 0 | E89: =IF($E$10=0,0,(YVarExp-(YTotExp+YTotRet-J10))/($E$10*YPER1)) -> 0 | H89: =IF($E$10=0,0,(YTotExp-(YTotExp+YTotRet-J10))/($E$10*YPER1)) -> 0
B90: 0.9 | C90: =E10*YPER2 -> 0 | E90: =IF($E$10=0,0,(YVarExp-(YTotExp+YTotRet-J10))/($E$10*YPER2)) -> 0 | H90: =IF($E$10=0,0,(YTotExp-(YTotExp+YTotRet-J10))/($E$10*YPER2)) -> 0
B91: 1 | C91: =+E10 -> 0 | E91: =IF($E$10=0,0,(YVarExp-(YTotExp+YTotRet-J10))/($E$10*YPER3)) -> 0 | H91: =IF($E$10=0,0,(YTotExp-(YTotExp+YTotRet-J10))/($E$10*YPER3)) -> 0
B92: 1.1 | C92: =E10*YPER4 -> 0 | E92: =IF($E$10=0,0,(YVarExp-(YTotExp+YTotRet-J10))/($E$10*YPER4)) -> 0 | H92: =IF($E$10=0,0,(YTotExp-(YTotExp+YTotRet-J10))/($E$10*YPER4)) -> 0
B93: 1.25 | C93: =E10*YPER5 -> 0 | E93: =IF($E$10=0,0,(YVarExp-(YTotExp+YTotRet-J10))/($E$10*YPER5)) -> 0 | H93: =IF($E$10=0,0,(YTotExp-(YTotExp+YTotRet-J10))/($E$10*YPER5)) -> 0
A95: Developed by Blake Bennet, Associate Professor and Extension Economist, Texas A&M AgriLife Extension Service, 972-952-9273.
A97: Information presented is prepared solely as a general guide and not intended to recognize or predict the costs and returns from any one operation. Brand names are mentioned only as examples and imply no endorsement.

Sheet CoastalHay
A1: Projections for Planning Purposes Only -- Not to be Used without Updating
A2: 2024 Estimated Costs and Returns per Acre
A3: Coastal Bermudagrass Hay
A4: Enter your name for this budget in the cell above.
A5: Enter Your Values in the cells highlighed in MAROON.
E6: Your Acres | R6: Your
C7: Crop Acres | D7: 100 | L7: Your | Q7: Enterprise | R7: Enterprise
E8: Your | H8: Your | I8: Cash | J8: Your | K8: Landlord | L8: Landlord | N8: Your | P8: Your | Q8: Total | R8: Total
A9: REVENUE | D9: Quantity | E9: Quantity | F9: Units | G9: $/Unit | H9: $/Unit | I9: Total | J9: Total | K9: Share | L9: Share | M9: Landlord | N9: Landlord | O9: Tenant | P9: Tenant | Q9: (100 acres) | R9: ="(" & E7 & " acres)" -> ( acres)
B10: Bermuda Hay | D10: 150 | F10: Bale | G10: 5 | I10: 750 | J10: =E10*H10 -> 0 | K10: 0 | M10: 0 | N10: =J10*L10 -> 0 | O10: 750 | P10: =+J10-N10 -> 0 | Q10: 75000 | R10: =+J10*E$7 -> 0
D11: 0 | G11: 0 | I11: 0 | J11: 0 | K11: 0 | M11: 0 | N11: 0 | O11: 0 | P11: =+J11-N11 -> 0 | Q11: 0 | R11: 0
D12: 0 | G12: 0 | I12: 0 | J12: 0 | K12: 0 | M12: 0 | N12: 0 | O12: 0 | P12: 0 | Q12: 0 | R12: 0
A13: Total Revenue | I13: 750 | J13: =SUM(J10:J12) -> 0 | M13: 0 | N13: =SUM(N10:N12) -> 0 | O13: 750 | P13: =SUM(P10:P12) -> 0 | Q13: 75000 | R13: =SUM(R10:R12) -> 0
Q14: Enterprise | R14: Enterprise
A15: VARIABLE COSTS | D15: Quantity | E15: Quantity | F15: Units | G15: $/Unit | H15: $/Unit | I15: Total | J15: Total | K15: Share | L15: Share | M15: Landlord | N15: Landlord | O15: Tenant | P15: Tenant | Q15: Total | R15: Total
A16: Production Costs
B17: Custom
C18: Custom Baling | D18: 150 | F18: Bale | G18: 1.74 | I18: 261 | J18: =E18*H18 -> 0 | K18: 0 | M18: 0 | N18: =J18*L18 -> 0 | O18: 261 | P18: =+J18-N18 -> 0 | Q18: 26100 | R18: =+J18*E$7 -> 0
C19: Custom Hay Hauling | D19: 150 | F19: Bale | G19: 1.45 | I19: 217.5 | J19: 0 | K19: 0 | M19: 0 | N19: 0 | O19: 217.5 | P19: 0 | Q19: 21750 | R19: 0
B20: Fertilizer
C21: 18-46-0 | D21: 100 | F21: Pounds | G21: 0.6 | I21: 60 | J21: 0 | K21: 0 | M21: 0 | N21: 0 | O21: 60 | P21: 0 | Q21: 6000 | R21: 0
C22: 34-0-0 | D22: 750 | F22: Pounds | G22: 0.82 | I22: 615 | J22: 0 | K22: 0 | M22: 0 | N22: 0 | O22: 615 | P22: 0 | Q22: 61500 | R22: 0
B23: Herbicide
C24: Pre-Emerge Bermuda | D24: 1 | F24: Acre | G24: 10.25 | I24: 10.25 | J24: 0 | K24: 0 | M24: 0 | N24: 0 | O24: 10.25 | P24: 0 | Q24: 1025 | R24: 0
D25: 0 | G25: 0 | I25: 0 | J25: 0 | K25: 0 | M25: 0 | N25: 0 | O25: 0 | P25: 0 | Q25: 0 | R25: 0
D26: 0 | G26: 0 | I26: 0 | J26: 0 | K26: 0 | M26: 0 | N26: 0 | O26: 0 | P26: 0 | Q26: 0 | R26: 0
D27: 0 | G27: 0 | I27: 0 | J27: =E27*H27 -> 0 | K27: 0 | M27: 0 | N27: =J27*L27 -> 0 | O27: 0 | P27: =+J27-N27 -> 0 | Q27: 0 | R27: =+J27*E$7 -> 0
B28: Machinery Labor
C29: Tractors/Self-Propelled | D29: 0.38 | F29: Hour | G29: 12 | I29: 4.56 | J29: =E29*H29 -> 0 | K29: 0 | M29: 0 | N29: =J29*L29 -> 0 | O29: 4.56 | P29: =+J29-N29 -> 0 | Q29: 456 | R29: =+J29*E$7 -> 0
C30: Other Labor | D30: 0 | F30: Hour | G30: 12 | I30: 0 | J30: =E30*H30 -> 0 | K30: 0 | M30: 0 | N30: =J30*L30 -> 0 | O30: 0 | P30: =+J30-N30 -> 0 | Q30: 0 | R30: =+J30*E$7 -> 0
B32: Diesel Fuel
C33: Pickup/General Use Equipment | D33: 1 | F33: Acre | G33: 0 | I33: 0 | J33: =E33*H33 -> 0 | K33: 0 | M33: 0 | N33: =J33*L33 -> 0 | O33: 0 | P33: =+J33-N33 -> 0 | Q33: 0 | R33: =+J33*E$7 -> 0
C34: Tractors/Self-Propelled | D34: 2.08 | F34: Gallon | G34: 3.7 | I34: 7.696 | J34: =E34*H34 -> 0 | K34: 0 | M34: 0 | N34: =J34*L34 -> 0 | O34: 7.696 | P34: =+J34-N34 -> 0 | Q34: 769.6 | R34: =+J34*E$7 -> 0
B36: Gasoline
C37: Pickup/General Use Equipment | D37: 1 | F37: Acre | G37: 0 | I37: 0 | J37: =E37*H37 -> 0 | K37: 0 | M37: 0 | N37: =J37*L37 -> 0 | O37: 0 | P37: =+J37-N37 -> 0 | Q37: 0 | R37: =+J37*E$7 -> 0
C38: Tractors/Self-Propelled | D38: 0 | F38: Gallon | G38: 3.15 | I38: 0 | J38: =E38*H38 -> 0 | K38: 0 | M38: 0 | N38: =J38*L38 -> 0 | O38: 0 | P38: =+J38-N38 -> 0 | Q38: 0 | R38: =+J38*E$7 -> 0
B40: Repairs & Maintenance
C41: Pickup/General Use Equipment | D41: 1 | F41: Acre | G41: 0 | I41: 0 | J41: =E41*H41 -> 0 | K41: 0 | M41: 0 | N41: =J41*L41 -> 0 | O41: 0 | P41: =+J41-N41 -> 0 | Q41: 0 | R41: =+J41*E$7 -> 0
C42: Irrigation Equipment | D42: 1 | F42: Acre | G42: 0 | I42: 0 | J42: 0 | K42: 0 | M42: 0 | N42: 0 | O42: 0 | P42: 0 | Q42: 0 | R42: 0
C43: Tractors/Self-Propelled | D43: 1 | F43: Acre | G43: 3.354149395 | I43: 3.354149395 | J43: 0 | K43: 0 | M43: 0 | N43: 0 | O43: 3.354149395 | P43: 0 | Q43: 335.4149395 | R43: 0
C44: Implements | D44: 1 | F44: Acre | G44: 0.2302064579 | I44: 0.2302064579 | J44: 0 | K44: 0 | M44: 0 | N44: 0 | O44: 0.2302064579 | P44: 0 | Q44: 23.02064579 | R44: 0
I45: 0 | J45: 0 | K45: 0 | M45: 0 | N45: 0 | O45: 0 | P45: 0 | Q45: 0 | R45: 0
I46: 0 | J46: 0 | K46: 0 | M46: 0 | N46: 0 | O46: 0 | P46: 0 | Q46: 0 | R46: 0
B47: Interest on Credit Line | G47: 0.08 | I47: 29.06886118 | J47: =+SUM(J17:J46)/2*H47 -> 0 | M47: 0 | N47: =+SUM(N17:N46)/2*L47 -> 0 | O47: 29.06886118 | P47: =+SUM(P17:P46)/2*L47 -> 0 | Q47: 2906.886118 | R47: =+J47*E$7 -> 0
A48: Total Variable Costs | I48: 1208.659217 | J48: =SUM(J18:J47) -> 0 | M48: 0 | N48: =SUM(N18:N47) -> 0 | O48: 1208.659217 | P48: =SUM(P18:P47) -> 0 | Q48: 120865.9217 | R48: =SUM(R18:R47) -> 0
A49: Planned Returns Above Variable Costs: | I49: -458.659217 | J49: =+J13-J48 -> 0 | M49: 0 | N49: =+N13-N48 -> 0 | O49: -458.659217 | P49: =+P13-P48 -> 0 | Q49: -45865.9217 | R49: =+R13-R48 -> 0
B50: Breakeven Price to Cover Variable Costs | G50: 8.057728114 | H50: =IF(E10=0,"n/a",(YVarExp-(YTotExp+YTotRet-J10))/E10) -> n/a | I50: Bale
Q51: Enterprise | R51: Enterprise
A52: FIXED COSTS | D52: Quantity | E52: Quantity | F52: Units | G52: $/Unit | H52: $/Unit | I52: Total | J52: Total | K52: Share | L52: Share | M52: Landlord | N52: Landlord | O52: Tenant | P52: Tenant | Q52: Total | R52: Total
B53: Machinery Depreciation
C54: Tractors/Self-Propelled | D54: 1 | F54: Acre | G54: 3.435545207 | I54: 3.435545207 | J54: =E54*H54 -> 0 | K54: 0 | M54: 0 | N54: =J54*L54 -> 0 | O54: 3.435545207 | P54: =+J54-N54 -> 0 | Q54: 343.5545207 | R54: =+J54*E$7 -> 0
C55: Implements | D55: 1 | F55: Acre | G55: 0.1921565219 | I55: 0.1921565219 | J55: 0 | K55: 0 | M55: 0 | N55: =J55*L55 -> 0 | O55: 0.1921565219 | P55: 0 | Q55: 19.21565219 | R55: 0
B56: Equipment Investment
C57: Tractors/Self-Propelled | D57: 26.7640054 | F57: Dollars | G57: 0.08 | I57: 2.141120432 | J57: =E57*H57 -> 0 | K57: 0 | M57: 0 | N57: =J57*L57 -> 0 | O57: 2.141120432 | P57: =+J57-N57 -> 0 | Q57: 214.1120432 | R57: =+J57*E$7 -> 0
C58: Implements | D58: 1.372094566 | F58: Dollars | G58: 0.08 | I58: 0.1097675653 | J58: 0 | K58: 0 | M58: 0 | N58: =J58*L58 -> 0 | O58: 0.1097675653 | P58: 0 | Q58: 10.97675653 | R58: 0
B59: Salaried Labor | D59: 1 | F59: Acre | G59: 0 | I59: 0 | J59: 0 | K59: 0 | M59: 0 | N59: =J59*L59 -> 0 | O59: 0 | P59: =+J59-N59 -> 0 | Q59: 0 | R59: =+J59*E$7 -> 0
B60: Management Fee, Owner/Operator Labor | D60: 1 | F60: Acre | G60: 0 | I60: 0 | J60: 0 | K60: 0 | M60: 0 | N60: 0 | O60: 0 | P60: 0 | Q60: 0 | R60: 0
B61: Allocated Establishment Cost | D61: 1 | F61: Acre | G61: 0 | I61: 0 | J61: 0 | K61: 0 | M61: 0 | N61: 0 | O61: 0 | P61: 0 | Q61: 0 | R61: 0
B62: Rent-Coastal | D62: 1 | F62: Acre | G62: 12 | I62: 12 | J62: 0 | K62: 0 | M62: 0 | N62: 0 | O62: 12 | P62: 0 | Q62: 1200 | R62: 0
B63: Property Taxes | D63: 1 | F63: Acre | G63: 0 | I63: 0 | J63: 0 | K63: 0 | M63: 0 | N63: 0 | O63: 0 | P63: 0 | Q63: 0 | R63: 0
B64: Whole Farm Insurance | D64: 1 | F64: Acre | G64: 0 | I64: 0 | J64: 0 | K64: 0 | M64: 0 | N64: 0 | O64: 0 | P64: 0 | Q64: 0 | R64: 0
D65: 1 | G65: 0 | I65: 0 | J65: 0 | K65: 0 | M65: 0 | N65: 0 | O65: 0 | P65: 0 | Q65: 0 | R65: 0
D66: 1 | G66: 0 | I66: 0 | J66: =E66*H66 -> 0 | K66: 0 | M66: 0 | N66: 0 | O66: 0 | P66: 0 | Q66: 0 | R66: 0
A67: Total Fixed Costs | I67: 17.87858973 | J67: =+SUM(J54:J66) -> 0 | M67: 0 | N67: =+SUM(N54:N66) -> 0 | O67: 17.87858973 | P67: =+SUM(P54:P66) -> 0 | Q67: 1787.858973 | R67: =+SUM(R54:R66) -> 0
A68: Total Specified Costs | I68: 1226.537807 | J68: =+J48+J67 -> 0 | M68: 0 | N68: =+N48+N67 -> 0 | O68: 1226.537807 | P68: =+P48+P67 -> 0 | Q68: 122653.7807 | R68: =+R48+R67 -> 0
A70: Returns Above Specified Costs | I70: -476.5378068 | J70: =+J13-J68 -> 0 | M70: 0 | N70: =+N13-N68 -> 0 | O70: -476.5378068 | P70: =+P13-P68 -> 0 | Q70: -47653.78068 | R70: =+R13-R68 -> 0
A72: Breakeven Price to Cover Total Costs | G72: 8.176918712 | H72: =IF(E10=0,"n/a",(YTotExp-(YTotExp+YTotRet-J10))/E10) -> n/a | I72: Bale
D74: Example Breakeven Prices
B75: Example | C75: Example | D75: To Cover | G75: To Cover
B76: Yield | C76: Yield | D76: Variable | G76: Total
B77: Percent | C77: Bale | D77: Costs | G77: Costs
B78: 0.75 | C78: 112.5 | D78: 10.74363748 | G78: 10.90255828
B79: 0.9 | C79: 135 | D79: 8.953031237 | G79: 9.085465235
B80: 1 | C80: 150 | D80: 8.057728114 | G80: 8.176918712
B81: 1.1 | C81: 165 | D81: 7.325207376 | G81: 7.433562465
B82: 1.25 | C82: 187.5 | D82: 6.446182491 | G82: 6.541534969
D84: Your Breakeven Prices
B85: Your | C85: Your | E85: To Cover | H85: To Cover
B86: Yield | C86: Yield | E86: Variable | H86: Total
B87: Percent | C87: Bale | E87: Costs | H87: Costs
B88: 0.75 | C88: =E10*YPER1 -> 0 | E88: =IF($E$10=0,0,(YVarExp-(YTotExp+YTotRet-J10))/($E$10*YPER1)) -> 0 | H88: =IF($E$10=0,0,(YTotExp-(YTotExp+YTotRet-J10))/($E$10*YPER1)) -> 0
B89: 0.9 | C89: =E10*YPER2 -> 0 | E89: =IF($E$10=0,0,(YVarExp-(YTotExp+YTotRet-J10))/($E$10*YPER2)) -> 0 | H89: =IF($E$10=0,0,(YTotExp-(YTotExp+YTotRet-J10))/($E$10*YPER2)) -> 0
B90: 1 | C90: =+E10 -> 0 | E90: =IF($E$10=0,0,(YVarExp-(YTotExp+YTotRet-J10))/($E$10*YPER3)) -> 0 | H90: =IF($E$10=0,0,(YTotExp-(YTotExp+YTotRet-J10))/($E$10*YPER3)) -> 0
B91: 1.1 | C91: =E10*YPER4 -> 0 | E91: =IF($E$10=0,0,(YVarExp-(YTotExp+YTotRet-J10))/($E$10*YPER4)) -> 0 | H91: =IF($E$10=0,0,(YTotExp-(YTotExp+YTotRet-J10))/($E$10*YPER4)) -> 0
B92: 1.25 | C92: =E10*YPER5 -> 0 | E92: =IF($E$10=0,0,(YVarExp-(YTotExp+YTotRet-J10))/($E$10*YPER5)) -> 0 | H92: =IF($E$10=0,0,(YTotExp-(YTotExp+YTotRet-J10))/($E$10*YPER5)) -> 0
A94: Developed by Blake Bennet, Associate Professor and Extension Economist, Texas A&M AgriLife Extension Service, 972-952-9273.
A96: Information presented is prepared solely as a general guide and not intended to recognize or predict the costs and returns from any one operation. Brand names are mentioned only as examples and imply no endorsement.

Sheet CoastalPasture
A1: Projections for Planning Purposes Only -- Not to be Used without Updating
A2: 2024 Estimated Costs and Returns per Acre
A3: Coastal Bermudagrass Pasture
A4: Enter your name for this budget in the cell above.
A5: Enter Your Values in the cells highlighed in MAROON.
E6: Your Acres | R6: Your
C7: Crop Acres | D7: 100 | L7: Your | Q7: Enterprise | R7: Enterprise
E8: Your | H8: Your | I8: Cash | J8: Your | K8: Landlord | L8: Landlord | N8: Your | P8: Your | Q8: Total | R8: Total
A9: REVENUE | D9: Quantity | E9: Quantity | F9: Units | G9: $/Unit | H9: $/Unit | I9: Total | J9: Total | K9: Share | L9: Share | M9: Landlord | N9: Landlord | O9: Tenant | P9: Tenant | Q9: (100 acres) | R9: ="(" & E7 & " acres)" -> ( acres)
B10: Bermuda Grazing | D10: 5.36 | F10: AUM | G10: 25 | I10: 134 | J10: =E10*H10 -> 0 | K10: 0 | M10: 0 | N10: =J10*L10 -> 0 | O10: 134 | P10: =+J10-N10 -> 0 | Q10: 13400 | R10: =+J10*E$7 -> 0
D11: 0 | G11: 0 | I11: 0 | J11: 0 | K11: 0 | M11: 0 | N11: 0 | O11: 0 | P11: =+J11-N11 -> 0 | Q11: 0 | R11: 0
D12: 0 | G12: 0 | I12: 0 | J12: 0 | K12: 0 | M12: 0 | N12: 0 | O12: 0 | P12: 0 | Q12: 0 | R12: 0
A13: Total Revenue | I13: 134 | J13: =SUM(J10:J12) -> 0 | M13: 0 | N13: =SUM(N10:N12) -> 0 | O13: 134 | P13: =SUM(P10:P12) -> 0 | Q13: 13400 | R13: =SUM(R10:R12) -> 0
Q14: Enterprise | R14: Enterprise
A15: VARIABLE COSTS | D15: Quantity | E15: Quantity | F15: Units | G15: $/Unit | H15: $/Unit | I15: Total | J15: Total | K15: Share | L15: Share | M15: Landlord | N15: Landlord | O15: Tenant | P15: Tenant | Q15: Total | R15: Total
A16: Production Costs
B17: Fertilizer
C18: 18-46-0 | D18: 100 | F18: Pounds | G18: 0.6 | I18: 60 | J18: =E18*H18 -> 0 | K18: 0 | M18: 0 | N18: =J18*L18 -> 0 | O18: 60 | P18: =+J18-N18 -> 0 | Q18: 6000 | R18: =+J18*E$7 -> 0
C19: 34-0-0 | D19: 200 | F19: Pounds | G19: 0.82 | I19: 164 | J19: 0 | K19: 0 | M19: 0 | N19: 0 | O19: 164 | P19: 0 | Q19: 16400 | R19: 0
B20: Herbicide
C21: Pre-Emerge Bermuda Graze | D21: 1 | F21: Acre | G21: 10.25 | I21: 10.25 | J21: 0 | K21: 0 | M21: 0 | N21: 0 | O21: 10.25 | P21: 0 | Q21: 1025 | R21: 0
D22: 0 | G22: 0 | I22: 0 | J22: 0 | K22: 0 | M22: 0 | N22: 0 | O22: 0 | P22: 0 | Q22: 0 | R22: 0
D23: 0 | G23: 0 | I23: 0 | J23: 0 | K23: 0 | M23: 0 | N23: 0 | O23: 0 | P23: 0 | Q23: 0 | R23: 0
D24: 0 | G24: 0 | I24: 0 | J24: =E24*H24 -> 0 | K24: 0 | M24: 0 | N24: =J24*L24 -> 0 | O24: 0 | P24: =+J24-N24 -> 0 | Q24: 0 | R24: =+J24*E$7 -> 0
B25: Machinery Labor
C26: Tractors/Self-Propelled | D26: 0.13 | F26: Hour | G26: 12 | I26: 1.56 | J26: =E26*H26 -> 0 | K26: 0 | M26: 0 | N26: =J26*L26 -> 0 | O26: 1.56 | P26: =+J26-N26 -> 0 | Q26: 156 | R26: =+J26*E$7 -> 0
C27: Other Labor | D27: 0 | F27: Hour | G27: 12 | I27: 0 | J27: =E27*H27 -> 0 | K27: 0 | M27: 0 | N27: =J27*L27 -> 0 | O27: 0 | P27: =+J27-N27 -> 0 | Q27: 0 | R27: =+J27*E$7 -> 0
B29: Diesel Fuel
C30: Pickup/General Use Equipment | D30: 1 | F30: Acre | G30: 0 | I30: 0 | J30: =E30*H30 -> 0 | K30: 0 | M30: 0 | N30: =J30*L30 -> 0 | O30: 0 | P30: =+J30-N30 -> 0 | Q30: 0 | R30: =+J30*E$7 -> 0
C31: Tractors/Self-Propelled | D31: 0.73 | F31: Gallon | G31: 3.7 | I31: 2.701 | J31: =E31*H31 -> 0 | K31: 0 | M31: 0 | N31: =J31*L31 -> 0 | O31: 2.701 | P31: =+J31-N31 -> 0 | Q31: 270.1 | R31: =+J31*E$7 -> 0
B33: Gasoline
C34: Pickup/General Use Equipment | D34: 1 | F34: Acre | G34: 0 | I34: 0 | J34: =E34*H34 -> 0 | K34: 0 | M34: 0 | N34: =J34*L34 -> 0 | O34: 0 | P34: =+J34-N34 -> 0 | Q34: 0 | R34: =+J34*E$7 -> 0
C35: Tractors/Self-Propelled | D35: 0 | F35: Gallon | G35: 3.15 | I35: 0 | J35: =E35*H35 -> 0 | K35: 0 | M35: 0 | N35: =J35*L35 -> 0 | O35: 0 | P35: =+J35-N35 -> 0 | Q35: 0 | R35: =+J35*E$7 -> 0
B37: Repairs & Maintenance
C38: Pickup/General Use Equipment | D38: 1 | F38: Acre | G38: 0 | I38: 0 | J38: =E38*H38 -> 0 | K38: 0 | M38: 0 | N38: =J38*L38 -> 0 | O38: 0 | P38: =+J38-N38 -> 0 | Q38: 0 | R38: =+J38*E$7 -> 0
C39: Irrigation Equipment | D39: 1 | F39: Acre | G39: 0 | I39: 0 | J39: 0 | K39: 0 | M39: 0 | N39: 0 | O39: 0 | P39: 0 | Q39: 0 | R39: 0
C40: Tractors/Self-Propelled | D40: 1 | F40: Acre | G40: 1.19089953 | I40: 1.19089953 | J40: 0 | K40: 0 | M40: 0 | N40: 0 | O40: 1.19089953 | P40: 0 | Q40: 119.089953 | R40: 0
C41: Implements | D41: 1 | F41: Acre | G41: 0.2663106346 | I41: 0.2663106346 | J41: 0 | K41: 0 | M41: 0 | N41: 0 | O41: 0.2663106346 | P41: 0 | Q41: 26.63106346 | R41: 0
I42: 0 | J42: 0 | K42: 0 | M42: 0 | N42: 0 | O42: 0 | P42: 0 | Q42: 0 | R42: 0
I43: 0 | J43: 0 | K43: 0 | M43: 0 | N43: 0 | O43: 0 | P43: 0 | Q43: 0 | R43: 0
B44: Interest on Credit Line | G44: 0.08 | I44: 4.760638276 | J44: =+SUM(J17:J43)/2*H44 -> 0 | M44: 0 | N44: =+SUM(N17:N43)/2*L44 -> 0 | O44: 4.760638276 | P44: =+SUM(P17:P43)/2*L44 -> 0 | Q44: 476.0638276 | R44: =+J44*E$7 -> 0
A45: Total Variable Costs | I45: 244.7288484 | J45: =SUM(J18:J44) -> 0 | M45: 0 | N45: =SUM(N18:N44) -> 0 | O45: 244.7288484 | P45: =SUM(P18:P44) -> 0 | Q45: 24472.88484 | R45: =SUM(R18:R44) -> 0
A46: Planned Returns Above Variable Costs: | I46: -110.7288484 | J46: =+J13-J45 -> 0 | M46: 0 | N46: =+N13-N45 -> 0 | O46: -110.7288484 | P46: =+P13-P45 -> 0 | Q46: -11072.88484 | R46: =+R13-R45 -> 0
B47: Breakeven Price to Cover Variable Costs | G47: 45.65836725 | H47: =IF(E10=0,"n/a",(YVarExp-(YTotExp+YTotRet-J10))/E10) -> n/a | I47: AUM
Q48: Enterprise | R48: Enterprise
A49: FIXED COSTS | D49: Quantity | E49: Quantity | F49: Units | G49: $/Unit | H49: $/Unit | I49: Total | J49: Total | K49: Share | L49: Share | M49: Landlord | N49: Landlord | O49: Tenant | P49: Tenant | Q49: Total | R49: Total
B50: Machinery Depreciation
C51: Tractors/Self-Propelled | D51: 1 | F51: Acre | G51: 1.20540418 | I51: 1.20540418 | J51: =E51*H51 -> 0 | K51: 0 | M51: 0 | N51: =J51*L51 -> 0 | O51: 1.20540418 | P51: =+J51-N51 -> 0 | Q51: 120.540418 | R51: =+J51*E$7 -> 0
C52: Implements | D52: 1 | F52: Acre | G52: 0.2194697625 | I52: 0.2194697625 | J52: 0 | K52: 0 | M52: 0 | N52: =J52*L52 -> 0 | O52: 0.2194697625 | P52: 0 | Q52: 21.94697625 | R52: 0
B53: Equipment Investment
C54: Tractors/Self-Propelled | D54: 9.390487404 | F54: Dollars | G54: 0.08 | I54: 0.7512389923 | J54: =E54*H54 -> 0 | K54: 0 | M54: 0 | N54: =J54*L54 -> 0 | O54: 0.7512389923 | P54: =+J54-N54 -> 0 | Q54: 75.12389923 | R54: =+J54*E$7 -> 0
C55: Implements | D55: 2.304432506 | F55: Dollars | G55: 0.08 | I55: 0.1843546005 | J55: 0 | K55: 0 | M55: 0 | N55: =J55*L55 -> 0 | O55: 0.1843546005 | P55: 0 | Q55: 18.43546005 | R55: 0
B56: Salaried Labor | D56: 1 | F56: Acre | G56: 0 | I56: 0 | J56: 0 | K56: 0 | M56: 0 | N56: =J56*L56 -> 0 | O56: 0 | P56: =+J56-N56 -> 0 | Q56: 0 | R56: =+J56*E$7 -> 0
B57: Management Fee, Owner/Operator Labor | D57: 1 | F57: Acre | G57: 0 | I57: 0 | J57: 0 | K57: 0 | M57: 0 | N57: 0 | O57: 0 | P57: 0 | Q57: 0 | R57: 0
B58: Allocated Establishment Cost | D58: 1 | F58: Acre | G58: 0 | I58: 0 | J58: 0 | K58: 0 | M58: 0 | N58: 0 | O58: 0 | P58: 0 | Q58: 0 | R58: 0
B59: Rent-Coastal | D59: 1 | F59: Acre | G59: 12 | I59: 12 | J59: 0 | K59: 0 | M59: 0 | N59: 0 | O59: 12 | P59: 0 | Q59: 1200 | R59: 0
B60: Property Taxes | D60: 1 | F60: Acre | G60: 0 | I60: 0 | J60: 0 | K60: 0 | M60: 0 | N60: 0 | O60: 0 | P60: 0 | Q60: 0 | R60: 0
B61: Whole Farm Insurance | D61: 1 | F61: Acre | G61: 0 | I61: 0 | J61: 0 | K61: 0 | M61: 0 | N61: 0 | O61: 0 | P61: 0 | Q61: 0 | R61: 0
D62: 1 | G62: 0 | I62: 0 | J62: 0 | K62: 0 | M62: 0 | N62: 0 | O62: 0 | P62: 0 | Q62: 0 | R62: 0
D63: 1 | G63: 0 | I63: 0 | J63: =E63*H63 -> 0 | K63: 0 | M63: 0 | N63: 0 | O63: 0 | P63: 0 | Q63: 0 | R63: 0
A64: Total Fixed Costs | I64: 14.36046754 | J64: =+SUM(J51:J63) -> 0 | M64: 0 | N64: =+SUM(N51:N63) -> 0 | O64: 14.36046754 | P64: =+SUM(P51:P63) -> 0 | Q64: 1436.046754 | R64: =+SUM(R51:R63) -> 0
A65: Total Specified Costs | I65: 259.089316 | J65: =+J45+J64 -> 0 | M65: 0 | N65: =+N45+N64 -> 0 | O65: 259.089316 | P65: =+P45+P64 -> 0 | Q65: 25908.9316 | R65: =+R45+R64 -> 0
A67: Returns Above Specified Costs | I67: -125.089316 | J67: =+J13-J65 -> 0 | M67: 0 | N67: =+N13-N65 -> 0 | O67: -125.089316 | P67: =+P13-P65 -> 0 | Q67: -12508.9316 | R67: =+R13-R65 -> 0
A69: Breakeven Price to Cover Total Costs | G69: 48.33755895 | H69: =IF(E10=0,"n/a",(YTotExp-(YTotExp+YTotRet-J10))/E10) -> n/a | I69: AUM
D71: Example Breakeven Prices
B72: Example | C72: Example | D72: To Cover | G72: To Cover
B73: Yield | C73: Yield | D73: Variable | G73: Total
B74: Percent | C74: AUM | D74: Costs | G74: Costs
B75: 0.75 | C75: 4.02 | D75: 60.87782299 | G75: 64.4500786
B76: 0.9 | C76: 4.824 | D76: 50.73151916 | G76: 53.70839883
B77: 1 | C77: 5.36 | D77: 45.65836725 | G77: 48.33755895
B78: 1.1 | C78: 5.896 | D78: 41.50760659 | G78: 43.94323541
B79: 1.25 | C79: 6.7 | D79: 36.5266938 | G79: 38.67004716
D81: Your Breakeven Prices
B82: Your | C82: Your | E82: To Cover | H82: To Cover
B83: Yield | C83: Yield | E83: Variable | H83: Total
B84: Percent | C84: AUM | E84: Costs | H84: Costs
B85: 0.75 | C85: =E10*YPER1 -> 0 | E85: =IF($E$10=0,0,(YVarExp-(YTotExp+YTotRet-J10))/($E$10*YPER1)) -> 0 | H85: =IF($E$10=0,0,(YTotExp-(YTotExp+YTotRet-J10))/($E$10*YPER1)) -> 0
B86: 0.9 | C86: =E10*YPER2 -> 0 | E86: =IF($E$10=0,0,(YVarExp-(YTotExp+YTotRet-J10))/($E$10*YPER2)) -> 0 | H86: =IF($E$10=0,0,(YTotExp-(YTotExp+YTotRet-J10))/($E$10*YPER2)) -> 0
B87: 1 | C87: =+E10 -> 0 | E87: =IF($E$10=0,0,(YVarExp-(YTotExp+YTotRet-J10))/($E$10*YPER3)) -> 0 | H87: =IF($E$10=0,0,(YTotExp-(YTotExp+YTotRet-J10))/($E$10*YPER3)) -> 0
B88: 1.1 | C88: =E10*YPER4 -> 0 | E88: =IF($E$10=0,0,(YVarExp-(YTotExp+YTotRet-J10))/($E$10*YPER4)) -> 0 | H88: =IF($E$10=0,0,(YTotExp-(YTotExp+YTotRet-J10))/($E$10*YPER4)) -> 0
B89: 1.25 | C89: =E10*YPER5 -> 0 | E89: =IF($E$10=0,0,(YVarExp-(YTotExp+YTotRet-J10))/($E$10*YPER5)) -> 0 | H89: =IF($E$10=0,0,(YTotExp-(YTotExp+YTotRet-J10))/($E$10*YPER5)) -> 0
A91: Developed by Blake Bennet, Associate Professor and Extension Economist, Texas A&M AgriLife Extension Service, 972-952-9273.
A93: Information presented is prepared solely as a general guide and not intended to recognize or predict the costs and returns from any one operation. Brand names are mentioned only as examples and imply no endorsement.

Sheet Sorghum
A1: Projections for Planning Purposes Only -- Not to be Used without Updating
A2: 2024 Estimated Costs and Returns per Acre
A3: Sorghum (Nitrogen Fertilizer Only)
A4: Enter your name for this budget in the cell above.
A5: Enter Your Values in the cells highlighed in MAROON.
E6: Your Acres | R6: Your
C7: Crop Acres | D7: 500 | L7: Your | Q7: Enterprise | R7: Enterprise
E8: Your | H8: Your | I8: Cash | J8: Your | K8: Landlord | L8: Landlord | N8: Your | P8: Your | Q8: Total | R8: Total
A9: REVENUE | D9: Quantity | E9: Quantity | F9: Units | G9: $/Unit | H9: $/Unit | I9: Total | J9: Total | K9: Share | L9: Share | M9: Landlord | N9: Landlord | O9: Tenant | P9: Tenant | Q9: (500 acres) | R9: ="(" & E7 & " acres)" -> ( acres)
B10: Sorghum | D10: 33 | F10: CWT | G10: 10.2 | I10: 336.6 | J10: =E10*H10 -> 0 | K10: 0 | M10: 0 | N10: =J10*L10 -> 0 | O10: 336.6 | P10: =+J10-N10 -> 0 | Q10: 168300 | R10: =+J10*E$7 -> 0
D11: 0 | G11: 0 | I11: 0 | J11: 0 | K11: 0 | M11: 0 | N11: 0 | O11: 0 | P11: =+J11-N11 -> 0 | Q11: 0 | R11: 0
D12: 0 | G12: 0 | I12: 0 | J12: 0 | K12: 0 | M12: 0 | N12: 0 | O12: 0 | P12: 0 | Q12: 0 | R12: 0
A13: Total Revenue | I13: 336.6 | J13: =SUM(J10:J12) -> 0 | M13: 0 | N13: =SUM(N10:N12) -> 0 | O13: 336.6 | P13: =SUM(P10:P12) -> 0 | Q13: 168300 | R13: =SUM(R10:R12) -> 0
Q14: Enterprise | R14: Enterprise
A15: VARIABLE COSTS | D15: Quantity | E15: Quantity | F15: Units | G15: $/Unit | H15: $/Unit | I15: Total | J15: Total | K15: Share | L15: Share | M15: Landlord | N15: Landlord | O15: Tenant | P15: Tenant | Q15: Total | R15: Total
A16: Production Costs
B17: Custom
C18: Custom Harvest Sorghum | D18: 1 | F18: Acre | G18: 20.84 | I18: 20.84 | J18: =E18*H18 -> 0 | K18: 0 | M18: 0 | N18: =J18*L18 -> 0 | O18: 20.84 | P18: =+J18-N18 -> 0 | Q18: 10420 | R18: =+J18*E$7 -> 0
C19: Custom Haul Sorghum | D19: 33 | F19: CWT | G19: 0.61 | I19: 20.13 | J19: 0 | K19: 0 | M19: 0 | N19: 0 | O19: 20.13 | P19: 0 | Q19: 10065 | R19: 0
B20: Fertilizer
C21: 10-34-0 | D21: 100 | F21: Pounds | G21: 0.4 | I21: 40 | J21: 0 | K21: 0 | M21: 0 | N21: 0 | O21: 40 | P21: 0 | Q21: 20000 | R21: 0
C22: 82-0-0 | D22: 100 | F22: Pounds | G22: 0.52 | I22: 52 | J22: 0 | K22: 0 | M22: 0 | N22: 0 | O22: 52 | P22: 0 | Q22: 26000 | R22: 0
B23: Herbicide
C24: Pre-emerge Sorghum | D24: 2 | F24: Acre | G24: 19.13 | I24: 38.26 | J24: 0 | K24: 0 | M24: 0 | N24: 0 | O24: 38.26 | P24: 0 | Q24: 19130 | R24: 0
B25: Insecticide
C26: Insecticide-Sorghum | D26: 1 | F26: Acre | G26: 20.5 | I26: 20.5 | J26: 0 | K26: 0 | M26: 0 | N26: 0 | O26: 20.5 | P26: 0 | Q26: 10250 | R26: 0
B27: Seed
C28: Sorghum Seed | D28: 7 | F28: Pounds | G28: 2.6 | I28: 18.2 | J28: 0 | K28: 0 | M28: 0 | N28: 0 | O28: 18.2 | P28: 0 | Q28: 9100 | R28: 0
B29: Miscellaneous
C30: Insurance-Sorghum | D30: 1 | F30: Acre | G30: 14 | I30: 14 | J30: 0 | K30: 0 | M30: 0 | N30: 0 | O30: 14 | P30: 0 | Q30: 7000 | R30: 0
D31: 0 | G31: 0 | I31: 0 | J31: 0 | K31: 0 | M31: 0 | N31: 0 | O31: 0 | P31: 0 | Q31: 0 | R31: 0
D32: 0 | G32: 0 | I32: 0 | J32: 0 | K32: 0 | M32: 0 | N32: 0 | O32: 0 | P32: 0 | Q32: 0 | R32: 0
D33: 0 | G33: 0 | I33: 0 | J33: =E33*H33 -> 0 | K33: 0 | M33: 0 | N33: =J33*L33 -> 0 | O33: 0 | P33: =+J33-N33 -> 0 | Q33: 0 | R33: =+J33*E$7 -> 0
B34: Machinery Labor
C35: Tractors/Self-Propelled | D35: 0.62 | F35: Hour | G35: 12 | I35: 7.44 | J35: =E35*H35 -> 0 | K35: 0 | M35: 0 | N35: =J35*L35 -> 0 | O35: 7.44 | P35: =+J35-N35 -> 0 | Q35: 3720 | R35: =+J35*E$7 -> 0
C36: Other Labor | D36: 0 | F36: Hour | G36: 12 | I36: 0 | J36: =E36*H36 -> 0 | K36: 0 | M36: 0 | N36: =J36*L36 -> 0 | O36: 0 | P36: =+J36-N36 -> 0 | Q36: 0 | R36: =+J36*E$7 -> 0
B38: Diesel Fuel
C39: Pickup/General Use Equipment | D39: 1 | F39: Acre | G39: 0 | I39: 0 | J39: =E39*H39 -> 0 | K39: 0 | M39: 0 | N39: =J39*L39 -> 0 | O39: 0 | P39: =+J39-N39 -> 0 | Q39: 0 | R39: =+J39*E$7 -> 0
C40: Tractors/Self-Propelled | D40: 2.95 | F40: Gallon | G40: 3.7 | I40: 10.915 | J40: =E40*H40 -> 0 | K40: 0 | M40: 0 | N40: =J40*L40 -> 0 | O40: 10.915 | P40: =+J40-N40 -> 0 | Q40: 5457.5 | R40: =+J40*E$7 -> 0
B42: Gasoline
C43: Pickup/General Use Equipment | D43: 1 | F43: Acre | G43: 0 | I43: 0 | J43: =E43*H43 -> 0 | K43: 0 | M43: 0 | N43: =J43*L43 -> 0 | O43: 0 | P43: =+J43-N43 -> 0 | Q43: 0 | R43: =+J43*E$7 -> 0
C44: Tractors/Self-Propelled | D44: 0 | F44: Gallon | G44: 3.15 | I44: 0 | J44: =E44*H44 -> 0 | K44: 0 | M44: 0 | N44: =J44*L44 -> 0 | O44: 0 | P44: =+J44-N44 -> 0 | Q44: 0 | R44: =+J44*E$7 -> 0
B46: Repairs & Maintenance
C47: Pickup/General Use Equipment | D47: 1 | F47: Acre | G47: 0 | I47: 0 | J47: =E47*H47 -> 0 | K47: 0 | M47: 0 | N47: =J47*L47 -> 0 | O47: 0 | P47: =+J47-N47 -> 0 | Q47: 0 | R47: =+J47*E$7 -> 0
C48: Irrigation Equipment | D48: 1 | F48: Acre | G48: 0 | I48: 0 | J48: 0 | K48: 0 | M48: 0 | N48: 0 | O48: 0 | P48: 0 | Q48: 0 | R48: 0
C49: Tractors/Self-Propelled | D49: 1 | F49: Acre | G49: 4.565219024 | I49: 4.565219024 | J49: 0 | K49: 0 | M49: 0 | N49: 0 | O49: 4.565219024 | P49: 0 | Q49: 2282.609512 | R49: 0
C50: Implements | D50: 1 | F50: Acre | G50: 9.69520085 | I50: 9.69520085 | J50: 0 | K50: 0 | M50: 0 | N50: 0 | O50: 9.69520085 | P50: 0 | Q50: 4847.600425 | R50: 0
I51: 0 | J51: 0 | K51: 0 | M51: 0 | N51: 0 | O51: 0 | P51: 0 | Q51: 0 | R51: 0
I52: 0 | J52: 0 | K52: 0 | M52: 0 | N52: 0 | O52: 0 | P52: 0 | Q52: 0 | R52: 0
B53: Interest on Credit Line | G53: 0.08 | I53: 7.664251395 | J53: =+SUM(J17:J52)/2*H53 -> 0 | M53: 0 | N53: =+SUM(N17:N52)/2*L53 -> 0 | O53: 7.664251395 | P53: =+SUM(P17:P52)/2*L53 -> 0 | Q53: 3832.125698 | R53: =+J53*E$7 -> 0
A54: Total Variable Costs | I54: 264.2096713 | J54: =SUM(J18:J53) -> 0 | M54: 0 | N54: =SUM(N18:N53) -> 0 | O54: 264.2096713 | P54: =SUM(P18:P53) -> 0 | Q54: 132104.8356 | R54: =SUM(R18:R53) -> 0
A55: Planned Returns Above Variable Costs: | I55: 72.39032873 | J55: =+J13-J54 -> 0 | M55: 0 | N55: =+N13-N54 -> 0 | O55: 72.39032873 | P55: =+P13-P54 -> 0 | Q55: 36195.16437 | R55: =+R13-R54 -> 0
B56: Breakeven Price to Cover Variable Costs | G56: 8.006353675 | H56: =IF(E10=0,"n/a",(YVarExp-(YTotExp+YTotRet-J10))/E10) -> n/a | I56: CWT
Q57: Enterprise | R57: Enterprise
A58: FIXED COSTS | D58: Quantity | E58: Quantity | F58: Units | G58: $/Unit | H58: $/Unit | I58: Total | J58: Total | K58: Share | L58: Share | M58: Landlord | N58: Landlord | O58: Tenant | P58: Tenant | Q58: Total | R58: Total
B59: Machinery Depreciation
C60: Tractors/Self-Propelled | D60: 1 | F60: Acre | G60: 4.193192159 | I60: 4.193192159 | J60: =E60*H60 -> 0 | K60: 0 | M60: 0 | N60: =J60*L60 -> 0 | O60: 4.193192159 | P60: =+J60-N60 -> 0 | Q60: 2096.59608 | R60: =+J60*E$7 -> 0
C61: Implements | D61: 1 | F61: Acre | G61: 10.95102472 | I61: 10.95102472 | J61: 0 | K61: 0 | M61: 0 | N61: =J61*L61 -> 0 | O61: 10.95102472 | P61: 0 | Q61: 5475.512358 | R61: 0
B62: Equipment Investment
C63: Tractors/Self-Propelled | D63: 32.66631956 | F63: Dollars | G63: 0.08 | I63: 2.613305565 | J63: =E63*H63 -> 0 | K63: 0 | M63: 0 | N63: =J63*L63 -> 0 | O63: 2.613305565 | P63: =+J63-N63 -> 0 | Q63: 1306.652782 | R63: =+J63*E$7 -> 0
C64: Implements | D64: 46.84605018 | F64: Dollars | G64: 0.08 | I64: 3.747684014 | J64: 0 | K64: 0 | M64: 0 | N64: =J64*L64 -> 0 | O64: 3.747684014 | P64: 0 | Q64: 1873.842007 | R64: 0
B65: Salaried Labor | D65: 1 | F65: Acre | G65: 0 | I65: 0 | J65: 0 | K65: 0 | M65: 0 | N65: =J65*L65 -> 0 | O65: 0 | P65: =+J65-N65 -> 0 | Q65: 0 | R65: =+J65*E$7 -> 0
B66: Management Fee, Owner/Operator Labor | D66: 1 | F66: Acre | G66: 0 | I66: 0 | J66: 0 | K66: 0 | M66: 0 | N66: 0 | O66: 0 | P66: 0 | Q66: 0 | R66: 0
B67: Allocated Establishment Cost | D67: 1 | F67: Acre | G67: 0 | I67: 0 | J67: 0 | K67: 0 | M67: 0 | N67: 0 | O67: 0 | P67: 0 | Q67: 0 | R67: 0
B68: Rent-Dryland Crop | D68: 1 | F68: Acre | G68: 25 | I68: 25 | J68: 0 | K68: 0 | M68: 0 | N68: 0 | O68: 25 | P68: 0 | Q68: 12500 | R68: 0
B69: Property Taxes | D69: 1 | F69: Acre | G69: 0 | I69: 0 | J69: 0 | K69: 0 | M69: 0 | N69: 0 | O69: 0 | P69: 0 | Q69: 0 | R69: 0
B70: Whole Farm Insurance | D70: 1 | F70: Acre | G70: 0 | I70: 0 | J70: 0 | K70: 0 | M70: 0 | N70: 0 | O70: 0 | P70: 0 | Q70: 0 | R70: 0
D71: 1 | G71: 0 | I71: 0 | J71: 0 | K71: 0 | M71: 0 | N71: 0 | O71: 0 | P71: 0 | Q71: 0 | R71: 0
D72: 1 | G72: 0 | I72: 0 | J72: =E72*H72 -> 0 | K72: 0 | M72: 0 | N72: 0 | O72: 0 | P72: 0 | Q72: 0 | R72: 0
A73: Total Fixed Costs | I73: 46.50520645 | J73: =+SUM(J60:J72) -> 0 | M73: 0 | N73: =+SUM(N60:N72) -> 0 | O73: 46.50520645 | P73: =+SUM(P60:P72) -> 0 | Q73: 23252.60323 | R73: =+SUM(R60:R72) -> 0
A74: Total Specified Costs | I74: 310.7148777 | J74: =+J54+J73 -> 0 | M74: 0 | N74: =+N54+N73 -> 0 | O74: 310.7148777 | P74: =+P54+P73 -> 0 | Q74: 155357.4389 | R74: =+R54+R73 -> 0
A76: Returns Above Specified Costs | I76: 25.88512228 | J76: =+J13-J74 -> 0 | M76: 0 | N76: =+N13-N74 -> 0 | O76: 25.88512228 | P76: =+P13-P74 -> 0 | Q76: 12942.56114 | R76: =+R13-R74 -> 0
A78: Breakeven Price to Cover Total Costs | G78: 9.415602355 | H78: =IF(E10=0,"n/a",(YTotExp-(YTotExp+YTotRet-J10))/E10) -> n/a | I78: CWT
D80: Example Breakeven Prices
B81: Example | C81: Example | D81: To Cover | G81: To Cover
B82: Yield | C82: Yield | D82: Variable | G82: Total
B83: Percent | C83: CWT | D83: Costs | G83: Costs
B84: 0.75 | C84: 24.75 | D84: 10.67513823 | G84: 12.55413647
B85: 0.9 | C85: 29.7 | D85: 8.895948528 | G85: 10.46178039
B86: 1 | C86: 33 | D86: 8.006353675 | G86: 9.415602355
B87: 1.1 | C87: 36.3 | D87: 7.278503341 | G87: 8.559638505
B88: 1.25 | C88: 41.25 | D88: 6.40508294 | G88: 7.532481884
D90: Your Breakeven Prices
B91: Your | C91: Your | E91: To Cover | H91: To Cover
B92: Yield | C92: Yield | E92: Variable | H92: Total
B93: Percent | C93: CWT | E93: Costs | H93: Costs
B94: 0.75 | C94: =E10*YPER1 -> 0 | E94: =IF($E$10=0,0,(YVarExp-(YTotExp+YTotRet-J10))/($E$10*YPER1)) -> 0 | H94: =IF($E$10=0,0,(YTotExp-(YTotExp+YTotRet-J10))/($E$10*YPER1)) -> 0
B95: 0.9 | C95: =E10*YPER2 -> 0 | E95: =IF($E$10=0,0,(YVarExp-(YTotExp+YTotRet-J10))/($E$10*YPER2)) -> 0 | H95: =IF($E$10=0,0,(YTotExp-(YTotExp+YTotRet-J10))/($E$10*YPER2)) -> 0
B96: 1 | C96: =+E10 -> 0 | E96: =IF($E$10=0,0,(YVarExp-(YTotExp+YTotRet-J10))/($E$10*YPER3)) -> 0 | H96: =IF($E$10=0,0,(YTotExp-(YTotExp+YTotRet-J10))/($E$10*YPER3)) -> 0
B97: 1.1 | C97: =E10*YPER4 -> 0 | E97: =IF($E$10=0,0,(YVarExp-(YTotExp+YTotRet-J10))/($E$10*YPER4)) -> 0 | H97: =IF($E$10=0,0,(YTotExp-(YTotExp+YTotRet-J10))/($E$10*YPER4)) -> 0
B98: 1.25 | C98: =E10*YPER5 -> 0 | E98: =IF($E$10=0,0,(YVarExp-(YTotExp+YTotRet-J10))/($E$10*YPER5)) -> 0 | H98: =IF($E$10=0,0,(YTotExp-(YTotExp+YTotRet-J10))/($E$10*YPER5)) -> 0
A100: Developed by Blake Bennet, Associate Professor and Extension Economist, Texas A&M AgriLife Extension Service, 972-952-9273.
A102: Information presented is prepared solely as a general guide and not intended to recognize or predict the costs and returns from any one operation. Brand names are mentioned only as examples and imply no endorsement.

Sheet SorghumHay
A1: Projections for Planning Purposes Only -- Not to be Used without Updating
A2: 2024 Estimated Costs and Returns per Acre
A3: Sorghum for Hay
A4: Enter your name for this budget in the cell above.
A5: Enter Your Values in the cells highlighed in MAROON.
E6: Your Acres | R6: Your
C7: Crop Acres | D7: 100 | L7: Your | Q7: Enterprise | R7: Enterprise
E8: Your | H8: Your | I8: Cash | J8: Your | K8: Landlord | L8: Landlord | N8: Your | P8: Your | Q8: Total | R8: Total
A9: REVENUE | D9: Quantity | E9: Quantity | F9: Units | G9: $/Unit | H9: $/Unit | I9: Total | J9: Total | K9: Share | L9: Share | M9: Landlord | N9: Landlord | O9: Tenant | P9: Tenant | Q9: (100 acres) | R9: ="(" & E7 & " acres)" -> ( acres)
B10: Sorghum Hay | D10: 5 | F10: Roll | G10: 75 | I10: 375 | J10: =E10*H10 -> 0 | K10: 0 | M10: 0 | N10: =J10*L10 -> 0 | O10: 375 | P10: =+J10-N10 -> 0 | Q10: 37500 | R10: =+J10*E$7 -> 0
D11: 0 | G11: 0 | I11: 0 | J11: 0 | K11: 0 | M11: 0 | N11: 0 | O11: 0 | P11: =+J11-N11 -> 0 | Q11: 0 | R11: 0
D12: 0 | G12: 0 | I12: 0 | J12: 0 | K12: 0 | M12: 0 | N12: 0 | O12: 0 | P12: 0 | Q12: 0 | R12: 0
A13: Total Revenue | I13: 375 | J13: =SUM(J10:J12) -> 0 | M13: 0 | N13: =SUM(N10:N12) -> 0 | O13: 375 | P13: =SUM(P10:P12) -> 0 | Q13: 37500 | R13: =SUM(R10:R12) -> 0
Q14: Enterprise | R14: Enterprise
A15: VARIABLE COSTS | D15: Quantity | E15: Quantity | F15: Units | G15: $/Unit | H15: $/Unit | I15: Total | J15: Total | K15: Share | L15: Share | M15: Landlord | N15: Landlord | O15: Tenant | P15: Tenant | Q15: Total | R15: Total
A16: Production Costs
B17: Custom
C18: Custom Bale | D18: 5 | F18: Roll | G18: 30 | I18: 150 | J18: =E18*H18 -> 0 | K18: 0 | M18: 0 | N18: =J18*L18 -> 0 | O18: 150 | P18: =+J18-N18 -> 0 | Q18: 15000 | R18: =+J18*E$7 -> 0
C19: Custom Haul | D19: 5 | F19: Roll | G19: 3.82 | I19: 19.1 | J19: 0 | K19: 0 | M19: 0 | N19: 0 | O19: 19.1 | P19: 0 | Q19: 1910 | R19: 0
B20: Fertilizer
C21: 18-46-0 | D21: 100 | F21: Pounds | G21: 0.6 | I21: 60 | J21: 0 | K21: 0 | M21: 0 | N21: 0 | O21: 60 | P21: 0 | Q21: 6000 | R21: 0
C22: 82-0-0 | D22: 100 | F22: Pounds | G22: 0.52 | I22: 52 | J22: 0 | K22: 0 | M22: 0 | N22: 0 | O22: 52 | P22: 0 | Q22: 5200 | R22: 0
B23: Seed
C24: Forage Sorghum Seed | D24: 50 | F24: Pounds | G24: 1.29 | I24: 64.5 | J24: 0 | K24: 0 | M24: 0 | N24: 0 | O24: 64.5 | P24: 0 | Q24: 6450 | R24: 0
D25: 0 | G25: 0 | I25: 0 | J25: 0 | K25: 0 | M25: 0 | N25: 0 | O25: 0 | P25: 0 | Q25: 0 | R25: 0
D26: 0 | G26: 0 | I26: 0 | J26: 0 | K26: 0 | M26: 0 | N26: 0 | O26: 0 | P26: 0 | Q26: 0 | R26: 0
D27: 0 | G27: 0 | I27: 0 | J27: =E27*H27 -> 0 | K27: 0 | M27: 0 | N27: =J27*L27 -> 0 | O27: 0 | P27: =+J27-N27 -> 0 | Q27: 0 | R27: =+J27*E$7 -> 0
B28: Machinery Labor
C29: Tractors/Self-Propelled | D29: 0.42 | F29: Hour | G29: 12 | I29: 5.04 | J29: =E29*H29 -> 0 | K29: 0 | M29: 0 | N29: =J29*L29 -> 0 | O29: 5.04 | P29: =+J29-N29 -> 0 | Q29: 504 | R29: =+J29*E$7 -> 0
C30: Other Labor | D30: 0 | F30: Hour | G30: 12 | I30: 0 | J30: =E30*H30 -> 0 | K30: 0 | M30: 0 | N30: =J30*L30 -> 0 | O30: 0 | P30: =+J30-N30 -> 0 | Q30: 0 | R30: =+J30*E$7 -> 0
B32: Diesel Fuel
C33: Pickup/General Use Equipment | D33: 1 | F33: Acre | G33: 0 | I33: 0 | J33: =E33*H33 -> 0 | K33: 0 | M33: 0 | N33: =J33*L33 -> 0 | O33: 0 | P33: =+J33-N33 -> 0 | Q33: 0 | R33: =+J33*E$7 -> 0
C34: Tractors/Self-Propelled | D34: 2.16 | F34: Gallon | G34: 3.7 | I34: 7.992 | J34: =E34*H34 -> 0 | K34: 0 | M34: 0 | N34: =J34*L34 -> 0 | O34: 7.992 | P34: =+J34-N34 -> 0 | Q34: 799.2 | R34: =+J34*E$7 -> 0
B36: Gasoline
C37: Pickup/General Use Equipment | D37: 1 | F37: Acre | G37: 0 | I37: 0 | J37: =E37*H37 -> 0 | K37: 0 | M37: 0 | N37: =J37*L37 -> 0 | O37: 0 | P37: =+J37-N37 -> 0 | Q37: 0 | R37: =+J37*E$7 -> 0
C38: Tractors/Self-Propelled | D38: 0 | F38: Gallon | G38: 3.15 | I38: 0 | J38: =E38*H38 -> 0 | K38: 0 | M38: 0 | N38: =J38*L38 -> 0 | O38: 0 | P38: =+J38-N38 -> 0 | Q38: 0 | R38: =+J38*E$7 -> 0
B40: Repairs & Maintenance
C41: Pickup/General Use Equipment | D41: 1 | F41: Acre | G41: 0 | I41: 0 | J41: =E41*H41 -> 0 | K41: 0 | M41: 0 | N41: =J41*L41 -> 0 | O41: 0 | P41: =+J41-N41 -> 0 | Q41: 0 | R41: =+J41*E$7 -> 0
C42: Irrigation Equipment | D42: 1 | F42: Acre | G42: 0 | I42: 0 | J42: 0 | K42: 0 | M42: 0 | N42: 0 | O42: 0 | P42: 0 | Q42: 0 | R42: 0
C43: Tractors/Self-Propelled | D43: 1 | F43: Acre | G43: 3.574099389 | I43: 3.574099389 | J43: 0 | K43: 0 | M43: 0 | N43: 0 | O43: 3.574099389 | P43: 0 | Q43: 357.4099389 | R43: 0
C44: Implements | D44: 1 | F44: Acre | G44: 8.283391005 | I44: 8.283391005 | J44: 0 | K44: 0 | M44: 0 | N44: 0 | O44: 8.283391005 | P44: 0 | Q44: 828.3391005 | R44: 0
I45: 0 | J45: 0 | K45: 0 | M45: 0 | N45: 0 | O45: 0 | P45: 0 | Q45: 0 | R45: 0
I46: 0 | J46: 0 | K46: 0 | M46: 0 | N46: 0 | O46: 0 | P46: 0 | Q46: 0 | R46: 0
B47: Interest on Credit Line | G47: 0.08 | I47: 9.739912593 | J47: =+SUM(J17:J46)/2*H47 -> 0 | M47: 0 | N47: =+SUM(N17:N46)/2*L47 -> 0 | O47: 9.739912593 | P47: =+SUM(P17:P46)/2*L47 -> 0 | Q47: 973.9912593 | R47: =+J47*E$7 -> 0
A48: Total Variable Costs | I48: 380.229403 | J48: =SUM(J18:J47) -> 0 | M48: 0 | N48: =SUM(N18:N47) -> 0 | O48: 380.229403 | P48: =SUM(P18:P47) -> 0 | Q48: 38022.9403 | R48: =SUM(R18:R47) -> 0
A49: Planned Returns Above Variable Costs: | I49: -5.229402988 | J49: =+J13-J48 -> 0 | M49: 0 | N49: =+N13-N48 -> 0 | O49: -5.229402988 | P49: =+P13-P48 -> 0 | Q49: -522.9402988 | R49: =+R13-R48 -> 0
B50: Breakeven Price to Cover Variable Costs | G50: 76.0458806 | H50: =IF(E10=0,"n/a",(YVarExp-(YTotExp+YTotRet-J10))/E10) -> n/a | I50: Roll
Q51: Enterprise | R51: Enterprise
A52: FIXED COSTS | D52: Quantity | E52: Quantity | F52: Units | G52: $/Unit | H52: $/Unit | I52: Total | J52: Total | K52: Share | L52: Share | M52: Landlord | N52: Landlord | O52: Tenant | P52: Tenant | Q52: Total | R52: Total
B53: Machinery Depreciation
C54: Tractors/Self-Propelled | D54: 1 | F54: Acre | G54: 3.393659107 | I54: 3.393659107 | J54: =E54*H54 -> 0 | K54: 0 | M54: 0 | N54: =J54*L54 -> 0 | O54: 3.393659107 | P54: =+J54-N54 -> 0 | Q54: 339.3659107 | R54: =+J54*E$7 -> 0
C55: Implements | D55: 1 | F55: Acre | G55: 9.712991941 | I55: 9.712991941 | J55: 0 | K55: 0 | M55: 0 | N55: =J55*L55 -> 0 | O55: 9.712991941 | P55: 0 | Q55: 971.2991941 | R55: 0
B56: Equipment Investment
C57: Tractors/Self-Propelled | D57: 26.43769917 | F57: Dollars | G57: 0.08 | I57: 2.115015934 | J57: =E57*H57 -> 0 | K57: 0 | M57: 0 | N57: =J57*L57 -> 0 | O57: 2.115015934 | P57: =+J57-N57 -> 0 | Q57: 211.5015934 | R57: =+J57*E$7 -> 0
C58: Implements | D58: 41.73338497 | F58: Dollars | G58: 0.08 | I58: 3.338670798 | J58: 0 | K58: 0 | M58: 0 | N58: =J58*L58 -> 0 | O58: 3.338670798 | P58: 0 | Q58: 333.8670798 | R58: 0
B59: Salaried Labor | D59: 1 | F59: Acre | G59: 0 | I59: 0 | J59: 0 | K59: 0 | M59: 0 | N59: =J59*L59 -> 0 | O59: 0 | P59: =+J59-N59 -> 0 | Q59: 0 | R59: =+J59*E$7 -> 0
B60: Management Fee, Owner/Operator Labor | D60: 1 | F60: Acre | G60: 0 | I60: 0 | J60: 0 | K60: 0 | M60: 0 | N60: 0 | O60: 0 | P60: 0 | Q60: 0 | R60: 0
B61: Allocated Establishment Cost | D61: 1 | F61: Acre | G61: 0 | I61: 0 | J61: 0 | K61: 0 | M61: 0 | N61: 0 | O61: 0 | P61: 0 | Q61: 0 | R61: 0
B62: Rent-Dryland Crop | D62: 1 | F62: Acre | G62: 25 | I62: 25 | J62: 0 | K62: 0 | M62: 0 | N62: 0 | O62: 25 | P62: 0 | Q62: 2500 | R62: 0
B63: Property Taxes | D63: 1 | F63: Acre | G63: 0 | I63: 0 | J63: 0 | K63: 0 | M63: 0 | N63: 0 | O63: 0 | P63: 0 | Q63: 0 | R63: 0
B64: Whole Farm Insurance | D64: 1 | F64: Acre | G64: 0 | I64: 0 | J64: 0 | K64: 0 | M64: 0 | N64: 0 | O64: 0 | P64: 0 | Q64: 0 | R64: 0
D65: 1 | G65: 0 | I65: 0 | J65: 0 | K65: 0 | M65: 0 | N65: 0 | O65: 0 | P65: 0 | Q65: 0 | R65: 0
D66: 1 | G66: 0 | I66: 0 | J66: =E66*H66 -> 0 | K66: 0 | M66: 0 | N66: 0 | O66: 0 | P66: 0 | Q66: 0 | R66: 0
A67: Total Fixed Costs | I67: 43.56033778 | J67: =+SUM(J54:J66) -> 0 | M67: 0 | N67: =+SUM(N54:N66) -> 0 | O67: 43.56033778 | P67: =+SUM(P54:P66) -> 0 | Q67: 4356.033778 | R67: =+SUM(R54:R66) -> 0
A68: Total Specified Costs | I68: 423.7897408 | J68: =+J48+J67 -> 0 | M68: 0 | N68: =+N48+N67 -> 0 | O68: 423.7897408 | P68: =+P48+P67 -> 0 | Q68: 42378.97408 | R68: =+R48+R67 -> 0
A70: Returns Above Specified Costs | I70: -48.78974077 | J70: =+J13-J68 -> 0 | M70: 0 | N70: =+N13-N68 -> 0 | O70: -48.78974077 | P70: =+P13-P68 -> 0 | Q70: -4878.974077 | R70: =+R13-R68 -> 0
A72: Breakeven Price to Cover Total Costs | G72: 84.75794815 | H72: =IF(E10=0,"n/a",(YTotExp-(YTotExp+YTotRet-J10))/E10) -> n/a | I72: Roll
D74: Example Breakeven Prices
B75: Example | C75: Example | D75: To Cover | G75: To Cover
B76: Yield | C76: Yield | D76: Variable | G76: Total
B77: Percent | C77: Roll | D77: Costs | G77: Costs
B78: 0.75 | C78: 3.75 | D78: 101.3945075 | G78: 113.0105975
B79: 0.9 | C79: 4.5 | D79: 84.49542289 | G79: 94.17549795
B80: 1 | C80: 5 | D80: 76.0458806 | G80: 84.75794815
B81: 1.1 | C81: 5.5 | D81: 69.13261873 | G81: 77.05268014
B82: 1.25 | C82: 6.25 | D82: 60.83670448 | G82: 67.80635852
D84: Your Breakeven Prices
B85: Your | C85: Your | E85: To Cover | H85: To Cover
B86: Yield | C86: Yield | E86: Variable | H86: Total
B87: Percent | C87: Roll | E87: Costs | H87: Costs
B88: 0.75 | C88: =E10*YPER1 -> 0 | E88: =IF($E$10=0,0,(YVarExp-(YTotExp+YTotRet-J10))/($E$10*YPER1)) -> 0 | H88: =IF($E$10=0,0,(YTotExp-(YTotExp+YTotRet-J10))/($E$10*YPER1)) -> 0
B89: 0.9 | C89: =E10*YPER2 -> 0 | E89: =IF($E$10=0,0,(YVarExp-(YTotExp+YTotRet-J10))/($E$10*YPER2)) -> 0 | H89: =IF($E$10=0,0,(YTotExp-(YTotExp+YTotRet-J10))/($E$10*YPER2)) -> 0
B90: 1 | C90: =+E10 -> 0 | E90: =IF($E$10=0,0,(YVarExp-(YTotExp+YTotRet-J10))/($E$10*YPER3)) -> 0 | H90: =IF($E$10=0,0,(YTotExp-(YTotExp+YTotRet-J10))/($E$10*YPER3)) -> 0
B91: 1.1 | C91: =E10*YPER4 -> 0 | E91: =IF($E$10=0,0,(YVarExp-(YTotExp+YTotRet-J10))/($E$10*YPER4)) -> 0 | H91: =IF($E$10=0,0,(YTotExp-(YTotExp+YTotRet-J10))/($E$10*YPER4)) -> 0
B92: 1.25 | C92: =E10*YPER5 -> 0 | E92: =IF($E$10=0,0,(YVarExp-(YTotExp+YTotRet-J10))/($E$10*YPER5)) -> 0 | H92: =IF($E$10=0,0,(YTotExp-(YTotExp+YTotRet-J10))/($E$10*YPER5)) -> 0
A94: Developed by Blake Bennet, Associate Professor and Extension Economist, Texas A&M AgriLife Extension Service, 972-952-9273.
A96: Information presented is prepared solely as a general guide and not intended to recognize or predict the costs and returns from any one operation. Brand names are mentioned only as examples and imply no endorsement.

Sheet Soybeans
A1: Projections for Planning Purposes Only -- Not to be Used without Updating
A2: 2024 Estimated Costs and Returns per Acre
A3: Soybeans
A4: Enter your name for this budget in the cell above.
A5: Enter Your Values in the cells highlighed in MAROON.
E6: Your Acres | R6: Your
C7: Crop Acres | D7: 500 | L7: Your | Q7: Enterprise | R7: Enterprise
E8: Your | H8: Your | I8: Cash | J8: Your | K8: Landlord | L8: Landlord | N8: Your | P8: Your | Q8: Total | R8: Total
A9: REVENUE | D9: Quantity | E9: Quantity | F9: Units | G9: $/Unit | H9: $/Unit | I9: Total | J9: Total | K9: Share | L9: Share | M9: Landlord | N9: Landlord | O9: Tenant | P9: Tenant | Q9: (500 acres) | R9: ="(" & E7 & " acres)" -> ( acres)
B10: Soybeans | D10: 25 | F10: Bushel | G10: 12.5 | I10: 312.5 | J10: =E10*H10 -> 0 | K10: 0 | M10: 0 | N10: =J10*L10 -> 0 | O10: 312.5 | P10: =+J10-N10 -> 0 | Q10: 156250 | R10: =+J10*E$7 -> 0
D11: 0 | G11: 0 | I11: 0 | J11: 0 | K11: 0 | M11: 0 | N11: 0 | O11: 0 | P11: =+J11-N11 -> 0 | Q11: 0 | R11: 0
D12: 0 | G12: 0 | I12: 0 | J12: 0 | K12: 0 | M12: 0 | N12: 0 | O12: 0 | P12: 0 | Q12: 0 | R12: 0
A13: Total Revenue | I13: 312.5 | J13: =SUM(J10:J12) -> 0 | M13: 0 | N13: =SUM(N10:N12) -> 0 | O13: 312.5 | P13: =SUM(P10:P12) -> 0 | Q13: 156250 | R13: =SUM(R10:R12) -> 0
Q14: Enterprise | R14: Enterprise
A15: VARIABLE COSTS | D15: Quantity | E15: Quantity | F15: Units | G15: $/Unit | H15: $/Unit | I15: Total | J15: Total | K15: Share | L15: Share | M15: Landlord | N15: Landlord | O15: Tenant | P15: Tenant | Q15: Total | R15: Total
A16: Production Costs
B17: Custom
C18: Custom Harvest Soybeans | D18: 1 | F18: Acre | G18: 22 | I18: 22 | J18: =E18*H18 -> 0 | K18: 0 | M18: 0 | N18: =J18*L18 -> 0 | O18: 22 | P18: =+J18-N18 -> 0 | Q18: 11000 | R18: =+J18*E$7 -> 0
C19: Custom Haul Soybeans | D19: 25 | F19: Bushels | G19: 0.25 | I19: 6.25 | J19: 0 | K19: 0 | M19: 0 | N19: 0 | O19: 6.25 | P19: 0 | Q19: 3125 | R19: 0
B20: Insecticide
C21: Preplant Insecticide-Soybeans | D21: 1 | F21: Pint | G21: 29.47 | I21: 29.47 | J21: 0 | K21: 0 | M21: 0 | N21: 0 | O21: 29.47 | P21: 0 | Q21: 14735 | R21: 0
B22: Miscellaneous
C23: Insurance-Soybeans | D23: 1 | F23: Acre | G23: 18 | I23: 18 | J23: 0 | K23: 0 | M23: 0 | N23: 0 | O23: 18 | P23: 0 | Q23: 9000 | R23: 0
B24: Seed
C25: Soybean Seed | D25: 60 | F25: Pounds | G25: 1.44 | I25: 86.4 | J25: 0 | K25: 0 | M25: 0 | N25: 0 | O25: 86.4 | P25: 0 | Q25: 43200 | R25: 0
C26: Inoculant | D26: 1 | F26: Acre | G26: 2.05 | I26: 2.05 | J26: 0 | K26: 0 | M26: 0 | N26: 0 | O26: 2.05 | P26: 0 | Q26: 1025 | R26: 0
D27: 0 | G27: 0 | I27: 0 | J27: 0 | K27: 0 | M27: 0 | N27: 0 | O27: 0 | P27: 0 | Q27: 0 | R27: 0
D28: 0 | G28: 0 | I28: 0 | J28: 0 | K28: 0 | M28: 0 | N28: 0 | O28: 0 | P28: 0 | Q28: 0 | R28: 0
D29: 0 | G29: 0 | I29: 0 | J29: =E29*H29 -> 0 | K29: 0 | M29: 0 | N29: =J29*L29 -> 0 | O29: 0 | P29: =+J29-N29 -> 0 | Q29: 0 | R29: =+J29*E$7 -> 0
B30: Machinery Labor
C31: Tractors/Self-Propelled | D31: 0.4 | F31: Hour | G31: 12 | I31: 4.8 | J31: =E31*H31 -> 0 | K31: 0 | M31: 0 | N31: =J31*L31 -> 0 | O31: 4.8 | P31: =+J31-N31 -> 0 | Q31: 2400 | R31: =+J31*E$7 -> 0
C32: Other Labor | D32: 0 | F32: Hour | G32: 12 | I32: 0 | J32: =E32*H32 -> 0 | K32: 0 | M32: 0 | N32: =J32*L32 -> 0 | O32: 0 | P32: =+J32-N32 -> 0 | Q32: 0 | R32: =+J32*E$7 -> 0
B34: Diesel Fuel
C35: Pickup/General Use Equipment | D35: 1 | F35: Acre | G35: 0 | I35: 0 | J35: =E35*H35 -> 0 | K35: 0 | M35: 0 | N35: =J35*L35 -> 0 | O35: 0 | P35: =+J35-N35 -> 0 | Q35: 0 | R35: =+J35*E$7 -> 0
C36: Tractors/Self-Propelled | D36: 1.98 | F36: Gallon | G36: 3.7 | I36: 7.326 | J36: =E36*H36 -> 0 | K36: 0 | M36: 0 | N36: =J36*L36 -> 0 | O36: 7.326 | P36: =+J36-N36 -> 0 | Q36: 3663 | R36: =+J36*E$7 -> 0
B38: Gasoline
C39: Pickup/General Use Equipment | D39: 1 | F39: Acre | G39: 0 | I39: 0 | J39: =E39*H39 -> 0 | K39: 0 | M39: 0 | N39: =J39*L39 -> 0 | O39: 0 | P39: =+J39-N39 -> 0 | Q39: 0 | R39: =+J39*E$7 -> 0
C40: Tractors/Self-Propelled | D40: 0 | F40: Gallon | G40: 3.15 | I40: 0 | J40: =E40*H40 -> 0 | K40: 0 | M40: 0 | N40: =J40*L40 -> 0 | O40: 0 | P40: =+J40-N40 -> 0 | Q40: 0 | R40: =+J40*E$7 -> 0
B42: Repairs & Maintenance
C43: Pickup/General Use Equipment | D43: 1 | F43: Acre | G43: 0 | I43: 0 | J43: =E43*H43 -> 0 | K43: 0 | M43: 0 | N43: =J43*L43 -> 0 | O43: 0 | P43: =+J43-N43 -> 0 | Q43: 0 | R43: =+J43*E$7 -> 0
C44: Irrigation Equipment | D44: 1 | F44: Acre | G44: 0 | I44: 0 | J44: 0 | K44: 0 | M44: 0 | N44: 0 | O44: 0 | P44: 0 | Q44: 0 | R44: 0
C45: Tractors/Self-Propelled | D45: 1 | F45: Acre | G45: 3.159381656 | I45: 3.159381656 | J45: 0 | K45: 0 | M45: 0 | N45: 0 | O45: 3.159381656 | P45: 0 | Q45: 1579.690828 | R45: 0
C46: Implements | D46: 1 | F46: Acre | G46: 7.483242535 | I46: 7.483242535 | J46: 0 | K46: 0 | M46: 0 | N46: 0 | O46: 7.483242535 | P46: 0 | Q46: 3741.621267 | R46: 0
I47: 0 | J47: 0 | K47: 0 | M47: 0 | N47: 0 | O47: 0 | P47: 0 | Q47: 0 | R47: 0
I48: 0 | J48: 0 | K48: 0 | M48: 0 | N48: 0 | O48: 0 | P48: 0 | Q48: 0 | R48: 0
B49: Interest on Credit Line | G49: 0.08 | I49: 6.297056528 | J49: =+SUM(J17:J48)/2*H49 -> 0 | M49: 0 | N49: =+SUM(N17:N48)/2*L49 -> 0 | O49: 6.297056528 | P49: =+SUM(P17:P48)/2*L49 -> 0 | Q49: 3148.528264 | R49: =+J49*E$7 -> 0
A50: Total Variable Costs | I50: 193.2356807 | J50: =SUM(J18:J49) -> 0 | M50: 0 | N50: =SUM(N18:N49) -> 0 | O50: 193.2356807 | P50: =SUM(P18:P49) -> 0 | Q50: 96617.84036 | R50: =SUM(R18:R49) -> 0
A51: Planned Returns Above Variable Costs: | I51: 119.2643193 | J51: =+J13-J50 -> 0 | M51: 0 | N51: =+N13-N50 -> 0 | O51: 119.2643193 | P51: =+P13-P50 -> 0 | Q51: 59632.15964 | R51: =+R13-R50 -> 0
B52: Breakeven Price to Cover Variable Costs | G52: 7.729427229 | H52: =IF(E10=0,"n/a",(YVarExp-(YTotExp+YTotRet-J10))/E10) -> n/a | I52: Bushel
Q53: Enterprise | R53: Enterprise
A54: FIXED COSTS | D54: Quantity | E54: Quantity | F54: Units | G54: $/Unit | H54: $/Unit | I54: Total | J54: Total | K54: Share | L54: Share | M54: Landlord | N54: Landlord | O54: Tenant | P54: Tenant | Q54: Total | R54: Total
B55: Machinery Depreciation
C56: Tractors/Self-Propelled | D56: 1 | F56: Acre | G56: 2.962671402 | I56: 2.962671402 | J56: =E56*H56 -> 0 | K56: 0 | M56: 0 | N56: =J56*L56 -> 0 | O56: 2.962671402 | P56: =+J56-N56 -> 0 | Q56: 1481.335701 | R56: =+J56*E$7 -> 0
C57: Implements | D57: 1 | F57: Acre | G57: 8.56817443 | I57: 8.56817443 | J57: 0 | K57: 0 | M57: 0 | N57: =J57*L57 -> 0 | O57: 8.56817443 | P57: 0 | Q57: 4284.087215 | R57: 0
B58: Equipment Investment
C59: Tractors/Self-Propelled | D59: 23.08016592 | F59: Dollars | G59: 0.08 | I59: 1.846413274 | J59: =E59*H59 -> 0 | K59: 0 | M59: 0 | N59: =J59*L59 -> 0 | O59: 1.846413274 | P59: =+J59-N59 -> 0 | Q59: 923.2066369 | R59: =+J59*E$7 -> 0
C60: Implements | D60: 36.65274617 | F60: Dollars | G60: 0.08 | I60: 2.932219694 | J60: 0 | K60: 0 | M60: 0 | N60: =J60*L60 -> 0 | O60: 2.932219694 | P60: 0 | Q60: 1466.109847 | R60: 0
B61: Salaried Labor | D61: 1 | F61: Acre | G61: 0 | I61: 0 | J61: 0 | K61: 0 | M61: 0 | N61: =J61*L61 -> 0 | O61: 0 | P61: =+J61-N61 -> 0 | Q61: 0 | R61: =+J61*E$7 -> 0
B62: Management Fee, Owner/Operator Labor | D62: 1 | F62: Acre | G62: 0 | I62: 0 | J62: 0 | K62: 0 | M62: 0 | N62: 0 | O62: 0 | P62: 0 | Q62: 0 | R62: 0
B63: Allocated Establishment Cost | D63: 1 | F63: Acre | G63: 0 | I63: 0 | J63: 0 | K63: 0 | M63: 0 | N63: 0 | O63: 0 | P63: 0 | Q63: 0 | R63: 0
B64: Rent-Dryland Crop | D64: 1 | F64: Acre | G64: 25 | I64: 25 | J64: 0 | K64: 0 | M64: 0 | N64: 0 | O64: 25 | P64: 0 | Q64: 12500 | R64: 0
B65: Property Taxes | D65: 1 | F65: Acre | G65: 0 | I65: 0 | J65: 0 | K65: 0 | M65: 0 | N65: 0 | O65: 0 | P65: 0 | Q65: 0 | R65: 0
B66: Whole Farm Insurance | D66: 1 | F66: Acre | G66: 0 | I66: 0 | J66: 0 | K66: 0 | M66: 0 | N66: 0 | O66: 0 | P66: 0 | Q66: 0 | R66: 0
D67: 1 | G67: 0 | I67: 0 | J67: 0 | K67: 0 | M67: 0 | N67: 0 | O67: 0 | P67: 0 | Q67: 0 | R67: 0
D68: 1 | G68: 0 | I68: 0 | J68: =E68*H68 -> 0 | K68: 0 | M68: 0 | N68: 0 | O68: 0 | P68: 0 | Q68: 0 | R68: 0
A69: Total Fixed Costs | I69: 41.3094788 | J69: =+SUM(J56:J68) -> 0 | M69: 0 | N69: =+SUM(N56:N68) -> 0 | O69: 41.3094788 | P69: =+SUM(P56:P68) -> 0 | Q69: 20654.7394 | R69: =+SUM(R56:R68) -> 0
A70: Total Specified Costs | I70: 234.5451595 | J70: =+J50+J69 -> 0 | M70: 0 | N70: =+N50+N69 -> 0 | O70: 234.5451595 | P70: =+P50+P69 -> 0 | Q70: 117272.5798 | R70: =+R50+R69 -> 0
A72: Returns Above Specified Costs | I72: 77.95484048 | J72: =+J13-J70 -> 0 | M72: 0 | N72: =+N13-N70 -> 0 | O72: 77.95484048 | P72: =+P13-P70 -> 0 | Q72: 38977.42024 | R72: =+R13-R70 -> 0
A74: Breakeven Price to Cover Total Costs | G74: 9.381806381 | H74: =IF(E10=0,"n/a",(YTotExp-(YTotExp+YTotRet-J10))/E10) -> n/a | I74: Bushel
D76: Example Breakeven Prices
B77: Example | C77: Example | D77: To Cover | G77: To Cover
B78: Yield | C78: Yield | D78: Variable | G78: Total
B79: Percent | C79: Bushel | D79: Costs | G79: Costs
B80: 0.75 | C80: 18.75 | D80: 10.30590297 | G80: 12.50907517
B81: 0.9 | C81: 22.5 | D81: 8.588252476 | G81: 10.42422931
B82: 1 | C82: 25 | D82: 7.729427229 | G82: 9.381806381
B83: 1.1 | C83: 27.5 | D83: 7.026752026 | G83: 8.528914892
B84: 1.25 | C84: 31.25 | D84: 6.183541783 | G84: 7.505445105
D86: Your Breakeven Prices
B87: Your | C87: Your | E87: To Cover | H87: To Cover
B88: Yield | C88: Yield | E88: Variable | H88: Total
B89: Percent | C89: Bushel | E89: Costs | H89: Costs
B90: 0.75 | C90: =E10*YPER1 -> 0 | E90: =IF($E$10=0,0,(YVarExp-(YTotExp+YTotRet-J10))/($E$10*YPER1)) -> 0 | H90: =IF($E$10=0,0,(YTotExp-(YTotExp+YTotRet-J10))/($E$10*YPER1)) -> 0
B91: 0.9 | C91: =E10*YPER2 -> 0 | E91: =IF($E$10=0,0,(YVarExp-(YTotExp+YTotRet-J10))/($E$10*YPER2)) -> 0 | H91: =IF($E$10=0,0,(YTotExp-(YTotExp+YTotRet-J10))/($E$10*YPER2)) -> 0
B92: 1 | C92: =+E10 -> 0 | E92: =IF($E$10=0,0,(YVarExp-(YTotExp+YTotRet-J10))/($E$10*YPER3)) -> 0 | H92: =IF($E$10=0,0,(YTotExp-(YTotExp+YTotRet-J10))/($E$10*YPER3)) -> 0
B93: 1.1 | C93: =E10*YPER4 -> 0 | E93: =IF($E$10=0,0,(YVarExp-(YTotExp+YTotRet-J10))/($E$10*YPER4)) -> 0 | H93: =IF($E$10=0,0,(YTotExp-(YTotExp+YTotRet-J10))/($E$10*YPER4)) -> 0
B94: 1.25 | C94: =E10*YPER5 -> 0 | E94: =IF($E$10=0,0,(YVarExp-(YTotExp+YTotRet-J10))/($E$10*YPER5)) -> 0 | H94: =IF($E$10=0,0,(YTotExp-(YTotExp+YTotRet-J10))/($E$10*YPER5)) -> 0
A96: Developed by Blake Bennet, Associate Professor and Extension Economist, Texas A&M AgriLife Extension Service, 972-952-9273.
A98: Information presented is prepared solely as a general guide and not intended to recognize or predict the costs and returns from any one operation. Brand names are mentioned only as examples and imply no endorsement.

Sheet Wheat
A1: Projections for Planning Purposes Only -- Not to be Used without Updating
A2: 2024 Estimated Costs and Returns per Acre
A3: Soft Wheat
A4: Enter your name for this budget in the cell above.
A5: Enter Your Values in the cells highlighed in MAROON.
E6: Your Acres | R6: Your
C7: Crop Acres | D7: 1160 | L7: Your | Q7: Enterprise | R7: Enterprise
E8: Your | H8: Your | I8: Cash | J8: Your | K8: Landlord | L8: Landlord | N8: Your | P8: Your | Q8: Total | R8: Total
A9: REVENUE | D9: Quantity | E9: Quantity | F9: Units | G9: $/Unit | H9: $/Unit | I9: Total | J9: Total | K9: Share | L9: Share | M9: Landlord | N9: Landlord | O9: Tenant | P9: Tenant | Q9: (1160 acres) | R9: ="(" & E7 & " acres)" -> ( acres)
B10: Wheat | D10: 45 | F10: Bushel | G10: 6.5 | I10: 292.5 | J10: =E10*H10 -> 0 | K10: 0 | M10: 0 | N10: =J10*L10 -> 0 | O10: 292.5 | P10: =+J10-N10 -> 0 | Q10: 339300 | R10: =+J10*E$7 -> 0
D11: 0 | G11: 0 | I11: 0 | J11: 0 | K11: 0 | M11: 0 | N11: 0 | O11: 0 | P11: =+J11-N11 -> 0 | Q11: 0 | R11: 0
D12: 0 | G12: 0 | I12: 0 | J12: 0 | K12: 0 | M12: 0 | N12: 0 | O12: 0 | P12: 0 | Q12: 0 | R12: 0
A13: Total Revenue | I13: 292.5 | J13: =SUM(J10:J12) -> 0 | M13: 0 | N13: =SUM(N10:N12) -> 0 | O13: 292.5 | P13: =SUM(P10:P12) -> 0 | Q13: 339300 | R13: =SUM(R10:R12) -> 0
Q14: Enterprise | R14: Enterprise
A15: VARIABLE COSTS | D15: Quantity | E15: Quantity | F15: Units | G15: $/Unit | H15: $/Unit | I15: Total | J15: Total | K15: Share | L15: Share | M15: Landlord | N15: Landlord | O15: Tenant | P15: Tenant | Q15: Total | R15: Total
A16: Production Costs
B17: Custom
C18: Custom Harvest Wheat | D18: 1 | F18: Acre | G18: 20.84 | I18: 20.84 | J18: =E18*H18 -> 0 | K18: 0 | M18: 0 | N18: =J18*L18 -> 0 | O18: 20.84 | P18: =+J18-N18 -> 0 | Q18: 24174.4 | R18: =+J18*E$7 -> 0
C19: Custom Haul Wheat | D19: 45 | F19: Bushels | G19: 0.37 | I19: 16.65 | J19: 0 | K19: 0 | M19: 0 | N19: 0 | O19: 16.65 | P19: 0 | Q19: 19314 | R19: 0
B20: Fertilizer
C21: 82-0-0 | D21: 100 | F21: Pounds | G21: 0.52 | I21: 52 | J21: 0 | K21: 0 | M21: 0 | N21: 0 | O21: 52 | P21: 0 | Q21: 60320 | R21: 0
C22: 18-46-0 | D22: 100 | F22: Pounds | G22: 0.6 | I22: 60 | J22: 0 | K22: 0 | M22: 0 | N22: 0 | O22: 60 | P22: 0 | Q22: 69600 | R22: 0
B23: Herbicide
C24: Pre-Emerge Wheat | D24: 1 | F24: Acre | G24: 35.83 | I24: 35.83 | J24: 0 | K24: 0 | M24: 0 | N24: 0 | O24: 35.83 | P24: 0 | Q24: 41562.8 | R24: 0
B25: Insecticide
C26: Insecticide-Greenbug | D26: 1 | F26: Acre | G26: 16.4 | I26: 16.4 | J26: 0 | K26: 0 | M26: 0 | N26: 0 | O26: 16.4 | P26: 0 | Q26: 19024 | R26: 0
B27: Miscellaneous
C28: Insurance-Wheat | D28: 1 | F28: Acre | G28: 14 | I28: 14 | J28: 0 | K28: 0 | M28: 0 | N28: 0 | O28: 14 | P28: 0 | Q28: 16240 | R28: 0
B29: Seed
C30: Wheat Seed | D30: 60 | F30: Pounds | G30: 0.52 | I30: 31.2 | J30: 0 | K30: 0 | M30: 0 | N30: 0 | O30: 31.2 | P30: 0 | Q30: 36192 | R30: 0
D31: 0 | G31: 0 | I31: 0 | J31: 0 | K31: 0 | M31: 0 | N31: 0 | O31: 0 | P31: 0 | Q31: 0 | R31: 0
D32: 0 | G32: 0 | I32: 0 | J32: 0 | K32: 0 | M32: 0 | N32: 0 | O32: 0 | P32: 0 | Q32: 0 | R32: 0
D33: 0 | G33: 0 | I33: 0 | J33: =E33*H33 -> 0 | K33: 0 | M33: 0 | N33: =J33*L33 -> 0 | O33: 0 | P33: =+J33-N33 -> 0 | Q33: 0 | R33: =+J33*E$7 -> 0
B34: Machinery Labor
C35: Tractors/Self-Propelled | D35: 0.26 | F35: Hour | G35: 12 | I35: 3.12 | J35: =E35*H35 -> 0 | K35: 0 | M35: 0 | N35: =J35*L35 -> 0 | O35: 3.12 | P35: =+J35-N35 -> 0 | Q35: 3619.2 | R35: =+J35*E$7 -> 0
C36: Other Labor | D36: 0 | F36: Hour | G36: 12 | I36: 0 | J36: =E36*H36 -> 0 | K36: 0 | M36: 0 | N36: =J36*L36 -> 0 | O36: 0 | P36: =+J36-N36 -> 0 | Q36: 0 | R36: =+J36*E$7 -> 0
B38: Diesel Fuel
C39: Pickup/General Use Equipment | D39: 1 | F39: Acre | G39: 0 | I39: 0 | J39: =E39*H39 -> 0 | K39: 0 | M39: 0 | N39: =J39*L39 -> 0 | O39: 0 | P39: =+J39-N39 -> 0 | Q39: 0 | R39: =+J39*E$7 -> 0
C40: Tractors/Self-Propelled | D40: 1.49 | F40: Gallon | G40: 3.7 | I40: 5.513 | J40: =E40*H40 -> 0 | K40: 0 | M40: 0 | N40: =J40*L40 -> 0 | O40: 5.513 | P40: =+J40-N40 -> 0 | Q40: 6395.08 | R40: =+J40*E$7 -> 0
B42: Gasoline
C43: Pickup/General Use Equipment | D43: 1 | F43: Acre | G43: 0 | I43: 0 | J43: =E43*H43 -> 0 | K43: 0 | M43: 0 | N43: =J43*L43 -> 0 | O43: 0 | P43: =+J43-N43 -> 0 | Q43: 0 | R43: =+J43*E$7 -> 0
C44: Tractors/Self-Propelled | D44: 0 | F44: Gallon | G44: 3.15 | I44: 0 | J44: =E44*H44 -> 0 | K44: 0 | M44: 0 | N44: =J44*L44 -> 0 | O44: 0 | P44: =+J44-N44 -> 0 | Q44: 0 | R44: =+J44*E$7 -> 0
B46: Repairs & Maintenance
C47: Pickup/General Use Equipment | D47: 1 | F47: Acre | G47: 0 | I47: 0 | J47: =E47*H47 -> 0 | K47: 0 | M47: 0 | N47: =J47*L47 -> 0 | O47: 0 | P47: =+J47-N47 -> 0 | Q47: 0 | R47: =+J47*E$7 -> 0
C48: Irrigation Equipment | D48: 1 | F48: Acre | G48: 0 | I48: 0 | J48: 0 | K48: 0 | M48: 0 | N48: 0 | O48: 0 | P48: 0 | Q48: 0 | R48: 0
C49: Tractors/Self-Propelled | D49: 1 | F49: Acre | G49: 2.958186869 | I49: 2.958186869 | J49: 0 | K49: 0 | M49: 0 | N49: 0 | O49: 2.958186869 | P49: 0 | Q49: 3431.496768 | R49: 0
C50: Implements | D50: 1 | F50: Acre | G50: 8.556049436 | I50: 8.556049436 | J50: 0 | K50: 0 | M50: 0 | N50: 0 | O50: 8.556049436 | P50: 0 | Q50: 9925.017346 | R50: 0
I51: 0 | J51: 0 | K51: 0 | M51: 0 | N51: 0 | O51: 0 | P51: 0 | Q51: 0 | R51: 0
I52: 0 | J52: 0 | K52: 0 | M52: 0 | N52: 0 | O52: 0 | P52: 0 | Q52: 0 | R52: 0
B53: Interest on Credit Line | G53: 0.08 | I53: 8.648033527 | J53: =+SUM(J17:J52)/2*H53 -> 0 | M53: 0 | N53: =+SUM(N17:N52)/2*L53 -> 0 | O53: 8.648033527 | P53: =+SUM(P17:P52)/2*L53 -> 0 | Q53: 10031.71889 | R53: =+J53*E$7 -> 0
A54: Total Variable Costs | I54: 275.7152698 | J54: =SUM(J18:J53) -> 0 | M54: 0 | N54: =SUM(N18:N53) -> 0 | O54: 275.7152698 | P54: =SUM(P18:P53) -> 0 | Q54: 319829.713 | R54: =SUM(R18:R53) -> 0
A55: Planned Returns Above Variable Costs: | I55: 16.78473017 | J55: =+J13-J54 -> 0 | M55: 0 | N55: =+N13-N54 -> 0 | O55: 16.78473017 | P55: =+P13-P54 -> 0 | Q55: 19470.28699 | R55: =+R13-R54 -> 0
B56: Breakeven Price to Cover Variable Costs | G56: 6.127005996 | H56: =IF(E10=0,"n/a",(YVarExp-(YTotExp+YTotRet-J10))/E10) -> n/a | I56: Bushel
Q57: Enterprise | R57: Enterprise
A58: FIXED COSTS | D58: Quantity | E58: Quantity | F58: Units | G58: $/Unit | H58: $/Unit | I58: Total | J58: Total | K58: Share | L58: Share | M58: Landlord | N58: Landlord | O58: Tenant | P58: Tenant | Q58: Total | R58: Total
B59: Machinery Depreciation
C60: Tractors/Self-Propelled | D60: 1 | F60: Acre | G60: 2.914531447 | I60: 2.914531447 | J60: =E60*H60 -> 0 | K60: 0 | M60: 0 | N60: =J60*L60 -> 0 | O60: 2.914531447 | P60: =+J60-N60 -> 0 | Q60: 3380.856479 | R60: =+J60*E$7 -> 0
C61: Implements | D61: 1 | F61: Acre | G61: 10.66307562 | I61: 10.66307562 | J61: 0 | K61: 0 | M61: 0 | N61: =J61*L61 -> 0 | O61: 10.66307562 | P61: 0 | Q61: 12369.16772 | R61: 0
B62: Equipment Investment
C63: Tractors/Self-Propelled | D63: 22.70514014 | F63: Dollars | G63: 0.08 | I63: 1.816411212 | J63: =E63*H63 -> 0 | K63: 0 | M63: 0 | N63: =J63*L63 -> 0 | O63: 1.816411212 | P63: =+J63-N63 -> 0 | Q63: 2107.037005 | R63: =+J63*E$7 -> 0
C64: Implements | D64: 45.61426795 | F64: Dollars | G64: 0.08 | I64: 3.649141436 | J64: 0 | K64: 0 | M64: 0 | N64: =J64*L64 -> 0 | O64: 3.649141436 | P64: 0 | Q64: 4233.004065 | R64: 0
B65: Salaried Labor | D65: 1 | F65: Acre | G65: 0 | I65: 0 | J65: 0 | K65: 0 | M65: 0 | N65: =J65*L65 -> 0 | O65: 0 | P65: =+J65-N65 -> 0 | Q65: 0 | R65: =+J65*E$7 -> 0
B66: Management Fee, Owner/Operator Labor | D66: 1 | F66: Acre | G66: 0 | I66: 0 | J66: 0 | K66: 0 | M66: 0 | N66: 0 | O66: 0 | P66: 0 | Q66: 0 | R66: 0
B67: Allocated Establishment Cost | D67: 1 | F67: Acre | G67: 0 | I67: 0 | J67: 0 | K67: 0 | M67: 0 | N67: 0 | O67: 0 | P67: 0 | Q67: 0 | R67: 0
B68: Rent-Dryland Crop | D68: 1 | F68: Acre | G68: 25 | I68: 25 | J68: 0 | K68: 0 | M68: 0 | N68: 0 | O68: 25 | P68: 0 | Q68: 29000 | R68: 0
B69: Property Taxes | D69: 1 | F69: Acre | G69: 0 | I69: 0 | J69: 0 | K69: 0 | M69: 0 | N69: 0 | O69: 0 | P69: 0 | Q69: 0 | R69: 0
B70: Whole Farm Insurance | D70: 1 | F70: Acre | G70: 0 | I70: 0 | J70: 0 | K70: 0 | M70: 0 | N70: 0 | O70: 0 | P70: 0 | Q70: 0 | R70: 0
D71: 1 | G71: 0 | I71: 0 | J71: 0 | K71: 0 | M71: 0 | N71: 0 | O71: 0 | P71: 0 | Q71: 0 | R71: 0
D72: 1 | G72: 0 | I72: 0 | J72: =E72*H72 -> 0 | K72: 0 | M72: 0 | N72: 0 | O72: 0 | P72: 0 | Q72: 0 | R72: 0
A73: Total Fixed Costs | I73: 44.04315972 | J73: =+SUM(J60:J72) -> 0 | M73: 0 | N73: =+SUM(N60:N72) -> 0 | O73: 44.04315972 | P73: =+SUM(P60:P72) -> 0 | Q73: 51090.06527 | R73: =+SUM(R60:R72) -> 0
A74: Total Specified Costs | I74: 319.7584296 | J74: =+J54+J73 -> 0 | M74: 0 | N74: =+N54+N73 -> 0 | O74: 319.7584296 | P74: =+P54+P73 -> 0 | Q74: 370919.7783 | R74: =+R54+R73 -> 0
A76: Returns Above Specified Costs | I76: -27.25842955 | J76: =+J13-J74 -> 0 | M76: 0 | N76: =+N13-N74 -> 0 | O76: -27.25842955 | P76: =+P13-P74 -> 0 | Q76: -31619.77828 | R76: =+R13-R74 -> 0
A78: Breakeven Price to Cover Total Costs | G78: 7.105742879 | H78: =IF(E10=0,"n/a",(YTotExp-(YTotExp+YTotRet-J10))/E10) -> n/a | I78: Bushel
D80: Example Breakeven Prices
B81: Example | C81: Example | D81: To Cover | G81: To Cover
B82: Yield | C82: Yield | D82: Variable | G82: Total
B83: Percent | C83: Bushel | D83: Costs | G83: Costs
B84: 0.75 | C84: 33.75 | D84: 8.169341328 | G84: 9.474323839
B85: 0.9 | C85: 40.5 | D85: 6.80778444 | G85: 7.895269865
B86: 1 | C86: 45 | D86: 6.127005996 | G86: 7.105742879
B87: 1.1 | C87: 49.5 | D87: 5.570005451 | G87: 6.459766254
B88: 1.25 | C88: 56.25 | D88: 4.901604797 | G88: 5.684594303
D90: Your Breakeven Prices
B91: Your | C91: Your | E91: To Cover | H91: To Cover
B92: Yield | C92: Yield | E92: Variable | H92: Total
B93: Percent | C93: Bushel | E93: Costs | H93: Costs
B94: 0.75 | C94: =E10*YPER1 -> 0 | E94: =IF($E$10=0,0,(YVarExp-(YTotExp+YTotRet-J10))/($E$10*YPER1)) -> 0 | H94: =IF($E$10=0,0,(YTotExp-(YTotExp+YTotRet-J10))/($E$10*YPER1)) -> 0
B95: 0.9 | C95: =E10*YPER2 -> 0 | E95: =IF($E$10=0,0,(YVarExp-(YTotExp+YTotRet-J10))/($E$10*YPER2)) -> 0 | H95: =IF($E$10=0,0,(YTotExp-(YTotExp+YTotRet-J10))/($E$10*YPER2)) -> 0
B96: 1 | C96: =+E10 -> 0 | E96: =IF($E$10=0,0,(YVarExp-(YTotExp+YTotRet-J10))/($E$10*YPER3)) -> 0 | H96: =IF($E$10=0,0,(YTotExp-(YTotExp+YTotRet-J10))/($E$10*YPER3)) -> 0
B97: 1.1 | C97: =E10*YPER4 -> 0 | E97: =IF($E$10=0,0,(YVarExp-(YTotExp+YTotRet-J10))/($E$10*YPER4)) -> 0 | H97: =IF($E$10=0,0,(YTotExp-(YTotExp+YTotRet-J10))/($E$10*YPER4)) -> 0
B98: 1.25 | C98: =E10*YPER5 -> 0 | E98: =IF($E$10=0,0,(YVarExp-(YTotExp+YTotRet-J10))/($E$10*YPER5)) -> 0 | H98: =IF($E$10=0,0,(YTotExp-(YTotExp+YTotRet-J10))/($E$10*YPER5)) -> 0
A100: Developed by Blake Bennet, Associate Professor and Extension Economist, Texas A&M AgriLife Extension Service, 972-952-9273.
A102: Information presented is prepared solely as a general guide and not intended to recognize or predict the costs and returns from any one operation. Brand names are mentioned only as examples and imply no endorsement.

Sheet CowCalfImprove
A1: Projections for Planning Purposes Only -- Not to be Used without Updating
A2: 2024 Estimated Costs and Returns per Animal Unit
A3: Cow-Calf Improved Pasture
A4: Enter your name for this budget in the cell above.
A5: Enter Your Values in the cells highlighed in MAROON.
E6: Your Cows
B7: Animal Units (AU) | D7: 40 | F7: Animal Unit | N7: Your
B8: Breeding Females | D8: 40 | F8: Calf | G8: Your | M8: Enterprise | N8: Enterprise
E9: Your | F9: Quantity | G9: Quantity | J9: Your | L9: Your | M9: Total | N9: Total
A10: REVENUE | D10: Head | E10: Head | F10: Per Head | G10: Per Head | H10: Units | I10: $/Unit | J10: $/Unit | K10: Total | L10: Total | M10: ="(" & D7 & " AUs)" -> (40 AUs) | N10: ="(" & E7 & " AUs)" -> ( AUs)
B11: Steer | D11: 0.425 | F11: 4.8 | H11: CWT | I11: 285 | K11: 581.4 | L11: =+E11*G11*J11 -> 0 | M11: 23256 | N11: =+L11*E$7 -> 0
B12: Heifer | D12: 0.325 | F12: 4.5 | H12: CWT | I12: 270 | K12: 394.875 | L12: =+E12*G12*J12 -> 0 | M12: 15795 | N12: =+L12*E$7 -> 0
B13: Cull Cow | D13: 0.1 | F13: 9 | H13: CWT | I13: 95 | K13: 85.5 | L13: 0 | M13: 3420 | N13: 0
B14: Cull Bull | D14: 0 | F14: 18 | H14: CWT | I14: 120 | K14: 0 | L14: 0 | M14: 0 | N14: 0
D15: 0 | F15: 0 | I15: 0 | K15: 0 | L15: 0 | M15: 0 | N15: 0
D16: 0 | F16: 0 | I16: 0 | K16: 0 | L16: 0 | M16: 0 | N16: 0
A17: Total Revenue | F17: 350.25 | K17: 1061.775 | L17: =+SUM(L11:L16) -> 0 | M17: 42471 | N17: =+SUM(N11:N16) -> 0
F18: 440.25
F19: 90 | M19: Enterprise | N19: Enterprise
A20: VARIABLE COSTS | F20: Quantity | G20: Quantity | H20: Units | I20: $/Unit | J20: $/Unit | K20: Total | L20: Total | M20: Total | N20: Total
A21: Production Costs
B22: Miscellaneous
C23: Miscellaneous - Cow | F23: 1 | H23: AU | I23: 4 | K23: 4 | L23: =+J23*G23 -> 0 | M23: 160 | N23: =+L23*E$7 -> 0
F24: 1 | I24: 0 | K24: 0 | L24: 0 | M24: 0 | N24: 0
F25: 1 | I25: 0 | K25: 0 | L25: 0 | M25: 0 | N25: 0
B26: Marketing Expense | F26: 1 | H26: AU | I26: 39.99675 | K26: 39.99675 | L26: 0 | M26: 1599.87 | N26: 0
B27: Feed
C28: Supplement | F28: 60 | H28: Pound | I28: 0.25 | K28: 15 | L28: =+J28*G28 -> 0 | M28: 600 | N28: =+L28*E$7 -> 0
C29: Salt & Minerals -Cows | F29: 1 | H29: Bag | I29: 32.5 | K29: 32.5 | L29: 0 | M29: 1300 | N29: 0
C30: Bermuda Hay | F30: 2.5 | H30: Roll | I30: 120 | K30: 300 | L30: 0 | M30: 12000 | N30: 0
F31: 0 | I31: 0 | K31: 0 | L31: 0 | M31: 0 | N31: 0
F32: 0 | I32: 0 | K32: 0 | L32: 0 | M32: 0 | N32: 0
F33: 0 | I33: 0 | K33: 0 | L33: 0 | M33: 0 | N33: 0
B34: Vet. Medicine
C35: Vet. Medicine - Cow | F35: 1 | H35: Head | I35: 15 | K35: 15 | L35: =+J35*G35 -> 0 | M35: 600 | N35: =+L35*E$7 -> 0
F36: 0 | I36: 0 | K36: 0 | L36: 0 | M36: 0 | N36: 0
F37: 0 | I37: 0 | K37: 0 | L37: 0 | M37: 0 | N37: 0
F38: 0 | I38: 0 | K38: 0 | L38: 0 | M38: 0 | N38: 0
B39: Fuel | F39: 1 | H39: AU | I39: 14.21975 | K39: 14.21975 | L39: 0 | M39: 568.79 | N39: 0
B40: Lube (As a % of fuel) | F40: 0.1 | H40: Percent | I40: 14.21975 | K40: 1.421975 | L40: 0 | M40: 56.879 | N40: 0
B41: Repairs | F41: 1 | H41: AU | I41: 18.1716375 | K41: 18.1716375 | L41: 0 | M41: 726.8655 | N41: 0
B42: Labor | F42: 8.508 | H42: Hours | I42: 12 | K42: 102.096 | L42: 0 | M42: 4083.84 | N42: 0
B43: Utilities | F43: 1 | H43: AU | I43: 0 | K43: 0 | L43: 0 | M43: 0 | N43: 0
K44: 0 | L44: =+J44*G44 -> 0 | M44: 0 | N44: 0
B45: Purchase Breeding Female | F45: 1 | I45: 0 | K45: 0 | L45: 0 | M45: 0 | N45: 0
B46: Purchase Breeding Male | F46: 1 | I46: 0 | K46: 0 | L46: 0 | M46: 0 | N46: 0
B47: Purchase Older Repalcement Female | F47: 1 | I47: 0 | K47: 0 | L47: 0 | M47: 0 | N47: 0
B48: Purchase Younger Repalcement Female | F48: 1 | I48: 0 | K48: 0 | L48: 0 | M48: 0 | N48: 0
B49: Interest on Credit Line | I49: 0.08 | K49: 33.91117164 | L49: =+SUM(L21:L48)/2*J49 -> 0 | M49: 1356.446865 | N49: 0
A50: Total Variable Costs | K50: 576.3172841 | L50: =+SUM(L23:L49) -> 0 | M50: 23052.69137 | N50: =+SUM(N23:N49) -> 0
A52: Planned Returns Above Variable Costs: | K52: 485.4577159 | L52: =+L17-L50 -> 0 | M52: 19418.30863 | N52: =+N17-N50 -> 0
B53: Average Calf Breakeven Price to Cover Variable Costs | I53: 140.1334145 | J53: =IF((E11*G11+E12*G12)=0,"n/a",(L50-SUM(L13:L16))/(E11*G11+E12*G12)) -> n/a | K53: CWT
M54: Enterprise | N54: Enterprise
A55: FIXED COSTS | F55: Quantity | G55: Quantity | H55: Units | I55: $/Unit | J55: $/Unit | K55: Total | L55: Total | M55: Total | N55: Total
B56: Depreciation - Equipment | F56: 1 | H56: AU | I56: 27.98741 | K56: 27.98741 | L56: =+G56*J56 -> 0 | M56: 1119.4964 | N56: =+L56*E$7 -> 0
B57: Depreciation - Livestock | F57: 1 | H57: AU | I57: 14.98333333 | K57: 14.98333333 | L57: 0 | M57: 599.3333333 | N57: 0
B58: Equipment Investment | F58: 876.15715 | H58: dollars | I58: 0.08 | K58: 70.092572 | L58: 0 | M58: 2803.70288 | N58: 0
B59: Insurance | F59: 1 | H59: AU | I59: 0 | K59: 0 | L59: 0 | M59: 0 | N59: 0
B60: Management Fee, Owner/Operator Labor | F60: 1 | H60: AU | I60: 0 | K60: 0 | L60: =+J60*G60 -> 0 | M60: 0 | N60: 0
B61: Salaried Labor | F61: 1 | H61: AU | I61: 0 | K61: 0 | L61: =+J61*G61 -> 0 | M61: 0 | N61: 0
B62: Pasture Cost | F62: 2.14 | H62: Acres | I62: 20 | K62: 42.8 | L62: 0 | M62: 1712 | N62: 0
K63: 0 | L63: =+G63*J63 -> 0 | M63: 0 | N63: 0
K64: 0 | L64: 0 | M64: 0 | N64: 0
A65: Total Fixed Costs | K65: 155.8633153 | L65: =+SUM(L56:L62) -> 0 | M65: 6234.532613 | N65: =+SUM(N56:N62) -> 0
A66: Total Costs | K66: 732.1805995 | L66: =+L50+L65 -> 0 | M66: 29287.22398 | N66: =+N50+N65 -> 0
A67: Planned Returns to Management, Risk, and Profit: | K67: 329.5944005 | L67: =+L17-L66 -> 0 | M67: 13183.77602 | N67: =+N17-N66 -> 0
B68: Average Calf Breakeven Price to Cover Total Costs | I68: 184.6340041 | J68: =IF((E11*G11+E12*G12)=0,"n/a",(L66-SUM(L13:L16))/(E11*G11+E12*G12)) -> n/a | K68: CWT
C70: Sensitivity Analysis for Example
C71: Example Weaning Percent | D71: Example Gross Sales per Animal Unit | F71: Pounds Produced per Animal Unit | H71: Example Breakeven Calf Pay Weight to Cover Total Cost | K71: Example Average Breakeven Price to Cover Total Cost
C72: 0.91 | D72: 1130.688529 | F72: 464.9735294 | H72: 286.4249125 | K72: 172.4603335
C73: 0.88 | D73: 1096.231765 | F73: 452.6117647 | H73: 297.4412553 | K73: 178.3396631
C74: 0.85 | D74: 1061.775 | F74: 440.25 | H74: 309.3389055 | K74: 184.6340041
C75: 0.82 | D75: 1027.318235 | F75: 427.8882353 | H75: 322.2280265 | K75: 191.3889067
C76: 0.79 | D76: 992.8614706 | F76: 415.5264706 | H76: 336.2379407 | K76: 198.6568399
D78: ="Example Male "&F8&" Price" -> Example Male Calf Price | K78: =+I11 -> 285
D79: ="Example Female "&F8&" Price" -> Example Female Calf Price | K79: =+I12 -> 270
D80: ="Example Weighted Average "&F8&" Price ($/cwt)" -> Example Weighted Average Calf Price ($/cwt) | K80: =+(K11+K12)/(D11*F11+D12*F12) -> 278.7366167
C81: Sensitivity Analysis for Your Values
C82: Your Weaning Percent | D82: ="Your Gross Sales per "&F7 -> Your Gross Sales per Animal Unit | F82: ="Pounds Produced per "&F7 -> Pounds Produced per Animal Unit | H82: ="Your Breakeven "&F8&" Pay Weight to Cover Total Cost" -> Your Breakeven Calf Pay Weight to Cover Total Cost | K82: Your Average Breakeven Price to Cover Total Cost
C83: =+C84+C72-C73 -> 1.06 | D83: =+IF($C$85=0,0,$L$17-$L$11-$L$12+($L$11+$L$12)*C83/$C$85) -> 0 | F83: =IF($C$85=0,0,$M$89*C83/$C$85+$M$90) -> 0 | H83: =IF($D$85=0,0,(YTotExp-(YTotRet+YTotExp-$L$11-$L$12))/(YPrice/100)/(C83-$E$13*$E$7/$E$8)/($E$8/$E$7)) -> 0 | K83: =IF(F83-$M$90=0,0,(YTotExp-(YTotRet+YTotExp-$L$11-$L$12))/(F83-$M$90)*100) -> 0
C84: =+C85+C73-C74 -> 1.03 | D84: =+IF($C$85=0,0,$L$17-$L$11-$L$12+($L$11+$L$12)*C84/$C$85) -> 0 | F84: =IF($C$85=0,0,$M$89*C84/$C$85+$M$90) -> 0 | H84: =IF($D$85=0,0,(YTotExp-(YTotRet+YTotExp-$L$11-$L$12))/(YPrice/100)/(C84-$E$13*$E$7/$E$8)/($E$8/$E$7)) -> 0 | K84: =IF(F84-$M$90=0,0,(YTotExp-(YTotRet+YTotExp-$L$11-$L$12))/(F84-$M$90)*100) -> 0
C85: 1 | D85: =+L17 -> 0 | F85: =M89+M90 -> 0 | H85: =IF($D$85=0,0,(YTotExp-(YTotRet+YTotExp-$L$11-$L$12))/(YPrice/100)/(C85-$E$13*$E$7/$E$8)/($E$8/$E$7)) -> 0 | K85: =IF(F85-$M$90=0,0,(YTotExp-(YTotRet+YTotExp-$L$11-$L$12))/(F85-$M$90)*100) -> 0
C86: =+C85+C75-C74 -> 0.97 | D86: =+IF($C$85=0,0,$L$17-$L$11-$L$12+($L$11+$L$12)*C86/$C$85) -> 0 | F86: =IF($C$85=0,0,$M$89*C86/$C$85+$M$90) -> 0 | H86: =IF($D$85=0,0,(YTotExp-(YTotRet+YTotExp-$L$11-$L$12))/(YPrice/100)/(C86-$E$13*$E$7/$E$8)/($E$8/$E$7)) -> 0 | K86: =IF(F86-$M$90=0,0,(YTotExp-(YTotRet+YTotExp-$L$11-$L$12))/(F86-$M$90)*100) -> 0
C87: =+C86+C76-C75 -> 0.94 | D87: =+IF($C$85=0,0,$L$17-$L$11-$L$12+($L$11+$L$12)*C87/$C$85) -> 0 | F87: =IF($C$85=0,0,$M$89*C87/$C$85+$M$90) -> 0 | H87: =IF($D$85=0,0,(YTotExp-(YTotRet+YTotExp-$L$11-$L$12))/(YPrice/100)/(C87-$E$13*$E$7/$E$8)/($E$8/$E$7)) -> 0 | K87: =IF(F87-$M$90=0,0,(YTotExp-(YTotRet+YTotExp-$L$11-$L$12))/(F87-$M$90)*100) -> 0
D89: ="Your Male "&F8&" Price" -> Your Male Calf Price | K89: =+J11 -> 0 | M89: =(E11*G11+E12*G12)*100 -> 0
D90: ="Your Female "&F8&" Price" -> Your Female Calf Price | K90: =+J12 -> 0 | M90: =(E13*G13+E14*G14)*100 -> 0
D91: ="Your Weighted Average "&F8&" Price ($/cwt)" -> Your Weighted Average Calf Price ($/cwt) | K91: =+IF((E11*G11+E12*G12)=0,0,(L11+L12)/(E11*G11+E12*G12)) -> 0
A93: Developed by Blake Bennet, Associate Professor and Extension Economist, Texas A&M AgriLife Extension Service, 972-952-9273.
A95: Information presented is prepared solely as a general guide and not intended to recognize or predict the costs and returns from any one operation. Brand names are mentioned only as examples and imply no endorsement.

Sheet CowCalfNative
A1: Projections for Planning Purposes Only -- Not to be Used without Updating
A2: 2024 Estimated Costs and Returns per Animal Unit
A3: Cow-Calf Native Pasture
A4: Enter your name for this budget in the cell above.
A5: Enter Your Values in the cells highlighed in MAROON.
E6: Your Cows
B7: Animal Units (AU) | D7: 40 | F7: Animal Unit | N7: Your
B8: Breeding Females | D8: 40 | F8: Calf | G8: Your | M8: Enterprise | N8: Enterprise
E9: Your | F9: Quantity | G9: Quantity | J9: Your | L9: Your | M9: Total | N9: Total
A10: REVENUE | D10: Head | E10: Head | F10: Per Head | G10: Per Head | H10: Units | I10: $/Unit | J10: $/Unit | K10: Total | L10: Total | M10: ="(" & D7 & " AUs)" -> (40 AUs) | N10: ="(" & E7 & " AUs)" -> ( AUs)
B11: Steer | D11: 0.425 | F11: 4.8 | H11: CWT | I11: 285 | K11: 581.4 | L11: =+E11*G11*J11 -> 0 | M11: 23256 | N11: =+L11*E$7 -> 0
B12: Heifer | D12: 0.325 | F12: 4.5 | H12: CWT | I12: 270 | K12: 394.875 | L12: =+E12*G12*J12 -> 0 | M12: 15795 | N12: =+L12*E$7 -> 0
B13: Cull Cow | D13: 0.1 | F13: 9 | H13: CWT | I13: 95 | K13: 85.5 | L13: 0 | M13: 3420 | N13: 0
B14: Cull Bull | D14: 0 | F14: 18 | H14: CWT | I14: 120 | K14: 0 | L14: 0 | M14: 0 | N14: 0
D15: 0 | F15: 0 | I15: 0 | K15: 0 | L15: 0 | M15: 0 | N15: 0
D16: 0 | F16: 0 | I16: 0 | K16: 0 | L16: 0 | M16: 0 | N16: 0
A17: Total Revenue | F17: 350.25 | K17: 1061.775 | L17: =+SUM(L11:L16) -> 0 | M17: 42471 | N17: =+SUM(N11:N16) -> 0
F18: 440.25
F19: 90 | M19: Enterprise | N19: Enterprise
A20: VARIABLE COSTS | F20: Quantity | G20: Quantity | H20: Units | I20: $/Unit | J20: $/Unit | K20: Total | L20: Total | M20: Total | N20: Total
A21: Production Costs
B22: Miscellaneous
C23: Miscellaneous - Cow | F23: 1 | H23: AU | I23: 4 | K23: 4 | L23: =+J23*G23 -> 0 | M23: 160 | N23: =+L23*E$7 -> 0
F24: 1 | I24: 0 | K24: 0 | L24: 0 | M24: 0 | N24: 0
F25: 1 | I25: 0 | K25: 0 | L25: 0 | M25: 0 | N25: 0
B26: Marketing Expense | F26: 1 | H26: AU | I26: 39.99675 | K26: 39.99675 | L26: 0 | M26: 1599.87 | N26: 0
B27: Feed
C28: Supplement | F28: 100 | H28: Pound | I28: 0.25 | K28: 25 | L28: =+J28*G28 -> 0 | M28: 1000 | N28: =+L28*E$7 -> 0
C29: Salt & Minerals -Cows | F29: 1 | H29: Bag | I29: 32.5 | K29: 32.5 | L29: 0 | M29: 1300 | N29: 0
C30: Bermuda Hay | F30: 5 | H30: Roll | I30: 120 | K30: 600 | L30: 0 | M30: 24000 | N30: 0
F31: 0 | I31: 0 | K31: 0 | L31: 0 | M31: 0 | N31: 0
F32: 0 | I32: 0 | K32: 0 | L32: 0 | M32: 0 | N32: 0
F33: 0 | I33: 0 | K33: 0 | L33: 0 | M33: 0 | N33: 0
B34: Vet. Medicine
C35: Vet. Medicine - Cow | F35: 1 | H35: Head | I35: 15 | K35: 15 | L35: 0 | M35: 600 | N35: =+L35*E$7 -> 0
F36: 0 | I36: 0 | K36: 0 | L36: 0 | M36: 0 | N36: 0
F37: 0 | I37: 0 | K37: 0 | L37: 0 | M37: 0 | N37: 0
F38: 0 | I38: 0 | K38: 0 | L38: 0 | M38: 0 | N38: 0
B39: Fuel | F39: 1 | H39: AU | I39: 14.21975 | K39: 14.21975 | L39: 0 | M39: 568.79 | N39: 0
B40: Lube (As a % of fuel) | F40: 0.1 | H40: Percent | I40: 14.21975 | K40: 1.421975 | L40: 0 | M40: 56.879 | N40: 0
B41: Repairs | F41: 1 | H41: AU | I41: 18.1716375 | K41: 18.1716375 | L41: 0 | M41: 726.8655 | N41: 0
B42: Labor | F42: 8.508 | H42: Hours | I42: 12 | K42: 102.096 | L42: 0 | M42: 4083.84 | N42: 0
B43: Utilities | F43: 1 | H43: AU | I43: 0 | K43: 0 | L43: 0 | M43: 0 | N43: 0
K44: 0 | L44: =+J44*G44 -> 0 | M44: 0 | N44: 0
B45: Purchase Breeding Female | F45: 1 | I45: 0 | K45: 0 | L45: =+J45*G45 -> 0 | M45: 0 | N45: 0
B46: Purchase Breeding Male | F46: 1 | I46: 0 | K46: 0 | L46: 0 | M46: 0 | N46: 0
B47: Purchase Older Repalcement Female | F47: 1 | I47: 0 | K47: 0 | L47: 0 | M47: 0 | N47: 0
B48: Purchase Younger Repalcement Female | F48: 1 | I48: 0 | K48: 0 | L48: 0 | M48: 0 | N48: 0
B49: Interest on Credit Line | I49: 0.08 | K49: 55.46133931 | L49: =+SUM(L21:L48)/2*J49 -> 0 | M49: 2218.453572 | N49: 0
A50: Total Variable Costs | K50: 907.8674518 | L50: =+SUM(L23:L49) -> 0 | M50: 36314.69807 | N50: =+SUM(N23:N49) -> 0
A52: Planned Returns Above Variable Costs: | K52: 153.9075482 | L52: =+L17-L50 -> 0 | M52: 6156.301928 | N52: =+N17-N50 -> 0
B53: Average Calf Breakeven Price to Cover Variable Costs | I53: 234.7944188 | J53: =IF((E11*G11+E12*G12)=0,"n/a",(L50-SUM(L13:L16))/(E11*G11+E12*G12)) -> n/a | K53: CWT
M54: Enterprise | N54: Enterprise
A55: FIXED COSTS | F55: Quantity | G55: Quantity | H55: Units | I55: $/Unit | J55: $/Unit | K55: Total | L55: Total | M55: Total | N55: Total
B56: Depreciation - Equipment | F56: 1 | H56: AU | I56: 27.98741 | K56: 27.98741 | L56: =+G56*J56 -> 0 | M56: 1119.4964 | N56: =+L56*E$7 -> 0
B57: Depreciation - Livestock | F57: 1 | H57: AU | I57: 14.98333333 | K57: 14.98333333 | L57: 0 | M57: 599.3333333 | N57: 0
B58: Equipment Investment | F58: 876.15715 | H58: dollars | I58: 0.08 | K58: 70.092572 | L58: 0 | M58: 2803.70288 | N58: 0
B59: Insurance | F59: 1 | H59: AU | I59: 0 | K59: 0 | L59: 0 | M59: 0 | N59: 0
B60: Management Fee, Owner/Operator Labor | F60: 1 | H60: AU | I60: 0 | K60: 0 | L60: =+J60*G60 -> 0 | M60: 0 | N60: 0
B61: Salaried Labor | F61: 1 | H61: AU | I61: 0 | K61: 0 | L61: =+J61*G61 -> 0 | M61: 0 | N61: 0
B62: Pasture Cost | F62: 3.14 | H62: Acres | I62: 12 | K62: 37.68 | L62: 0 | M62: 1507.2 | N62: 0
K63: 0 | L63: 0 | M63: 0 | N63: 0
K64: 0 | L64: 0 | M64: 0 | N64: 0
A65: Total Fixed Costs | K65: 150.7433153 | L65: =+SUM(L56:L62) -> 0 | M65: 6029.732613 | N65: =+SUM(N56:N62) -> 0
A66: Total Costs | K66: 1058.610767 | L66: =+L50+L65 -> 0 | M66: 42344.43069 | N66: =+N50+N65 -> 0
A67: Planned Returns to Management, Risk, and Profit: | K67: 3.164232858 | L67: =+L17-L66 -> 0 | M67: 126.5693143 | N67: =+N17-N66 -> 0
B68: Average Calf Breakeven Price to Cover Total Costs | I68: 277.8331955 | J68: =IF((E11*G11+E12*G12)=0,"n/a",(L66-SUM(L13:L16))/(E11*G11+E12*G12)) -> n/a | K68: CWT
C70: Sensitivity Analysis for Example
C71: Example Weaning Percent | D71: Example Gross Sales per Animal Unit | F71: Pounds Produced per Animal Unit | H71: Example Breakeven Calf Pay Weight to Cover Total Cost | K71: Example Average Breakeven Price to Cover Total Cost
C72: 0.91 | D72: 1130.688529 | F72: 464.9735294 | H72: 431.0059194 | K72: 259.5145232
C73: 0.88 | D73: 1096.231765 | F73: 452.6117647 | H73: 447.5830701 | K73: 268.3616093
C74: 0.85 | D74: 1061.775 | F74: 440.25 | H74: 465.4863929 | K74: 277.8331955
C75: 0.82 | D75: 1027.318235 | F75: 427.8882353 | H75: 484.8816593 | K75: 287.9978246
C76: 0.79 | D76: 992.8614706 | F76: 415.5264706 | H76: 505.9634706 | K76: 298.9344508
D78: ="Example Male "&F8&" Price" -> Example Male Calf Price | K78: =+I11 -> 285
D79: ="Example Female "&F8&" Price" -> Example Female Calf Price | K79: =+I12 -> 270
D80: ="Example Weighted Average "&F8&" Price ($/cwt)" -> Example Weighted Average Calf Price ($/cwt) | K80: =+(K11+K12)/(D11*F11+D12*F12) -> 278.7366167
C81: Sensitivity Analysis for Your Values
C82: Your Weaning Percent | D82: ="Your Gross Sales per "&F7 -> Your Gross Sales per Animal Unit | F82: ="Pounds Produced per "&F7 -> Pounds Produced per Animal Unit | H82: ="Your Breakeven "&F8&" Pay Weight to Cover Total Cost" -> Your Breakeven Calf Pay Weight to Cover Total Cost | K82: Your Average Breakeven Price to Cover Total Cost
C83: =+C84+C72-C73 -> 1.06 | D83: =+IF($C$85=0,0,$L$17-$L$11-$L$12+($L$11+$L$12)*C83/$C$85) -> 0 | F83: =IF($C$85=0,0,$M$89*C83/$C$85+$M$90) -> 0 | H83: =IF($D$85=0,0,(YTotExp-(YTotRet+YTotExp-$L$11-$L$12))/(YPrice/100)/(C83-$E$13*$E$7/$E$8)/($E$8/$E$7)) -> 0 | K83: =IF(F83-$M$90=0,0,(YTotExp-(YTotRet+YTotExp-$L$11-$L$12))/(F83-$M$90)*100) -> 0
C84: =+C85+C73-C74 -> 1.03 | D84: =+IF($C$85=0,0,$L$17-$L$11-$L$12+($L$11+$L$12)*C84/$C$85) -> 0 | F84: =IF($C$85=0,0,$M$89*C84/$C$85+$M$90) -> 0 | H84: =IF($D$85=0,0,(YTotExp-(YTotRet+YTotExp-$L$11-$L$12))/(YPrice/100)/(C84-$E$13*$E$7/$E$8)/($E$8/$E$7)) -> 0 | K84: =IF(F84-$M$90=0,0,(YTotExp-(YTotRet+YTotExp-$L$11-$L$12))/(F84-$M$90)*100) -> 0
C85: 1 | D85: =+L17 -> 0 | F85: =M89+M90 -> 0 | H85: =IF($D$85=0,0,(YTotExp-(YTotRet+YTotExp-$L$11-$L$12))/(YPrice/100)/(C85-$E$13*$E$7/$E$8)/($E$8/$E$7)) -> 0 | K85: =IF(F85-$M$90=0,0,(YTotExp-(YTotRet+YTotExp-$L$11-$L$12))/(F85-$M$90)*100) -> 0
C86: =+C85+C75-C74 -> 0.97 | D86: =+IF($C$85=0,0,$L$17-$L$11-$L$12+($L$11+$L$12)*C86/$C$85) -> 0 | F86: =IF($C$85=0,0,$M$89*C86/$C$85+$M$90) -> 0 | H86: =IF($D$85=0,0,(YTotExp-(YTotRet+YTotExp-$L$11-$L$12))/(YPrice/100)/(C86-$E$13*$E$7/$E$8)/($E$8/$E$7)) -> 0 | K86: =IF(F86-$M$90=0,0,(YTotExp-(YTotRet+YTotExp-$L$11-$L$12))/(F86-$M$90)*100) -> 0
C87: =+C86+C76-C75 -> 0.94 | D87: =+IF($C$85=0,0,$L$17-$L$11-$L$12+($L$11+$L$12)*C87/$C$85) -> 0 | F87: =IF($C$85=0,0,$M$89*C87/$C$85+$M$90) -> 0 | H87: =IF($D$85=0,0,(YTotExp-(YTotRet+YTotExp-$L$11-$L$12))/(YPrice/100)/(C87-$E$13*$E$7/$E$8)/($E$8/$E$7)) -> 0 | K87: =IF(F87-$M$90=0,0,(YTotExp-(YTotRet+YTotExp-$L$11-$L$12))/(F87-$M$90)*100) -> 0
D89: ="Your Male "&F8&" Price" -> Your Male Calf Price | K89: =+J11 -> 0 | M89: =(E11*G11+E12*G12)*100 -> 0
D90: ="Your Female "&F8&" Price" -> Your Female Calf Price | K90: =+J12 -> 0 | M90: =(E13*G13+E14*G14)*100 -> 0
D91: ="Your Weighted Average "&F8&" Price ($/cwt)" -> Your Weighted Average Calf Price ($/cwt) | K91: =+IF((E11*G11+E12*G12)=0,0,(L11+L12)/(E11*G11+E12*G12)) -> 0
A93: Developed by Blake Bennet, Associate Professor and Extension Economist, Texas A&M AgriLife Extension Service, 972-952-9273.
A95: Information presented is prepared solely as a general guide and not intended to recognize or predict the costs and returns from any one operation. Brand names are mentioned only as examples and imply no endorsement.

Sheet StockersNative
A1: Projections for Planning Purposes Only -- Not to be Used without Updating
A2: 2024 Estimated Costs and Returns per Animal
A3: Stockers on Native Pasture
A4: Enter your name for this budget in the cell above.
A5: Enter Your Values in the cells highlighed in MAROON. | M5: Stocker
E6: Your Head | N6: Your
B7: Number of Head | D7: 320 | G7: Your | M7: Enterprise | N7: Enterprise
E8: Your | F8: Pay Weight | G8: Weight | J8: Your | L8: Your | M8: Total | N8: Total
A9: REVENUE | D9: Head | E9: Head | F9: or Amount | G9: or Amount | H9: Units | I9: $/Unit | J9: $/Unit | K9: Total | L9: Total | M9: ="(" & D7 & " Head)" -> (320 Head) | N9: ="(" & E7 & " Head)" -> ( Head)
B11: Stocker | D11: 0.98 | F11: 7.5 | H11: CWT | I11: 250 | K11: 1837.5 | L11: =+J11*G11*E11 -> 0 | M11: 588000 | N11: =+L11*E$7 -> 0
D12: 0.98 | F12: 0 | I12: 0 | K12: 0 | L12: 0 | M12: 0 | N12: 0
D13: 0.98 | F13: 0 | I13: 0 | K13: 0 | L13: 0 | M13: 0 | N13: 0
A14: Total Revenue | K14: 1837.5 | L14: =+L11 -> 0 | M14: 588000 | N14: 0
M15: Enterprise | N15: Enterprise
A16: VARIABLE COSTS | F16: Quantity | G16: Quantity | H16: Units | I16: $/Unit | J16: $/Unit | K16: Total | L16: Total | M16: Total | N16: Total
A17: Production Costs
B18: Stocker Purchase | F18: 4.5 | H18: CWT | I18: 310 | K18: 1395 | L18: =+J18*G18 -> 0 | M18: 446400 | N18: =+L18*E$7 -> 0
B19: Stocker Delivery | F19: 1 | H19: Head | I19: 0 | K19: 0 | L19: =+J19*G19 -> 0 | M19: 0 | N19: =+L19*E$7 -> 0
B20: Grazing
C21: Acre Lease | F21: 2 | H21: Acre | I21: 12 | K21: 24 | L21: 0 | M21: 7680 | N21: =+L21*E$7 -> 0
C22: Grazing by Month | F22: 0 | H22: Month | I22: 0 | K22: 0 | L22: 0 | M22: 0 | N22: 0
C23: Gain Contract | F23: 0 | H23: Pounds | I23: 0 | K23: 0 | L23: 0 | M23: 0 | N23: 0
C24: On Weight Per Month | F24: 0 | H24: Month | I24: 0 | K24: 0 | L24: =+G24*J24*G18 -> 0 | M24: 0 | N24: 0
B25: Health
C26: Health - Stocker | F26: 1 | H26: Head | I26: 30 | K26: 30 | L26: =+J26*G26 -> 0 | M26: 9600 | N26: =+L26*E$7 -> 0
F27: 0 | I27: 0 | K27: 0 | L27: 0 | M27: 0 | N27: 0
F28: 0 | I28: 0 | K28: 0 | L28: 0 | M28: 0 | N28: 0
F29: 0 | I29: 0 | K29: 0 | L29: 0 | M29: 0 | N29: 0
B30: Feed
C31: Bermuda Hay | F31: 0.25 | H31: Roll | I31: 120 | K31: 30 | L31: 0 | M31: 9600 | N31: 0
C32: Mineral - Bag | F32: 1 | H32: Bag | I32: 50 | K32: 50 | L32: 0 | M32: 16000 | N32: 0
C33: Supplement | F33: 450 | H33: Pound | I33: 0.25 | K33: 112.5 | L33: 0 | M33: 36000 | N33: 0
F34: 0 | I34: 0 | K34: 0 | L34: 0 | M34: 0 | N34: 0
F35: 0 | I35: 0 | K35: 0 | L35: 0 | M35: 0 | N35: 0
F36: 0 | I36: 0 | K36: 0 | L36: 0 | M36: 0 | N36: 0
B37: Miscellaneous
C38: Miscellaneous - Stocker | F38: 1 | H38: Head | I38: 4 | K38: 4 | L38: =+J38*G38 -> 0 | M38: 1280 | N38: =+L38*E$7 -> 0
F39: 1 | I39: 0 | K39: 0 | L39: 0 | M39: 0 | N39: 0
F40: 1 | I40: 0 | K40: 0 | L40: 0 | M40: 0 | N40: 0
B41: Fuel | F41: 1 | H41: Head | I41: 1.07375 | K41: 1.07375 | L41: 0 | M41: 343.6 | N41: 0
B42: Lube (As a % of fuel) | F42: 0.1 | H42: Percent | I42: 1.07375 | K42: 0.107375 | L42: 0 | M42: 34.36 | N42: 0
B43: Utilities | F43: 1 | H43: Head | I43: 0 | K43: 0 | L43: 0 | M43: 0 | N43: 0
B44: Repairs | F44: 1 | H44: Head | I44: 0.857 | K44: 0.857 | L44: 0 | M44: 274.24 | N44: 0
B45: Marketing | F45: 0.98 | H45: Head | I45: 11 | K45: 10.78 | L45: 0 | M45: 3449.6 | N45: 0
B46: Labor | F46: 1 | H46: Head | I46: 26.1375 | K46: 26.1375 | L46: 0 | M46: 8364 | N46: 0
K47: 0 | L47: =+J47*G47 -> 0 | M47: 0 | N47: =+L47*E$7 -> 0
K48: 0 | L48: =+J48*G48 -> 0 | M48: 0 | N48: =+L48*E$7 -> 0
B49: Interest on Credit Line | I49: 0.08 | K49: 63.72832082 | L49: =+SUM(L18:L46)*J49/2 -> 0 | M49: 20393.06266 | N49: 0
A50: Total Variable Costs | K50: 1748.183946 | L50: =+SUM(L18:L49) -> 0 | M50: 559418.8627 | N50: =+SUM(N18:N49) -> 0
A52: Planned Returns Above Variable Costs: | K52: 89.31605418 | L52: =+L14-L50 -> 0 | M52: 28581.13734 | N52: =+N14-N50 -> 0
B54: Breakeven Price to Cover Variable Costs | I54: 237.8481559 | J54: =+IF(G11=0,"n/a",(L50-SUM(L12:L13))/(G11*E11)) -> n/a | K54: CWT
M55: Enterprise | N55: Enterprise
A56: FIXED COSTS | F56: Quantity | G56: Quantity | H56: Units | I56: $/Unit | J56: $/Unit | K56: Total | L56: Total | M56: Total | N56: Total
B58: Depreciation | F58: 1 | H58: Head | I58: 10.7125 | K58: 10.7125 | L58: =+J58*G58 -> 0 | M58: 3428 | N58: =+L58*E$7 -> 0
B59: Equipment Investment | F59: 53.71875 | H59: dollars | I59: 0.08 | K59: 4.2975 | L59: 0 | M59: 1375.2 | N59: 0
B60: Salaried Labor | F60: 1 | H60: Head | I60: 0 | K60: 0 | L60: 0 | M60: 0 | N60: 0
B61: Management Fee, Owner/Operator Labor | F61: 1 | H61: Head | I61: 0 | K61: 0 | L61: 0 | M61: 0 | N61: 0
B62: Insurance | F62: 1 | H62: Head | I62: 0 | K62: 0 | L62: 0 | M62: 0 | N62: 0
K63: 0 | L63: 0 | M63: 0 | N63: 0
K64: 0 | L64: 0 | M64: 0 | N64: 0
A65: Total Fixed Costs | K65: 15.01 | L65: =+SUM(L58:L62) -> 0 | M65: 4803.2 | N65: =+SUM(N58:N62) -> 0
A67: Total Costs | K67: 1763.193946 | L67: =+L50+L65 -> 0 | M67: 564222.0627 | N67: =+N50+N65 -> 0
A69: Planned Returns to Management, Risk, and Profit: | K69: 74.30605418 | L69: =+L52-L65 -> 0 | M69: 23777.93734 | N69: =+N52-N65 -> 0
A71: Breakeven Price to Cover Total Costs | I71: 239.8903328 | J71: =+IF(G11=0,"n/a",(L67-SUM(L12:L13))/(G11*E11)) -> n/a | K71: CWT
C73: Example Breakeven Sensitivity Analysis
F74: Purchase Weight (Lbs/Hd): 450 | H74: Sales Price/Cwt of $Total
F75: Sales Price/Cwt 250.00 | H75: Purchase Price/Cwt 310.00
C76: ADG (Lbs/day) | D76: Net Pay Weight with Shrink | F76: Breakeven Purchase Price ($/CWT) | H76: Breakeven Sales Price ($/CWT)
C77: 1.868852459 | D77: 792 | F77: 349.3791232 | H77: 227.1688757
C78: 1.713114754 | D78: 763.5 | F78: 333.8624565 | H78: 235.6486569
C79: 1.557377049 | D79: 750 | F79: 326.5124565 | H79: 239.8903328
C80: 1.401639344 | D80: 706.5 | F80: 302.8291232 | H80: 254.6606505
C81: 1.245901639 | D81: 678 | F81: 287.3124565 | H81: 265.3654124
C82: Your Average Daily Gain | E82: 0 | F82: Pounds per Day
C83: =+"Your Animal"&IF(M5="Stocker"," Grazing"," Feeding")&" Days" -> Your Animal Grazing Days | E83: 0 | F83: Days
C84: Your Sale Shrink | E84: 0
C86: Your Breakeven Sensitivity Analysis
F87: =+"Purchase Weight (Lbs/Hd): "&G18*100 -> Purchase Weight (Lbs/Hd): 0 | H87: Sales Price/Cwt of $Total
F88: ="Sales Price/Cwt "&IF(J11="",".00",TEXT(J11,"#.00")) -> Sales Price/Cwt .00 | H88: ="Purchase Price/Cwt "&IF(J18="",".00",TEXT(J18,"#.00")) -> Purchase Price/Cwt .00
C89: ADG (Lbs/day) | D89: Net Pay Weight with Shrink | F89: Breakeven Purchase Price ($/CWT) | H89: Breakeven Sales Price ($/CWT)
C90: =+C92*1.2 -> 0 | D90: =+C90*$E$83+$G$18*100*(1-$E$84) -> 0 | F90: =IF($G$18=0,0,(((D90*$J$11/100*$E$11)-($L$67-SUM($J$12:$J$13)-$L$18))/(100*$G$18))*100) -> 0 | H90: =IF($E$11=0,0,($L$67-SUM($J$12:$J$13))/(D90*$E$11/100)) -> 0
C91: =+C92*1.1 -> 0 | D91: =+C91*$E$83+$G$18*100*(1-$E$84) -> 0 | F91: =IF($G$18=0,0,(((D91*$J$11/100*$E$11)-($L$67-SUM($J$12:$J$13)-$L$18))/(100*$G$18))*100) -> 0 | H91: =IF($E$11=0,0,($L$67-SUM($J$12:$J$13))/(D91*$E$11/100)) -> 0
C92: =+E82 -> 0 | D92: =+C92*$E$83+$G$18*100*(1-$E$84) -> 0 | F92: =IF($G$18=0,0,(((D92*$J$11/100*$E$11)-($L$67-SUM($J$12:$J$13)-$L$18))/(100*$G$18))*100) -> 0 | H92: =IF($E$11=0,0,($L$67-SUM($J$12:$J$13))/(D92*$E$11/100)) -> 0
C93: =+C92*0.9 -> 0 | D93: =+C93*$E$83+$G$18*100*(1-$E$84) -> 0 | F93: =IF($G$18=0,0,(((D93*$J$11/100*$E$11)-($L$67-SUM($J$12:$J$13)-$L$18))/(100*$G$18))*100) -> 0 | H93: =IF($E$11=0,0,($L$67-SUM($J$12:$J$13))/(D93*$E$11/100)) -> 0
C94: =+C92*0.8 -> 0 | D94: =+C94*$E$83+$G$18*100*(1-$E$84) -> 0 | F94: =IF($G$18=0,0,(((D94*$J$11/100*$E$11)-($L$67-SUM($J$12:$J$13)-$L$18))/(100*$G$18))*100) -> 0 | H94: =IF($E$11=0,0,($L$67-SUM($J$12:$J$13))/(D94*$E$11/100)) -> 0
A96: Developed by Blake Bennet, Associate Professor and Extension Economist, Texas A&M AgriLife Extension Service, 972-952-9273.
A98: Information presented is prepared solely as a general guide and not intended to recognize or predict the costs and returns from any one operation. Brand names are mentioned only as examples and imply no endorsement.

Sheet StockerNovFeb
A1: Projections for Planning Purposes Only -- Not to be Used without Updating
A2: 2024 Estimated Costs and Returns per Animal
A3: November- February Stockers
A4: Enter your name for this budget in the cell above.
A5: Enter Your Values in the cells highlighed in MAROON. | M5: Stocker
E6: Your Head | N6: Your
B7: Number of Head | D7: 320 | G7: Your | M7: Enterprise | N7: Enterprise
E8: Your | F8: Pay Weight | G8: Weight | J8: Your | L8: Your | M8: Total | N8: Total
A9: REVENUE | D9: Head | E9: Head | F9: or Amount | G9: or Amount | H9: Units | I9: $/Unit | J9: $/Unit | K9: Total | L9: Total | M9: ="(" & D7 & " Head)" -> (320 Head) | N9: ="(" & E7 & " Head)" -> ( Head)
B11: Stocker | D11: 0.975 | F11: 6.7 | H11: CWT | I11: 270 | K11: 1763.775 | L11: =+J11*G11*E11 -> 0 | M11: 564408 | N11: =+L11*E$7 -> 0
D12: 0.975 | F12: 0 | I12: 0 | K12: 0 | L12: 0 | M12: 0 | N12: 0
D13: 0.975 | F13: 0 | I13: 0 | K13: 0 | L13: 0 | M13: 0 | N13: 0
A14: Total Revenue | K14: 1763.775 | L14: =+L11 -> 0 | M14: 564408 | N14: 0
M15: Enterprise | N15: Enterprise
A16: VARIABLE COSTS | F16: Quantity | G16: Quantity | H16: Units | I16: $/Unit | J16: $/Unit | K16: Total | L16: Total | M16: Total | N16: Total
A17: Production Costs
B18: Stocker Purchase | F18: 4.7 | H18: CWT | I18: 300 | K18: 1410 | L18: =+J18*G18 -> 0 | M18: 451200 | N18: =+L18*E$7 -> 0
B19: Stocker Delivery | F19: 1 | H19: Head | I19: 0 | K19: 0 | L19: =+J19*G19 -> 0 | M19: 0 | N19: =+L19*E$7 -> 0
B20: Grazing
C21: Acre Lease | F21: 0.25 | H21: Acre | I21: 12 | K21: 3 | L21: 0 | M21: 960 | N21: =+L21*E$7 -> 0
C22: Grazing by Month | F22: 0 | H22: Month | I22: 0 | K22: 0 | L22: 0 | M22: 0 | N22: 0
C23: Gain Contract | F23: 187.9487179 | H23: Pounds | I23: 0.75 | K23: 140.9615385 | L23: 0 | M23: 45107.69231 | N23: 0
C24: On Weight Per Month | F24: 0 | H24: Month | I24: 0 | K24: 0 | L24: =+G24*J24*G18 -> 0 | M24: 0 | N24: 0
B25: Health
C26: Health - Stocker | F26: 1 | H26: Head | I26: 30 | K26: 30 | L26: =+J26*G26 -> 0 | M26: 9600 | N26: =+L26*E$7 -> 0
F27: 0 | I27: 0 | K27: 0 | L27: 0 | M27: 0 | N27: 0
F28: 0 | I28: 0 | K28: 0 | L28: 0 | M28: 0 | N28: 0
F29: 0 | I29: 0 | K29: 0 | L29: 0 | M29: 0 | N29: 0
B30: Feed
C31: Bermuda Hay | F31: 1 | H31: Roll | I31: 120 | K31: 120 | L31: 0 | M31: 38400 | N31: 0
C32: Salt & Minerals -Stockers | F32: 12 | H32: Pound | I32: 0.3 | K32: 3.6 | L32: 0 | M32: 1152 | N32: 0
F33: 0 | I33: 0 | K33: 0 | L33: 0 | M33: 0 | N33: 0
F34: 0 | I34: 0 | K34: 0 | L34: 0 | M34: 0 | N34: 0
F35: 0 | I35: 0 | K35: 0 | L35: 0 | M35: 0 | N35: 0
B36: Miscellaneous
C37: Miscellaneous - Stocker | F37: 1 | H37: Head | I37: 4 | K37: 4 | L37: =+J37*G37 -> 0 | M37: 1280 | N37: =+L37*E$7 -> 0
F38: 1 | I38: 0 | K38: 0 | L38: 0 | M38: 0 | N38: 0
F39: 1 | I39: 0 | K39: 0 | L39: 0 | M39: 0 | N39: 0
B40: Fuel | F40: 1 | H40: Head | I40: 3.3996875 | K40: 3.3996875 | L40: 0 | M40: 1087.9 | N40: 0
B41: Lube (As a % of fuel) | F41: 0.1 | H41: Percent | I41: 3.3996875 | K41: 0.33996875 | L41: 0 | M41: 108.79 | N41: 0
B42: Utilities | F42: 1 | H42: Head | I42: 0 | K42: 0 | L42: 0 | M42: 0 | N42: 0
B43: Repairs | F43: 1 | H43: Head | I43: 0.9605133929 | K43: 0.9605133929 | L43: 0 | M43: 307.3642857 | N43: 0
B44: Marketing | F44: 0.975 | H44: Head | I44: 11 | K44: 10.725 | L44: 0 | M44: 3432 | N44: 0
B45: Labor | F45: 1 | H45: Head | I45: 18.3975 | K45: 18.3975 | L45: 0 | M45: 5887.2 | N45: 0
K46: 0 | L46: =+J46*G46 -> 0 | M46: 0 | N46: =+L46*E$7 -> 0
K47: 0 | L47: =+J47*G47 -> 0 | M47: 0 | N47: =+L47*E$7 -> 0
B48: Interest on Credit Line | I48: 0.08 | K48: 56.1645495 | L48: =+SUM(L18:L45)*J48/2 -> 0 | M48: 17972.65584 | N48: 0
A49: Total Variable Costs | K49: 1801.548758 | L49: =+SUM(L18:L48) -> 0 | M49: 576495.6024 | N49: =+SUM(N18:N48) -> 0
A51: Planned Returns Above Variable Costs: | K51: -37.7737576 | L51: =+L14-L49 -> 0 | M51: -12087.60243 | N51: =+N14-N49 -> 0
B53: Breakeven Price to Cover Variable Costs | I53: 275.7824351 | J53: =+IF(G11=0,"n/a",(L49-SUM(L12:L13))/(G11*E11)) -> n/a | K53: CWT
M54: Enterprise | N54: Enterprise
A55: FIXED COSTS | F55: Quantity | G55: Quantity | H55: Units | I55: $/Unit | J55: $/Unit | K55: Total | L55: Total | M55: Total | N55: Total
B57: Depreciation | F57: 1 | H57: Head | I57: 8.888392857 | K57: 8.888392857 | L57: =+J57*G57 -> 0 | M57: 2844.285714 | N57: =+L57*E$7 -> 0
B58: Equipment Investment | F58: 162.96875 | H58: dollars | I58: 0.08 | K58: 13.0375 | L58: 0 | M58: 4172 | N58: 0
B59: Salaried Labor | F59: 1 | H59: Head | I59: 0 | K59: 0 | L59: 0 | M59: 0 | N59: 0
B60: Management Fee, Owner/Operator Labor | F60: 1 | H60: Head | I60: 0 | K60: 0 | L60: 0 | M60: 0 | N60: 0
B61: Insurance | F61: 1 | H61: Head | I61: 0 | K61: 0 | L61: 0 | M61: 0 | N61: 0
K62: 0 | L62: 0 | M62: 0 | N62: 0
K63: 0 | L63: 0 | M63: 0 | N63: 0
A64: Total Fixed Costs | K64: 21.92589286 | L64: =+SUM(L57:L61) -> 0 | M64: 7016.285714 | N64: =+SUM(N57:N61) -> 0
A66: Total Costs | K66: 1823.47465 | L66: =+L49+L64 -> 0 | M66: 583511.8881 | N66: =+N49+N64 -> 0
A68: Planned Returns to Management, Risk, and Profit: | K68: -59.69965046 | L68: =+L51-L64 -> 0 | M68: -19103.88815 | N68: =+N51-N64 -> 0
A70: Breakeven Price to Cover Total Costs | I70: 279.1388673 | J70: =+IF(G11=0,"n/a",(L66-SUM(L12:L13))/(G11*E11)) -> n/a | K70: CWT
C72: Example Breakeven Sensitivity Analysis
F73: Purchase Weight (Lbs/Hd): 470 | H73: Sales Price/Cwt of $Total
F74: Sales Price/Cwt 270.00 | H74: Purchase Price/Cwt 300.00
C75: ADG (Lbs/day) | D75: Net Pay Weight with Shrink | F75: Breakeven Purchase Price ($/CWT) | H75: Breakeven Sales Price ($/CWT)
C76: 1.221666667 | D76: 666.6883333 | F76: 285.4430611 | H76: 280.5254445
C77: 1.119861111 | D77: 650.2976389 | F77: 276.2625285 | H77: 287.5960635
C78: 1.018055556 | D78: 670 | F78: 287.2979467 | H78: 279.1388673
C79: 0.91625 | D79: 617.51625 | F79: 257.9014633 | H79: 302.8633515
C80: 0.8144444444 | D80: 601.1255556 | F80: 248.7209308 | H80: 311.1214277
C81: Your Average Daily Gain | E81: 0 | F81: Pounds per Day
C82: =+"Your Animal"&IF(M5="Stocker"," Grazing"," Feeding")&" Days" -> Your Animal Grazing Days | E82: 0 | F82: Days
C83: Your Sale Shrink | E83: 0
C85: Your Breakeven Sensitivity Analysis
F86: =+"Purchase Weight (Lbs/Hd): "&G18*100 -> Purchase Weight (Lbs/Hd): 0 | H86: Sales Price/Cwt of $Total
F87: ="Sales Price/Cwt "&IF(J11="",".00",TEXT(J11,"#.00")) -> Sales Price/Cwt .00 | H87: ="Purchase Price/Cwt "&IF(J18="",".00",TEXT(J18,"#.00")) -> Purchase Price/Cwt .00
C88: ADG (Lbs/day) | D88: Net Pay Weight with Shrink | F88: Breakeven Purchase Price ($/CWT) | H88: Breakeven Sales Price ($/CWT)
C89: =+C91*1.2 -> 0 | D89: =+C89*$E$82+$G$18*100*(1-$E$83) -> 0 | F89: =IF($G$18=0,0,(((D89*$J$11/100*$E$11)-($L$66-SUM($J$12:$J$13)-$L$18))/(100*$G$18))*100) -> 0 | H89: =IF($E$11=0,0,($L$66-SUM($J$12:$J$13))/(D89*$E$11/100)) -> 0
C90: =+C91*1.1 -> 0 | D90: =+C90*$E$82+$G$18*100*(1-$E$83) -> 0 | F90: =IF($G$18=0,0,(((D90*$J$11/100*$E$11)-($L$66-SUM($J$12:$J$13)-$L$18))/(100*$G$18))*100) -> 0 | H90: =IF($E$11=0,0,($L$66-SUM($J$12:$J$13))/(D90*$E$11/100)) -> 0
C91: =+E81 -> 0 | D91: =+C91*$E$82+$G$18*100*(1-$E$83) -> 0 | F91: =IF($G$18=0,0,(((D91*$J$11/100*$E$11)-($L$66-SUM($J$12:$J$13)-$L$18))/(100*$G$18))*100) -> 0 | H91: =IF($E$11=0,0,($L$66-SUM($J$12:$J$13))/(D91*$E$11/100)) -> 0
C92: =+C91*0.9 -> 0 | D92: =+C92*$E$82+$G$18*100*(1-$E$83) -> 0 | F92: =IF($G$18=0,0,(((D92*$J$11/100*$E$11)-($L$66-SUM($J$12:$J$13)-$L$18))/(100*$G$18))*100) -> 0 | H92: =IF($E$11=0,0,($L$66-SUM($J$12:$J$13))/(D92*$E$11/100)) -> 0
C93: =+C91*0.8 -> 0 | D93: =+C93*$E$82+$G$18*100*(1-$E$83) -> 0 | F93: =IF($G$18=0,0,(((D93*$J$11/100*$E$11)-($L$66-SUM($J$12:$J$13)-$L$18))/(100*$G$18))*100) -> 0 | H93: =IF($E$11=0,0,($L$66-SUM($J$12:$J$13))/(D93*$E$11/100)) -> 0
A95: Developed by Blake Bennet, Associate Professor and Extension Economist, Texas A&M AgriLife Extension Service, 972-952-9273.
A97: Information presented is prepared solely as a general guide and not intended to recognize or predict the costs and returns from any one operation. Brand names are mentioned only as examples and imply no endorsement.

Sheet StockersNovMay
A1: Projections for Planning Purposes Only -- Not to be Used without Updating
A2: 2024 Estimated Costs and Returns per Animal
A3: November- May Stockers
A4: Enter your name for this budget in the cell above.
A5: Enter Your Values in the cells highlighed in MAROON. | M5: Stocker
E6: Your Head | N6: Your
B7: Number of Head | D7: 320 | G7: Your | M7: Enterprise | N7: Enterprise
E8: Your | F8: Pay Weight | G8: Weight | J8: Your | L8: Your | M8: Total | N8: Total
A9: REVENUE | D9: Head | E9: Head | F9: or Amount | G9: or Amount | H9: Units | I9: $/Unit | J9: $/Unit | K9: Total | L9: Total | M9: ="(" & D7 & " Head)" -> (320 Head) | N9: ="(" & E7 & " Head)" -> ( Head)
B11: Stocker | D11: 0.975 | F11: 8.4 | H11: CWT | I11: 235 | K11: 1924.65 | L11: =+J11*G11*E11 -> 0 | M11: 615888 | N11: =+L11*E$7 -> 0
D12: 0.975 | F12: 0 | I12: 0 | K12: 0 | L12: 0 | M12: 0 | N12: 0
D13: 0.975 | F13: 0 | I13: 0 | K13: 0 | L13: 0 | M13: 0 | N13: 0
A14: Total Revenue | K14: 1924.65 | L14: =+L11 -> 0 | M14: 615888 | N14: 0
M15: Enterprise | N15: Enterprise
A16: VARIABLE COSTS | F16: Quantity | G16: Quantity | H16: Units | I16: $/Unit | J16: $/Unit | K16: Total | L16: Total | M16: Total | N16: Total
A17: Production Costs
B18: Stocker Purchase | F18: 4.5 | H18: CWT | I18: 310 | K18: 1395 | L18: =+J18*G18 -> 0 | M18: 446400 | N18: =+L18*E$7 -> 0
B19: Stocker Delivery | F19: 1 | H19: Head | I19: 0 | K19: 0 | L19: =+J19*G19 -> 0 | M19: 0 | N19: =+L19*E$7 -> 0
B20: Grazing
C21: Acre Lease | F21: 0.25 | H21: Acre | I21: 12 | K21: 3 | L21: 0 | M21: 960 | N21: =+L21*E$7 -> 0
C22: Grazing by Month | F22: 0 | H22: Month | I22: 0 | K22: 0 | L22: 0 | M22: 0 | N22: 0
C23: Gain Contract | F23: 378.4615385 | H23: Pounds | I23: 0.75 | K23: 283.8461538 | L23: 0 | M23: 90830.76923 | N23: 0
C24: On Weight Per Month | F24: 0 | H24: Month | I24: 0 | K24: 0 | L24: =+G24*J24*G18 -> 0 | M24: 0 | N24: 0
B25: Health
C26: Health - Stocker | F26: 1 | H26: Head | I26: 30 | K26: 30 | L26: =+J26*G26 -> 0 | M26: 9600 | N26: =+L26*E$7 -> 0
F27: 0 | I27: 0 | K27: 0 | L27: 0 | M27: 0 | N27: 0
F28: 0 | I28: 0 | K28: 0 | L28: 0 | M28: 0 | N28: 0
F29: 0 | I29: 0 | K29: 0 | L29: 0 | M29: 0 | N29: 0
B30: Feed
C31: Bermuda Hay | F31: 1 | H31: Roll | I31: 120 | K31: 120 | L31: 0 | M31: 38400 | N31: 0
C32: Salt & Minerals -Stockers | F32: 15 | H32: Pound | I32: 0.3 | K32: 4.5 | L32: 0 | M32: 1440 | N32: 0
F33: 0 | I33: 0 | K33: 0 | L33: 0 | M33: 0 | N33: 0
F34: 0 | I34: 0 | K34: 0 | L34: 0 | M34: 0 | N34: 0
F35: 0 | I35: 0 | K35: 0 | L35: 0 | M35: 0 | N35: 0
B36: Miscellaneous
C37: Miscellaneous - Stocker | F37: 1 | H37: Head | I37: 4 | K37: 4 | L37: =+J37*G37 -> 0 | M37: 1280 | N37: =+L37*E$7 -> 0
F38: 1 | I38: 0 | K38: 0 | L38: 0 | M38: 0 | N38: 0
F39: 1 | I39: 0 | K39: 0 | L39: 0 | M39: 0 | N39: 0
B40: Fuel | F40: 1 | H40: Head | I40: 3.3996875 | K40: 3.3996875 | L40: 0 | M40: 1087.9 | N40: 0
B41: Lube (As a % of fuel) | F41: 0.1 | H41: Percent | I41: 3.3996875 | K41: 0.33996875 | L41: 0 | M41: 108.79 | N41: 0
B42: Utilities | F42: 1 | H42: Head | I42: 0 | K42: 0 | L42: 0 | M42: 0 | N42: 0
B43: Repairs | F43: 1 | H43: Head | I43: 0.9605133929 | K43: 0.9605133929 | L43: 0 | M43: 307.3642857 | N43: 0
B44: Marketing | F44: 0.975 | H44: Head | I44: 11 | K44: 10.725 | L44: 0 | M44: 3432 | N44: 0
B45: Labor | F45: 1 | H45: Head | I45: 25.2375 | K45: 25.2375 | L45: 0 | M45: 8076 | N45: 0
K46: 0 | L46: =+J46*G46 -> 0 | M46: 0 | N46: =+L46*E$7 -> 0
K47: 0 | L47: =+J47*G47 -> 0 | M47: 0 | N47: =+L47*E$7 -> 0
B48: Interest on Credit Line | I48: 0.08 | K48: 87.87167525 | L48: =+SUM(L18:L45)*J48/2 -> 0 | M48: 28118.93608 | N48: 0
A49: Total Variable Costs | K49: 1968.880499 | L49: =+SUM(L18:L48) -> 0 | M49: 630041.7596 | N49: =+SUM(N18:N48) -> 0
A51: Planned Returns Above Variable Costs: | K51: -44.23049874 | L51: =+L14-L49 -> 0 | M51: -14153.7596 | N51: =+N14-N49 -> 0
B53: Breakeven Price to Cover Variable Costs | I53: 240.4005493 | J53: =+IF(G11=0,"n/a",(L49-SUM(L12:L13))/(G11*E11)) -> n/a | K53: CWT
M54: Enterprise | N54: Enterprise
A55: FIXED COSTS | F55: Quantity | G55: Quantity | H55: Units | I55: $/Unit | J55: $/Unit | K55: Total | L55: Total | M55: Total | N55: Total
B57: Depreciation | F57: 1 | H57: Head | I57: 8.888392857 | K57: 8.888392857 | L57: =+J57*G57 -> 0 | M57: 2844.285714 | N57: =+L57*E$7 -> 0
B58: Equipment Investment | F58: 162.96875 | H58: dollars | I58: 0.08 | K58: 13.0375 | L58: 0 | M58: 4172 | N58: 0
B59: Salaried Labor | F59: 1 | H59: Head | I59: 0 | K59: 0 | L59: 0 | M59: 0 | N59: 0
B60: Management Fee, Owner/Operator Labor | F60: 1 | H60: Head | I60: 0 | K60: 0 | L60: 0 | M60: 0 | N60: 0
B61: Insurance | F61: 1 | H61: Head | I61: 0 | K61: 0 | L61: 0 | M61: 0 | N61: 0
K62: 0 | L62: 0 | M62: 0 | N62: 0
K63: 0 | L63: 0 | M63: 0 | N63: 0
A64: Total Fixed Costs | K64: 21.92589286 | L64: =+SUM(L57:L61) -> 0 | M64: 7016.285714 | N64: =+SUM(N57:N61) -> 0
A66: Total Costs | K66: 1990.806392 | L66: =+L49+L64 -> 0 | M66: 637058.0453 | N66: =+N49+N64 -> 0
A68: Planned Returns to Management, Risk, and Profit: | K68: -66.1563916 | L68: =+L51-L64 -> 0 | M68: -21170.04531 | N68: =+N51-N64 -> 0
A70: Breakeven Price to Cover Total Costs | I70: 243.0777035 | J70: =+IF(G11=0,"n/a",(L66-SUM(L12:L13))/(G11*E11)) -> n/a | K70: CWT
C72: Example Breakeven Sensitivity Analysis
F73: Purchase Weight (Lbs/Hd): 450 | H73: Sales Price/Cwt of $Total
F74: Sales Price/Cwt 235.00 | H74: Purchase Price/Cwt 310.00
C75: ADG (Lbs/day) | D75: Net Pay Weight with Shrink | F75: Breakeven Purchase Price ($/CWT) | H75: Breakeven Sales Price ($/CWT)
C76: 1.627941176 | D76: 861.8691176 | F76: 306.4336054 | H76: 236.9098356
C77: 1.492279412 | D77: 827.5466912 | F77: 288.9577699 | H77: 246.7356502
C78: 1.356617647 | D78: 840 | F78: 295.2985796 | H78: 243.0777035
C79: 1.220955882 | D79: 758.9018382 | F79: 254.0060989 | H79: 269.0535991
C80: 1.085294118 | D80: 724.5794118 | F80: 236.5302635 | H80: 281.7983338
C81: Your Average Daily Gain | E81: 0 | F81: Pounds per Day
C82: =+"Your Animal"&IF(M5="Stocker"," Grazing"," Feeding")&" Days" -> Your Animal Grazing Days | E82: 0 | F82: Days
C83: Your Sale Shrink | E83: 0
C85: Your Breakeven Sensitivity Analysis
F86: =+"Purchase Weight (Lbs/Hd): "&G18*100 -> Purchase Weight (Lbs/Hd): 0 | H86: Sales Price/Cwt of $Total
F87: ="Sales Price/Cwt "&IF(J11="",".00",TEXT(J11,"#.00")) -> Sales Price/Cwt .00 | H87: ="Purchase Price/Cwt "&IF(J18="",".00",TEXT(J18,"#.00")) -> Purchase Price/Cwt .00
C88: ADG (Lbs/day) | D88: Net Pay Weight with Shrink | F88: Breakeven Purchase Price ($/CWT) | H88: Breakeven Sales Price ($/CWT)
C89: =+C91*1.2 -> 0 | D89: =+C89*$E$82+$G$18*100*(1-$E$83) -> 0 | F89: =IF($G$18=0,0,(((D89*$J$11/100*$E$11)-($L$66-SUM($J$12:$J$13)-$L$18))/(100*$G$18))*100) -> 0 | H89: =IF($E$11=0,0,($L$66-SUM($J$12:$J$13))/(D89*$E$11/100)) -> 0
C90: =+C91*1.1 -> 0 | D90: =+C90*$E$82+$G$18*100*(1-$E$83) -> 0 | F90: =IF($G$18=0,0,(((D90*$J$11/100*$E$11)-($L$66-SUM($J$12:$J$13)-$L$18))/(100*$G$18))*100) -> 0 | H90: =IF($E$11=0,0,($L$66-SUM($J$12:$J$13))/(D90*$E$11/100)) -> 0
C91: =+E81 -> 0 | D91: =+C91*$E$82+$G$18*100*(1-$E$83) -> 0 | F91: =IF($G$18=0,0,(((D91*$J$11/100*$E$11)-($L$66-SUM($J$12:$J$13)-$L$18))/(100*$G$18))*100) -> 0 | H91: =IF($E$11=0,0,($L$66-SUM($J$12:$J$13))/(D91*$E$11/100)) -> 0
C92: =+C91*0.9 -> 0 | D92: =+C92*$E$82+$G$18*100*(1-$E$83) -> 0 | F92: =IF($G$18=0,0,(((D92*$J$11/100*$E$11)-($L$66-SUM($J$12:$J$13)-$L$18))/(100*$G$18))*100) -> 0 | H92: =IF($E$11=0,0,($L$66-SUM($J$12:$J$13))/(D92*$E$11/100)) -> 0
C93: =+C91*0.8 -> 0 | D93: =+C93*$E$82+$G$18*100*(1-$E$83) -> 0 | F93: =IF($G$18=0,0,(((D93*$J$11/100*$E$11)-($L$66-SUM($J$12:$J$13)-$L$18))/(100*$G$18))*100) -> 0 | H93: =IF($E$11=0,0,($L$66-SUM($J$12:$J$13))/(D93*$E$11/100)) -> 0
A95: Developed by Blake Bennet, Associate Professor and Extension Economist, Texas A&M AgriLife Extension Service, 972-952-9273.
A97: Information presented is prepared solely as a general guide and not intended to recognize or predict the costs and returns from any one operation. Brand names are mentioned only as examples and imply no endorsement.

Sheet Livestock Budget
A1: Estimated Costs and Returns per Animal or Breeding Female
A3: Livestock Budget
A5: Number of Head of Livestock | D5: 0
A7: Enter Your Values in the cells highlighed in MAROON. | H7: Enterprise
A8: REVENUE | C8: Head | D8: Quantity | E8: Units | F8: $/Unit | G8: Total | H8: Total
B9: Males Sold | C9: 0 | D9: 0 | E9: CWT | F9: 0 | G9: =IF($D$5=0,0,C9/$D$5*D9*F9) -> 0 | H9: =+G9*$D$5 -> 0
B10: Females Sold | C10: 0 | D10: 0 | E10: CWT | F10: 0 | G10: =IF($D$5=0,0,C10/$D$5*D10*F10) -> 0 | H10: =+G10*$D$5 -> 0
B11: Cull Breeding Females | C11: 0 | D11: 0 | E11: CWT | F11: 0 | G11: 0 | H11: 0
B12: Cull Breeding Males | C12: 0 | D12: 0 | E12: CWT | F12: 0 | G12: 0 | H12: 0
B13: Stocker or Feed Animal | C13: 0 | D13: 0 | E13: CWT | F13: 0 | G13: 0 | H13: 0
B14: Other Revenue | C14: 0 | D14: 0 | E14: CWT | F14: 0 | G14: 0 | H14: 0
B15: Other Revenue | C15: 0 | D15: 0 | E15: CWT | F15: 0 | G15: 0 | H15: 0
B16: Other Revenue | C16: 0 | D16: 0 | E16: CWT | F16: 0 | G16: 0 | H16: 0
A18: Total Revenue | G18: =+SUM(G9:G17) -> 0 | H18: =+SUM(H9:H17) -> 0
H20: Enterprise
A21: VARIABLE COSTS | D21: Quantity | E21: Units | F21: $/Unit | G21: Total | H21: Total
A22: Production Costs
B23: Animal Purchase Price, if applicable | D23: 0 | E23: Cwt | F23: 0 | G23: =D23*F23 -> 0 | H23: =+G23*$D$5 -> 0
B24: Pasture | C24: =+SUM(G25:G28) -> 0
C25: Pasture 1 | D25: 0 | E25: Acre | F25: 0 | G25: =D25*F25 -> 0 | H25: =+G25*$D$5 -> 0
C26: Pasture 2 | D26: 0 | E26: Acre | F26: 0 | G26: 0 | H26: 0
C27: Pasture 3 | D27: 0 | E27: Acre | F27: 0 | G27: 0 | H27: 0
C28: Pasture 4 | D28: 0 | E28: Acre | F28: 0 | G28: 0 | H28: 0
B29: Feed | C29: =SUM(G30:G37) -> 0
C30: Hay | D30: 0 | E30: Bales | F30: 0 | G30: =D30*F30 -> 0 | H30: =+G30*$D$5 -> 0
C31: Supplement | D31: 0 | E31: Cwt,lb,etc | F31: 0 | G31: =D31*F31 -> 0 | H31: =+G31*$D$5 -> 0
C32: Salt Minerals | D32: 0 | E32: Cwt | F32: 0 | G32: 0 | H32: 0
C33: Other Feed | D33: 0 | E33: Cwt,lb,etc | F33: 0 | G33: 0 | H33: 0
C34: Other Feed | D34: 0 | E34: Cwt,lb,etc | F34: 0 | G34: 0 | H34: 0
C35: Other Feed | D35: 0 | E35: Cwt,lb,etc | F35: 0 | G35: 0 | H35: 0
C36: Other Feed | D36: 0 | E36: Cwt,lb,etc | F36: 0 | G36: 0 | H36: 0
C37: Other Feed | D37: 0 | E37: Cwt,lb,etc | F37: 0 | G37: 0 | H37: 0
B38: Health | C38: =SUM(G39:G48) -> 0
C39: Vet/Medicine 1 | D39: 0 | E39: Visit,dose,cc's, etc. | F39: 0 | G39: =D39*F39 -> 0 | H39: =+G39*$D$5 -> 0
C40: Vet/Medicine 2 | D40: 0 | E40: Visit,dose,cc's, etc. | F40: 0 | G40: 0 | H40: 0
C41: Vet/Medicine 3 | D41: 0 | E41: Visit,dose,cc's, etc. | F41: 0 | G41: 0 | H41: 0
C42: Vet/Medicine 4 | D42: 0 | E42: Visit,dose,cc's, etc. | F42: 0 | G42: 0 | H42: 0
C43: Vet/Medicine 5 | D43: 0 | E43: Visit,dose,cc's, etc. | F43: 0 | G43: 0 | H43: 0
C44: Vet/Medicine 6 | D44: 0 | E44: Visit,dose,cc's, etc. | F44: 0 | G44: 0 | H44: 0
C45: Vet/Medicine 7 | D45: 0 | E45: Visit,dose,cc's, etc. | F45: 0 | G45: 0 | H45: 0
C46: Vet/Medicine 8 | D46: 0 | E46: Visit,dose,cc's, etc. | F46: 0 | G46: 0 | H46: 0
C47: Vet/Medicine 9 | D47: 0 | E47: Visit,dose,cc's, etc. | F47: 0 | G47: 0 | H47: 0
C48: Vet/Medicine 10 | D48: 0 | E48: Visit,dose,cc's, etc. | F48: 0 | G48: 0 | H48: 0
B50: Fuel, Lube, Repair | D50: 1 | E50: Head | F50: 0 | G50: 0 | H50: 0
B52: Labor | D52: 0 | E52: Hours | F52: 0 | G52: 0 | H52: 0
B54: Other Variable Expense | D54: 0 | E54: Cwt,lb,etc | F54: 0 | G54: 0 | H54: 0
B55: Other Variable Expense | D55: 0 | E55: Cwt,lb,etc | F55: 0 | G55: 0 | H55: 0
B56: Other Variable Expense | D56: 0 | E56: Cwt,lb,etc | F56: 0 | G56: 0 | H56: 0
B57: Other Variable Expense | D57: 0 | E57: Cwt,lb,etc | F57: 0 | G57: 0 | H57: 0
B58: Other Variable Expense | D58: 0 | E58: Cwt,lb,etc | F58: 0 | G58: 0 | H58: 0
B59: Other Variable Expense | D59: 0 | E59: Cwt,lb,etc | F59: 0 | G59: 0 | H59: 0
B61: Operating Interest | F61: 0 | G61: =+SUM(G23:G59)/2*F61 -> 0 | H61: 0
A63: Total Variable Costs | G63: =+SUM(G23:G62) -> 0 | H63: =+SUM(H23:H62) -> 0
A65: Planned Returns Above Variable Costs | G65: =+G18-G63 -> 0 | H65: =+H18-H63 -> 0
B67: Breakeven Price to Cover Variable Costs | E67: =IF((H101/100+C13*D13)=0,0,(G63-SUM(G11:G12,G14:G16))/(H101/100+C13/D5*D13)) -> 0 | F67: =+E9 -> CWT
H69: Enterprise
A70: FIXED COSTS | D70: Quantity | E70: Units | F70: $/Unit | G70: Total | H70: Total
B71: Depreciation - Equipment | D71: 0 | E71: Head,$,etc | F71: 0 | G71: =D71*F71 -> 0 | H71: =+G71*$D$5 -> 0
B72: Depreciation - Livestock | D72: 0 | E72: Head,$,etc | F72: 0 | G72: =D72*F72 -> 0 | H72: 0
B73: Equipment Investment | D73: 0 | E73: Head,$,etc | F73: 0 | G73: 0 | H73: 0
B74: Insurance | D74: 0 | E74: Head,$,etc | F74: 0 | G74: 0 | H74: 0
B75: Management Fee | D75: 0 | E75: Head,$,etc | F75: 0 | G75: 0 | H75: 0
B76: Owner/Operator Labor | D76: 0 | E76: Head,$,etc | F76: 0 | G76: 0 | H76: 0
B77: Salaried Labor | D77: 0 | E77: Head,$,etc | F77: 0 | G77: 0 | H77: 0
B78: Other Fixed Expense | D78: 0 | E78: Head,$,etc | F78: 0 | G78: 0 | H78: 0
B79: Other Fixed Expense | D79: 0 | E79: Head,$,etc | F79: 0 | G79: 0 | H79: 0
B80: Other Fixed Expense | D80: 0 | E80: Head,$,etc | F80: 0 | G80: 0 | H80: 0
B81: Other Fixed Expense | D81: 0 | E81: Head,$,etc | F81: 0 | G81: 0 | H81: 0
B82: Other Fixed Expense | D82: 0 | E82: Head,$,etc | F82: 0 | G82: 0 | H82: 0
D84: Total Fixed Costs | G84: =+SUM(G71:G83) -> 0 | H84: =+SUM(H71:H83) -> 0
D86: Total Specified Costs | G86: =+G63+G84 -> 0 | H86: =+H63+H84 -> 0
D88: Returns Above Specifiied Costs | G88: =+G18-G86 -> 0 | H88: =+H18-H86 -> 0
B90: Breakeven Price to Cover Total Costs | E90: =IF((H101/100+C13*D13)=0,0,(G86-SUM(G11:G12,G14:G16))/(H101/100+C13/D5*D13)) -> 0 | F90: =+F67 -> CWT
B93: Sensitivity Analysis for Your Breeding Herd or Flock Values
B94: Your Weaning Percent | C94: Your Gross Sales per Head | D94: Pounds Produced per Head | E94: ="Your Breakeven Pay Weight to Cover Total Cost" -> Your Breakeven Pay Weight to Cover Total Cost | G94: Your Average Breakeven Price to Cover Total Cost
B95: =+B96-0.03 -> -0.06 | C95: =+IF($B$97=0,0,YTotRet-$G$9-$G$10+($G$9+$G$10)*B95/$B$97) -> 0 | D95: =IF($B$97=0,0,$H$101*B95/$B$97+$H$102) -> 0 | E95: =IF($C$97=0,0,(YTotExp-($G$18-$G$9-$G$10))/(YPrice/100)/(B95-$C$11/$D$5)) -> 0 | G95: =IF(D95-$H$102=0,0,(YTotExp-($G$18-$G$9-$G$10))/(D95-$H$102)*100) -> 0
B96: =+B97-0.03 -> -0.03 | C96: =+IF($B$97=0,0,YTotRet-$G$9-$G$10+($G$9+$G$10)*B96/$B$97) -> 0 | D96: =IF($B$97=0,0,$H$101*B96/$B$97+$H$102) -> 0 | E96: =IF($C$97=0,0,(YTotExp-($G$18-$G$9-$G$10))/(YPrice/100)/(B96-$C$11/$D$5)) -> 0 | G96: =IF(D96-$H$102=0,0,(YTotExp-($G$18-$G$9-$G$10))/(D96-$H$102)*100) -> 0
B97: 0 | C97: =+G18 -> 0 | D97: =H101+H102 -> 0 | E97: =IF($C$97=0,0,(YTotExp-($G$18-$G$9-$G$10))/(YPrice/100)/(B97-$C$11/$D$5)) -> 0 | G97: =IF(D97-$H$102=0,0,(YTotExp-($G$18-$G$9-$G$10))/(D97-$H$102)*100) -> 0
B98: =+B97+0.03 -> 0.03 | C98: =+IF($B$97=0,0,YTotRet-$G$9-$G$10+($G$9+$G$10)*B98/$B$97) -> 0 | D98: =IF($B$97=0,0,$H$101*B98/$B$97+$H$102) -> 0 | E98: =IF($C$97=0,0,(YTotExp-($G$18-$G$9-$G$10))/(YPrice/100)/(B98-$C$11/$D$5)) -> 0 | G98: =IF(D98-$H$102=0,0,(YTotExp-($G$18-$G$9-$G$10))/(D98-$H$102)*100) -> 0
B99: =+B98+0.03 -> 0.06 | C99: =+IF($B$97=0,0,YTotRet-$G$9-$G$10+($G$9+$G$10)*B99/$B$97) -> 0 | D99: =IF($B$97=0,0,$H$101*B99/$B$97+$H$102) -> 0 | E99: =IF($C$97=0,0,(YTotExp-($G$18-$G$9-$G$10))/(YPrice/100)/(B99-$C$11/$D$5)) -> 0 | G99: =IF(D99-$H$102=0,0,(YTotExp-($G$18-$G$9-$G$10))/(D99-$H$102)*100) -> 0
C101: Your Male Price | F101: =+F9 -> 0 | H101: =IF(D5=0,0,(C9*D9+C10*D10)*100/D5) -> 0
C102: Your Female Price | F102: =+F10 -> 0 | H102: =IF(D5=0,0,(C11*D11+C12*D12)*100/D5) -> 0
C103: Your Weighted Average Price ($/cwt) | F103: =+IF((C9*D9+C10*D10)=0,F13,(G9+G10)/((C9*D9+C10*D10)/D5)) -> 0
C105: Your Stocker or Feeder Breakeven Sensitivity Analysis
C106: Your Average Daily Gain | E106: 0 | F106: Pounds per Day
C107: =+"Your Animal"&IF(M25="Stocker"," Grazing"," Feeding")&" Days" -> Your Animal Feeding Days | E107: 0 | F107: Days
C108: Your Sale Shrink | E108: 0
C109: Average Daily Gain (Pounds/day) | D109: Net Pay Weight with Shrink (Pounds) | F109: =+"Purchase Weight (Pounds/Head): "&D23*100 -> Purchase Weight (Pounds/Head): 0 | H109: Sales Price/Cwt of $Total
F110: ="Sales Price "&IF(F13="",".00",TEXT(F13,"#.00")) -> Sales Price .00 | H110: ="Purchase Price "&IF(F23="",".00",TEXT(F23,"#.00")) -> Purchase Price .00
F111: Breakeven Purchase Price ($/CWT) | H111: Breakeven Sales Price ($/CWT)
C112: =+C114*1.2 -> 0 | D112: =+(C112*$E$107+$D$23*100)*(1-$E$108) -> 0 | F112: =IF($D$23=0,0,(((D112*$F$13/100*($C$13/$D$5))-($G$86-SUM($G$14:$G$16)-$G$23))/(100*$D$23))*100) -> 0 | H112: =IF($C$13=0,0,($G$86-SUM($G$14:$G$16))/(D112*($C$13/$D$5)*100)) -> 0
C113: =+C114*1.1 -> 0 | D113: =+(C113*$E$107+$D$23*100)*(1-$E$108) -> 0 | F113: =IF($D$23=0,0,(((D113*$F$13/100*($C$13/$D$5))-($G$86-SUM($G$14:$G$16)-$G$23))/(100*$D$23))*100) -> 0 | H113: =IF($C$13=0,0,($G$86-SUM($G$14:$G$16))/(D113*($C$13/$D$5)*100)) -> 0
C114: =+E106 -> 0 | D114: =+(C114*$E$107+$D$23*100)*(1-$E$108) -> 0 | F114: =IF($D$23=0,0,(((D114*$F$13/100*($C$13/$D$5))-($G$86-SUM($G$14:$G$16)-$G$23))/(100*$D$23))*100) -> 0 | H114: =IF($C$13=0,0,($G$86-SUM($G$14:$G$16))/(D114*($C$13/$D$5)*100)) -> 0
C115: =+C114*0.9 -> 0 | D115: =+(C115*$E$107+$D$23*100)*(1-$E$108) -> 0 | F115: =IF($D$23=0,0,(((D115*$F$13/100*($C$13/$D$5))-($G$86-SUM($G$14:$G$16)-$G$23))/(100*$D$23))*100) -> 0 | H115: =IF($C$13=0,0,($G$86-SUM($G$14:$G$16))/(D115*($C$13/$D$5)*100)) -> 0
C116: =+C114*0.8 -> 0 | D116: =+(C116*$E$107+$D$23*100)*(1-$E$108) -> 0 | F116: =IF($D$23=0,0,(((D116*$F$13/100*($C$13/$D$5))-($G$86-SUM($G$14:$G$16)-$G$23))/(100*$D$23))*100) -> 0 | H116: =IF($C$13=0,0,($G$86-SUM($G$14:$G$16))/(D116*($C$13/$D$5)*100)) -> 0

Sheet Crop Budget
A1: Estimated Costs and Returns per Acre
A3: Crop Enterprise
A5: Number of Acres of Crop | D5: 0
A7: Enter Your Values in the cells highlighed in MAROON. | G7: Enterprise
A8: REVENUE | C8: Quantity | D8: Units | E8: $/Unit | F8: Total | G8: Total
B9: Primary Product | C9: 0 | D9: Cwt,lb,etc | E9: 0 | F9: =C9*E9 -> 0 | G9: =+F9*$D$5 -> 0
B10: Secondary Product | C10: 0 | D10: Cwt,lb,etc | E10: 0 | F10: =C10*E10 -> 0 | G10: =+F10*$D$5 -> 0
B11: Secondary Product | C11: 0 | D11: Cwt,lb,etc | E11: 0 | F11: 0 | G11: 0
B12: Secondary Product | C12: 0 | D12: Cwt,lb,etc | E12: 0 | F12: 0 | G12: 0
B13: Secondary Product | C13: 0 | D13: Cwt,lb,etc | E13: 0 | F13: 0 | G13: 0
B14: Secondary Product | C14: 0 | D14: Cwt,lb,etc | E14: 0 | F14: 0 | G14: 0
B15: Secondary Product | C15: 0 | D15: Cwt,lb,etc | E15: 0 | F15: 0 | G15: 0
B16: Secondary Product | C16: 0 | D16: Cwt,lb,etc | E16: 0 | F16: 0 | G16: 0
A18: Total Revenue | F18: =+SUM(F9:F16) -> 0 | G18: =+SUM(G9:G16) -> 0
G20: Enterprise
A21: VARIABLE COSTS | C21: Quantity | D21: Units | E21: $/Unit | F21: Total | G21: Total
A23: Custom Field and Harvest Operations
B24: Custom Field Operation 1 | C24: 0 | D24: Acre | E24: 0 | F24: =C24*E24 -> 0 | G24: =+F24*$D$5 -> 0
B25: Custom Field Operation 2 | C25: 0 | D25: Acre | E25: 0 | F25: 0 | G25: 0
B26: Custom Field Operation 3 | C26: 0 | D26: Acre | E26: 0 | F26: 0 | G26: 0
B27: Custom Field Operation 4 | C27: 0 | D27: Acre | E27: 0 | F27: 0 | G27: 0
B28: Custom Field Operation 5 | C28: 0 | D28: Acre | E28: 0 | F28: 0 | G28: 0
B29: Custom Field Operation 6 | C29: 0 | D29: Acre | E29: 0 | F29: 0 | G29: 0
A30: Machinery Expenses
B31: Diesel | C31: 0 | D31: Gallon | E31: 0 | F31: =C31*E31 -> 0 | G31: 0
B32: Gasoline | C32: 0 | D32: Gallon | E32: 0 | F32: 0 | G32: 0
B33: Lube | C33: 0 | D33: Acre | E33: 0 | F33: 0 | G33: 0
B34: Repairs | C34: 0 | D34: Acre | E34: 0 | F34: 0 | G34: 0
B35: Other Machinery Expense 1 | C35: 0 | D35: Acre | E35: 0 | F35: 0 | G35: 0
B36: Other Machinery Expense 2 | C36: 0 | D36: Acre | E36: 0 | F36: 0 | G36: 0
A37: Labor
B38: Labor 1 | C38: 0 | D38: Hour | E38: 0 | F38: =C38*E38 -> 0 | G38: 0
B39: Labor 2 | C39: 0 | D39: Hour | E39: 0 | F39: 0 | G39: 0
B40: Labor 3 | C40: 0 | D40: Hour | E40: 0 | F40: 0 | G40: 0
B41: Labor 4 | C41: 0 | D41: Hour | E41: 0 | F41: 0 | G41: 0
B42: Labor 5 | C42: 0 | D42: Hour | E42: 0 | F42: 0 | G42: 0
B43: Irrigation Labor | C43: 0 | D43: Hour | E43: 0 | F43: 0 | G43: 0
A44: Seed or Transplants
B45: Seed | C45: 0 | D45: Pound | E45: 0 | F45: =C45*E45 -> 0 | G45: 0
B46: Seed Treatment | C46: 0 | D46: Pound | E46: 0 | F46: 0 | G46: 0
B47: Seed Fee | C47: 0 | D47: Pound | E47: 0 | F47: 0 | G47: 0
B48: Transplants | C48: 0 | D48: Thousand | E48: 0 | F48: 0 | G48: 0
B49: Mulch | C49: 0 | D49: Foot | E49: 0 | F49: 0 | G49: 0
B50: Other Seed or Transplant | C50: 0 | D50: Pound | E50: 0 | F50: 0 | G50: 0
A51: Fertilizer and Lime
B52: Fertlizer 1 | C52: 0 | D52: Pound | E52: 0 | F52: =C52*E52 -> 0 | G52: 0
B53: Fertlizer 2 | C53: 0 | D53: Pound | E53: 0 | F53: 0 | G53: 0
B54: Fertlizer 3 | C54: 0 | D54: Pound | E54: 0 | F54: 0 | G54: 0
B55: Fertlizer 4 | C55: 0 | D55: Pound | E55: 0 | F55: 0 | G55: 0
B56: Fertlizer 5 | C56: 0 | D56: Pound | E56: 0 | F56: 0 | G56: 0
B57: Lime | C57: 0 | D57: Ton | E57: 0 | F57: 0 | G57: 0
B58: Other Soil Amendment 1 | C58: 0 | D58: Pound | E58: 0 | F58: 0 | G58: 0
B59: Other Soil Amendment 2 | C59: 0 | D59: Pound | E59: 0 | F59: 0 | G59: 0
A60: Herbicides
B61: Herbicide 1 | C61: 0 | D61: Lb,Oz,Acre | E61: 0 | F61: =C61*E61 -> 0 | G61: 0
B62: Herbicide 2 | C62: 0 | D62: Lb,Oz,Acre | E62: 0 | F62: 0 | G62: 0
B63: Herbicide 3 | C63: 0 | D63: Lb,Oz,Acre | E63: 0 | F63: 0 | G63: 0
B64: Herbicide 4 | C64: 0 | D64: Lb,Oz,Acre | E64: 0 | F64: 0 | G64: 0
B65: Herbicide 5 | C65: 0 | D65: Lb,Oz,Acre | E65: 0 | F65: 0 | G65: 0
B66: Herbicide 6 | C66: 0 | D66: Lb,Oz,Acre | E66: 0 | F66: 0 | G66: 0
A67: Insecticides
B68: Insecticide 1 | C68: 0 | D68: Lb,Oz,Acre | E68: 0 | F68: =C68*E68 -> 0 | G68: 0
B69: Insecticide 2 | C69: 0 | D69: Lb,Oz,Acre | E69: 0 | F69: 0 | G69: 0
B70: Insecticide 3 | C70: 0 | D70: Lb,Oz,Acre | E70: 0 | F70: 0 | G70: 0
B71: Insecticide 4 | C71: 0 | D71: Lb,Oz,Acre | E71: 0 | F71: 0 | G71: 0
B72: Insecticide 5 | C72: 0 | D72: Lb,Oz,Acre | E72: 0 | F72: 0 | G72: 0
B73: Insecticide 6 | C73: 0 | D73: Lb,Oz,Acre | E73: 0 | F73: 0 | G73: 0
A74: Fungicides
B75: Fungicide 1 | C75: 0 | D75: Lb,Oz,Acre | E75: 0 | F75: =C75*E75 -> 0 | G75: 0
B76: Fungicide 2 | C76: 0 | D76: Lb,Oz,Acre | E76: 0 | F76: 0 | G76: 0
B77: Fungicide 3 | C77: 0 | D77: Lb,Oz,Acre | E77: 0 | F77: 0 | G77: 0
B78: Fungicide 4 | C78: 0 | D78: Lb,Oz,Acre | E78: 0 | F78: 0 | G78: 0
B79: Fungicide 5 | C79: 0 | D79: Lb,Oz,Acre | E79: 0 | F79: 0 | G79: 0
B80: Fungicide 6 | C80: 0 | D80: Lb,Oz,Acre | E80: 0 | F80: 0 | G80: 0
A81: Growth Regulators
B82: Growth Regulator 1 | C82: 0 | D82: Lb,Oz,Acre | E82: 0 | F82: =C82*E82 -> 0 | G82: 0
B83: Growth Regulator 2 | C83: 0 | D83: Lb,Oz,Acre | E83: 0 | F83: 0 | G83: 0
B84: Growth Regulator 3 | C84: 0 | D84: Lb,Oz,Acre | E84: 0 | F84: 0 | G84: 0
B85: Growth Regulator 4 | C85: 0 | D85: Lb,Oz,Acre | E85: 0 | F85: 0 | G85: 0
B86: Growth Regulator 5 | C86: 0 | D86: Lb,Oz,Acre | E86: 0 | F86: 0 | G86: 0
B87: Growth Regulator 6 | C87: 0 | D87: Lb,Oz,Acre | E87: 0 | F87: 0 | G87: 0
A88: Other Chemicals
B89: Fumigant | C89: 0 | D89: Lb,Oz,Acre | E89: 0 | F89: =C89*E89 -> 0 | G89: 0
B90: Other Chemical 1 | C90: 0 | D90: Lb,Oz,Acre | E90: 0 | F90: 0 | G90: =+F90*$D$5 -> 0
B91: Other Chemical 2 | C91: 0 | D91: Lb,Oz,Acre | E91: 0 | F91: 0 | G91: =+F91*$D$5 -> 0
B92: Other Chemical 3 | C92: 0 | D92: Lb,Oz,Acre | E92: 0 | F92: 0 | G92: =+F92*$D$5 -> 0
B93: Other Chemical 4 | C93: 0 | D93: Lb,Oz,Acre | E93: 0 | F93: 0 | G93: =+F93*$D$5 -> 0
B94: Other Chemical 5 | C94: 0 | D94: Lb,Oz,Acre | E94: 0 | F94: 0 | G94: =+F94*$D$5 -> 0
A95: Irrigation
B96: Well Expense | C96: 0 | D96: Acre | E96: 0 | F96: =C96*E96 -> 0 | G96: =+F96*$D$5 -> 0
B97: Pump Fuel | C97: 0 | D97: Mcf,kWh,Gallon | E97: 0 | F97: 0 | G97: 0
B98: Pump Expense | C98: 0 | D98: Acre | E98: 0 | F98: 0 | G98: 0
B99: Irrigation Equipment Expense | C99: 0 | D99: Acre | E99: 0 | F99: 0 | G99: 0
B100: Repairs | C100: 0 | D100: Acre | E100: 0 | F100: 0 | G100: 0
B101: Drip Tape | C101: 0 | D101: Foot,Acre | E101: 0 | F101: 0 | G101: 0
B102: Water Cost | C102: 0 | D102: AcIn,Gallon | E102: 0 | F102: 0 | G102: 0
B103: Other Irrigation Expense 1 | C103: 0 | D103: Acre | E103: 0 | F103: 0 | G103: 0
B104: Other Irrigation Expense 2 | C104: 0 | D104: Acre | E104: 0 | F104: 0 | G104: 0
A105: Miscellaneous Expenses
B106: Crop Insurance | C106: 0 | D106: Acre | E106: 0 | F106: =C106*E106 -> 0 | G106: 0
B107: Other Variable Expense 1 | C107: 0 | D107: Enter Unit | E107: 0 | F107: 0 | G107: 0
B108: Other Variable Expense 2 | C108: 0 | D108: Enter Unit | E108: 0 | F108: 0 | G108: 0
B109: Other Variable Expense 3 | C109: 0 | D109: Enter Unit | E109: 0 | F109: 0 | G109: 0
B110: Other Variable Expense 4 | C110: 0 | D110: Enter Unit | E110: 0 | F110: 0 | G110: 0
B111: Other Variable Expense 5 | C111: 0 | D111: Enter Unit | E111: 0 | F111: 0 | G111: 0
B112: Other Variable Expense 6 | C112: 0 | D112: Enter Unit | E112: 0 | F112: 0 | G112: 0
B113: Other Variable Expense 7 | C113: 0 | D113: Enter Unit | E113: 0 | F113: 0 | G113: 0
B114: Other Variable Expense 8 | C114: 0 | D114: Enter Unit | E114: 0 | F114: 0 | G114: 0
B116: Operating Interest | E116: 0 | F116: =+SUM(F23:F115)/2*E116 -> 0 | G116: =+F116*$D$6 -> 0
A118: Total Variable Costs | F118: =+SUM(F23:F116) -> 0 | G118: =+SUM(G23:G116) -> 0
A120: Planned Returns Above Variable Costs | F120: =+F18-F118 -> 0 | G120: =+G18-G118 -> 0
B122: Breakeven Price to Cover Variable Costs | E122: =+IF(C9=0,0,F118-SUM(F10:F16)/C9) -> 0 | F122: =+D9 -> Cwt,lb,etc
G124: Enterprise
A125: FIXED COSTS | C125: Quantity | D125: Units | E125: $/Unit | F125: Total | G125: Total
B126: Land Rent or Expense | C126: 1 | D126: Acre | E126: 0 | F126: =C126*E126 -> 0 | G126: =+F126*$D$6 -> 0
B127: Depreciation - Equipment | C127: 1 | D127: Acre | E127: 0 | F127: =C127*E127 -> 0 | G127: 0
B128: Equipment Investment | C128: 0 | D128: $ | E128: 0 | F128: 0 | G128: 0
B129: Insurance | C129: 1 | D129: Acre | E129: 0 | F129: 0 | G129: 0
B130: Management Fee | C130: 1 | D130: Acre | E130: 0 | F130: 0 | G130: 0
B131: Owner/Operator Labor | C131: 0 | D131: Acre | E131: 0 | F131: 0 | G131: 0
B132: Salaried Labor | C132: 1 | D132: Acre,$,etc | E132: 0 | F132: 0 | G132: 0
B133: Other Fixed Expense | C133: 0 | D133: Acre,$,etc | E133: 0 | F133: 0 | G133: 0
B134: Other Fixed Expense | C134: 0 | D134: Acre,$,etc | E134: 0 | F134: 0 | G134: 0
B135: Other Fixed Expense | C135: 0 | D135: Acre,$,etc | E135: 0 | F135: 0 | G135: 0
B136: Other Fixed Expense | C136: 0 | D136: Acre,$,etc | E136: 0 | F136: 0 | G136: 0
B137: Other Fixed Expense | C137: 0 | D137: Acre,$,etc | E137: 0 | F137: 0 | G137: 0
D139: Total Fixed Costs | F139: =+SUM(F126:F137) -> 0 | G139: =+SUM(G126:G137) -> 0
D141: Total Specified Costs | F141: =+F118+F139 -> 0 | G141: =+G118+G139 -> 0
D143: Returns Above Specifiied Costs | F143: =+F18-F141 -> 0 | G143: =+G18-G141 -> 0
B145: Breakeven Price to Cover Total Costs | E145: =+IF(C9=0,0,F141-SUM(F10:F16)/C9) -> 0 | F145: =+D9 -> Cwt,lb,etc
B147: Breakeven Prices for Your Crop
E148: Price To Cover | G148: Price To Cover
B149: Yield | C149: Yield | E149: Variable | G149: Total
B150: Percent | C150: =+D9 -> Cwt,lb,etc | E150: Costs | G150: Costs
B151: 0.75 | C151: =+$C$153*B151 -> 0 | E151: =+IF(C151=0,0,($F$118-SUM($F$10:$F$16))/C151) -> 0 | G151: =+IF(C151=0,0,($F$141-SUM($F$10:$F$16))/C151) -> 0
B152: 0.9 | C152: =+$C$153*B152 -> 0 | E152: =+IF(C152=0,0,($F$118-SUM($F$10:$F$16))/C152) -> 0 | G152: =+IF(C152=0,0,($F$141-SUM($F$10:$F$16))/C152) -> 0
B153: 1 | C153: =+C9 -> 0 | E153: =+IF(C153=0,0,($F$118-SUM($F$10:$F$16))/C153) -> 0 | G153: =+IF(C153=0,0,($F$141-SUM($F$10:$F$16))/C153) -> 0
B154: 1.1 | C154: 0 | E154: =+IF(C154=0,0,($F$118-SUM($F$10:$F$16))/C154) -> 0 | G154: =+IF(C154=0,0,($F$141-SUM($F$10:$F$16))/C154) -> 0
B155: 1.25 | C155: 0 | E155: =+IF(C155=0,0,($F$118-SUM($F$10:$F$16))/C155) -> 0 | G155: =+IF(C155=0,0,($F$141-SUM($F$10:$F$16))/C155) -> 0

Sheet Comparative Returns - Cash Rent
A1: Comparative Returns - Cash Rent
B3: Returns Above Total Specified Expenses | E3: Total Direct Expenses | H3: Breakeven Yield to Cover Total Costs at Price Entered
B4: Total Costs | C4: Variable Costs | E4: Total Costs | F4: Variable Costs | H4: Price | I4: Units | J4: Total Costs | K4: Variable Costs
A5: CROPS
A7: =+CoastalEstablish!A3 -> Coastal Bermudagrass Establishment | B7: =+CoastalEstablish!TotRet -> -410.5789424 | C7: =+CoastalEstablish!VarRet -> -388.7316072 | E7: =+CoastalEstablish!TotExp -> 410.5789424 | F7: =+CoastalEstablish!VarExp -> 388.7316072 | H7: =+CoastalEstablish!Price -> 0 | I7: =+CoastalEstablish!Unit ->  | J7: =+IF($H7=0,0,E7/$H7) -> 0 | K7: 0
A8: =+CoastalHay!A3 -> Coastal Bermudagrass Hay | B8: =+CoastalHay!TotRet -> -476.5378068 | C8: =+CoastalHay!VarRet -> -458.659217 | E8: =+CoastalHay!TotExp -> 1226.537807 | F8: =+CoastalHay!VarExp -> 1208.659217 | H8: =+CoastalHay!Price -> 5 | I8: =+CoastalHay!Unit -> Bale | J8: 245.3075614 | K8: 241.7318434
A9: =+CoastalPasture!A3 -> Coastal Bermudagrass Pasture | B9: =+CoastalPasture!TotRet -> -125.089316 | C9: =+CoastalPasture!VarRet -> -110.7288484 | E9: =+CoastalPasture!TotExp -> 259.089316 | F9: =+CoastalPasture!VarExp -> 244.7288484 | H9: =+CoastalPasture!Price -> 25 | I9: =+CoastalPasture!Unit -> AUM | J9: 10.36357264 | K9: 9.789153938
A10: =+Soybeans!A3 -> Soybeans | B10: =+Soybeans!TotRet -> 77.95484048 | C10: =+Soybeans!VarRet -> 119.2643193 | E10: =+Soybeans!TotExp -> 234.5451595 | F10: =+Soybeans!VarExp -> 193.2356807 | H10: =+Soybeans!Price -> 12.5 | I10: =+Soybeans!Unit -> Bushel | J10: 18.76361276 | K10: 15.45885446
A11: =+SorghumHay!A3 -> Sorghum for Hay | B11: =+SorghumHay!TotRet -> -48.78974077 | C11: =+SorghumHay!VarRet -> -5.229402988 | E11: =+SorghumHay!TotExp -> 423.7897408 | F11: =+SorghumHay!VarExp -> 380.229403 | H11: =+SorghumHay!Price -> 75 | I11: =+SorghumHay!Unit -> Roll | J11: 5.650529877 | K11: 5.069725373
A12: =+Sorghum!A3 -> Sorghum (Nitrogen Fertilizer Only) | B12: =+Sorghum!TotRet -> 25.88512228 | C12: =+Sorghum!VarRet -> 72.39032873 | E12: =+Sorghum!TotExp -> 310.7148777 | F12: =+Sorghum!VarExp -> 264.2096713 | H12: =+Sorghum!Price -> 10.2 | I12: =+Sorghum!Unit -> CWT | J12: 30.46224291 | K12: 25.90290895
A13: =+Wheat!A3 -> Soft Wheat | B13: =+Wheat!TotRet -> -27.25842955 | C13: =+Wheat!VarRet -> 16.78473017 | E13: =+Wheat!TotExp -> 319.7584296 | F13: =+Wheat!VarExp -> 275.7152698 | H13: =+Wheat!Price -> 6.5 | I13: =+Wheat!Unit -> Bushel | J13: 49.19360455 | K13: 42.41773382
A15: LIVESTOCK
A17: =+CowCalfImprove!A3 -> Cow-Calf Improved Pasture | B17: =+CowCalfImprove!TotRet -> 329.5944005 | C17: =+CowCalfImprove!VarRet -> 485.4577159 | E17: =+CowCalfImprove!TotExp -> 732.1805995 | F17: =+CowCalfImprove!VarExp -> 576.3172841 | H17: =+CowCalfImprove!Price -> 278.7366167 | I17: =+CowCalfImprove!Unit -> CWT | J17: =+IF($H17=0,0,E17/$H17) -> 2.626782976 | K17: 2.067605222
A18: =CowCalfNative!A3 -> Cow-Calf Native Pasture | B18: =CowCalfNative!TotRet -> 3.164232858 | C18: =CowCalfNative!VarRet -> 153.9075482 | E18: =CowCalfNative!TotExp -> 1058.610767 | F18: =CowCalfNative!VarExp -> 907.8674518 | H18: =CowCalfNative!Price -> 278.7366167 | I18: =CowCalfNative!Unit -> CWT | J18: =IF(H18=0,0,E18/H18) -> 3.797889132 | K18: =IF(H18=0,0,F18/H18) -> 3.257079972
A19: =+StockersNative!A3 -> Stockers on Native Pasture | B19: =+StockersNative!TotRet -> 74.30605418 | C19: =+StockersNative!VarRet -> 89.31605418 | E19: =+StockersNative!TotExp -> 1763.193946 | F19: =+StockersNative!VarExp -> 1748.183946 | H19: =+StockersNative!Price -> 250 | I19: =+StockersNative!Unit -> CWT | J19: 7.052775783 | K19: 6.992735783
A20: =+StockerNovFeb!A3 -> November- February Stockers | B20: =+StockerNovFeb!TotRet -> -59.69965046 | C20: =+StockerNovFeb!VarRet -> -37.7737576 | E20: =+StockerNovFeb!TotExp -> 1823.47465 | F20: =+StockerNovFeb!VarExp -> 1801.548758 | H20: =+StockerNovFeb!Price -> 270 | I20: =+StockerNovFeb!Unit -> CWT | J20: =+IF($H20=0,0,E20/$H20) -> 6.753609817 | K20: =+IF($H20=0,0,F20/$H20) -> 6.672402806
A21: =StockersNovMay!A3 -> November- May Stockers | B21: =StockersNovMay!TotRet -> -66.1563916 | C21: =StockersNovMay!VarRet -> -44.23049874 | E21: =StockersNovMay!TotExp -> 1990.806392 | F21: =StockersNovMay!VarExp -> 1968.880499 | H21: =StockersNovMay!Price -> 235 | I21: =StockersNovMay!Unit -> CWT | J21: =IF(H21=0,0,E21/H21) -> 8.47151656 | K21: =IF(H21=0,0,F21/H21) -> 8.378214888

Sheet Comparative Returns-Share Rent
A1: Comparative Returns - Share Rent
A3: Variable Costs to the right of Total Costs | B3: Returns Above Total Specified Expenses | F3: Total Direct Expenses | J3: Breakeven Yield to Cover Total Costs at Price Entered | P3: Returns Above Variable Specified Expenses | T3: Variable Direct Expenses | X3: Breakeven Yield to Cover Variavle Costs at Price Entered
B4: Total | C4: Tenant | D4: Landlord | F4: Total | G4: Tenant | H4: Landlord | J4: Price | K4: Units | L4: Total | M4: Tenant | N4: Landlord | P4: Total | Q4: Tenant | R4: Landlord | T4: Total | U4: Tenant | V4: Landlord | X4: Price | Y4: Units | Z4: Total | AA4: Tenant | AB4: Landlord
A5: CROPS
A7: =+CoastalEstablish!A3 -> Coastal Bermudagrass Establishment | B7: =+CoastalEstablish!TotRet -> -410.5789424 | C7: =+CoastalEstablish!TTotRet -> -410.5789424 | D7: =+CoastalEstablish!LTotRet -> 0 | F7: =+CoastalEstablish!TotExp -> 410.5789424 | G7: =+CoastalEstablish!TTotExp -> 410.5789424 | H7: =+CoastalEstablish!LTotExp -> 0 | J7: =+CoastalEstablish!Price -> 0 | K7: =+CoastalEstablish!Unit ->  | L7: =+IF($J7=0,0,F7/$J7) -> 0 | M7: 0 | N7: 0 | P7: =+CoastalEstablish!VarRet -> -388.7316072 | Q7: =+CoastalEstablish!TVarRet -> -388.7316072 | R7: =+CoastalEstablish!LVarRet -> 0 | T7: =+CoastalEstablish!VarExp -> 388.7316072 | U7: =+CoastalEstablish!TVarExp -> 388.7316072 | V7: =+CoastalEstablish!LVarExp -> 0 | X7: =+CoastalEstablish!Price -> 0 | Y7: =+CoastalEstablish!Unit ->  | Z7: =+IF($J7=0,0,T7/$J7) -> 0 | AA7: 0 | AB7: 0
A8: =+CoastalHay!A3 -> Coastal Bermudagrass Hay | B8: =+CoastalHay!TotRet -> -476.5378068 | C8: =+CoastalHay!TTotRet -> -476.5378068 | D8: =+CoastalHay!LTotRet -> 0 | F8: =+CoastalHay!TotExp -> 1226.537807 | G8: =+CoastalHay!TTotExp -> 1226.537807 | H8: =+CoastalHay!LTotExp -> 0 | J8: =+CoastalHay!Price -> 5 | K8: =+CoastalHay!Unit -> Bale | L8: 245.3075614 | M8: 245.3075614 | N8: 0 | P8: =+CoastalHay!VarRet -> -458.659217 | Q8: =+CoastalHay!TVarRet -> -458.659217 | R8: =+CoastalHay!LVarRet -> 0 | T8: =+CoastalHay!VarExp -> 1208.659217 | U8: =+CoastalHay!TVarExp -> 1208.659217 | V8: =+CoastalHay!LVarExp -> 0 | X8: =+CoastalHay!Price -> 5 | Y8: =+CoastalHay!Unit -> Bale | Z8: 241.7318434 | AA8: 241.7318434 | AB8: 0
A9: =+CoastalPasture!A3 -> Coastal Bermudagrass Pasture | B9: =+CoastalPasture!TotRet -> -125.089316 | C9: =+CoastalPasture!TTotRet -> -125.089316 | D9: =+CoastalPasture!LTotRet -> 0 | F9: =+CoastalPasture!TotExp -> 259.089316 | G9: =+CoastalPasture!TTotExp -> 259.089316 | H9: =+CoastalPasture!LTotExp -> 0 | J9: =+CoastalPasture!Price -> 25 | K9: =+CoastalPasture!Unit -> AUM | L9: =+IF($J9=0,0,F9/$J9) -> 10.36357264 | M9: 10.36357264 | N9: 0 | P9: =+CoastalPasture!VarRet -> -110.7288484 | Q9: =+CoastalPasture!TVarRet -> -110.7288484 | R9: =+CoastalPasture!LVarRet -> 0 | T9: =+CoastalPasture!VarExp -> 244.7288484 | U9: =+CoastalPasture!TVarExp -> 244.7288484 | V9: =+CoastalPasture!LVarExp -> 0 | X9: =+CoastalPasture!Price -> 25 | Y9: =+CoastalPasture!Unit -> AUM | Z9: =+IF($J9=0,0,T9/$J9) -> 9.789153938 | AA9: 9.789153938 | AB9: 0
A10: =+Soybeans!A3 -> Soybeans | B10: =+Soybeans!TotRet -> 77.95484048 | C10: =+Soybeans!TTotRet -> 77.95484048 | D10: =+Soybeans!LTotRet -> 0 | F10: =+Soybeans!TotExp -> 234.5451595 | G10: =+Soybeans!TTotExp -> 234.5451595 | H10: =+Soybeans!LTotExp -> 0 | J10: =+Soybeans!Price -> 12.5 | K10: =+Soybeans!Unit -> Bushel | L10: 18.76361276 | M10: 18.76361276 | N10: 0 | P10: =+Soybeans!VarRet -> 119.2643193 | Q10: =+Soybeans!TVarRet -> 119.2643193 | R10: =+Soybeans!LVarRet -> 0 | T10: =+Soybeans!VarExp -> 193.2356807 | U10: =+Soybeans!TVarExp -> 193.2356807 | V10: =+Soybeans!LVarExp -> 0 | X10: =+Soybeans!Price -> 12.5 | Y10: =+Soybeans!Unit -> Bushel | Z10: 15.45885446 | AA10: 15.45885446 | AB10: 0
A11: =+SorghumHay!A3 -> Sorghum for Hay | B11: =+SorghumHay!TotRet -> -48.78974077 | C11: =+SorghumHay!TTotRet -> -48.78974077 | D11: =+SorghumHay!LTotRet -> 0 | F11: =+SorghumHay!TotExp -> 423.7897408 | G11: =+SorghumHay!TTotExp -> 423.7897408 | H11: =+SorghumHay!LTotExp -> 0 | J11: =+SorghumHay!Price -> 75 | K11: =+SorghumHay!Unit -> Roll | L11: 5.650529877 | M11: 5.650529877 | N11: 0 | P11: =+SorghumHay!VarRet -> -5.229402988 | Q11: =+SorghumHay!TVarRet -> -5.229402988 | R11: =+SorghumHay!LVarRet -> 0 | T11: =+SorghumHay!VarExp -> 380.229403 | U11: =+SorghumHay!TVarExp -> 380.229403 | V11: =+SorghumHay!LVarExp -> 0 | X11: =+SorghumHay!Price -> 75 | Y11: =+SorghumHay!Unit -> Roll | Z11: 5.069725373 | AA11: 5.069725373 | AB11: 0
A12: =+Sorghum!A3 -> Sorghum (Nitrogen Fertilizer Only) | B12: =+Sorghum!TotRet -> 25.88512228 | C12: =+Sorghum!TTotRet -> 25.88512228 | D12: =+Sorghum!LTotRet -> 0 | F12: =+Sorghum!TotExp -> 310.7148777 | G12: =+Sorghum!TTotExp -> 310.7148777 | H12: =+Sorghum!LTotExp -> 0 | J12: =+Sorghum!Price -> 10.2 | K12: =+Sorghum!Unit -> CWT | L12: 30.46224291 | M12: 30.46224291 | N12: 0 | P12: =+Sorghum!VarRet -> 72.39032873 | Q12: =+Sorghum!TVarRet -> 72.39032873 | R12: =+Sorghum!LVarRet -> 0 | T12: =+Sorghum!VarExp -> 264.2096713 | U12: =+Sorghum!TVarExp -> 264.2096713 | V12: =+Sorghum!LVarExp -> 0 | X12: =+Sorghum!Price -> 10.2 | Y12: =+Sorghum!Unit -> CWT | Z12: 25.90290895 | AA12: 25.90290895 | AB12: 0
A13: =+Wheat!A3 -> Soft Wheat | B13: =+Wheat!TotRet -> -27.25842955 | C13: =+Wheat!TTotRet -> -27.25842955 | D13: =+Wheat!LTotRet -> 0 | F13: =+Wheat!TotExp -> 319.7584296 | G13: =+Wheat!TTotExp -> 319.7584296 | H13: =+Wheat!LTotExp -> 0 | J13: =+Wheat!Price -> 6.5 | K13: =+Wheat!Unit -> Bushel | L13: 49.19360455 | M13: 49.19360455 | N13: 0 | P13: =+Wheat!VarRet -> 16.78473017 | Q13: =+Wheat!TVarRet -> 16.78473017 | R13: =+Wheat!LVarRet -> 0 | T13: =+Wheat!VarExp -> 275.7152698 | U13: =+Wheat!TVarExp -> 275.7152698 | V13: =+Wheat!LVarExp -> 0 | X13: =+Wheat!Price -> 6.5 | Y13: =+Wheat!Unit -> Bushel | Z13: 42.41773382 | AA13: 42.41773382 | AB13: 0
A15: LIVESTOCK
A17: =+CowCalfImprove!A3 -> Cow-Calf Improved Pasture | B17: =+CowCalfImprove!TotRet -> 329.5944005 | F17: =+CowCalfImprove!TotExp -> 732.1805995 | J17: =+CowCalfImprove!Price -> 278.7366167 | K17: =+CowCalfImprove!Unit -> CWT | L17: =+IF($J17=0,0,F17/$J17) -> 2.626782976 | P17: =+CowCalfImprove!VarRet -> 485.4577159 | T17: =+CowCalfImprove!VarExp -> 576.3172841 | X17: =+CowCalfImprove!Price -> 278.7366167 | Y17: =+CowCalfImprove!Unit -> CWT | Z17: =+IF($J17=0,0,T17/$J17) -> 2.067605222
A18: =CowCalfNative!A3 -> Cow-Calf Native Pasture | B18: =CowCalfNative!TotRet -> 3.164232858 | F18: =CowCalfNative!TotExp -> 1058.610767 | J18: =CowCalfNative!Price -> 278.7366167 | K18: =CowCalfNative!Unit -> CWT | L18: =IF(J18=0,0,F18/J18) -> 3.797889132 | P18: =CowCalfNative!VarRet -> 153.9075482 | T18: =CowCalfNative!VarExp -> 907.8674518 | X18: =CowCalfNative!Price -> 278.7366167 | Y18: =CowCalfNative!Unit -> CWT | Z18: =IF(J18=0,0,T18/J18) -> 3.257079972
A19: =+StockersNative!A3 -> Stockers on Native Pasture | B19: =+StockersNative!TotRet -> 74.30605418 | F19: =+StockersNative!TotExp -> 1763.193946 | J19: =+StockersNative!Price -> 250 | K19: =+StockersNative!Unit -> CWT | L19: =+IF($J19=0,0,F19/$J19) -> 7.052775783 | P19: =+StockersNative!VarRet -> 89.31605418 | T19: =+StockersNative!VarExp -> 1748.183946 | X19: =+StockersNative!Price -> 250 | Y19: =+StockersNative!Unit -> CWT | Z19: =+IF($J19=0,0,T19/$J19) -> 6.992735783
A20: =+StockerNovFeb!A3 -> November- February Stockers | B20: =+StockerNovFeb!TotRet -> -59.69965046 | F20: =+StockerNovFeb!TotExp -> 1823.47465 | J20: =+StockerNovFeb!Price -> 270 | K20: =+StockerNovFeb!Unit -> CWT | L20: =+IF($J20=0,0,F20/$J20) -> 6.753609817 | P20: =+StockerNovFeb!VarRet -> -37.7737576 | T20: =+StockerNovFeb!VarExp -> 1801.548758 | X20: =+StockerNovFeb!Price -> 270 | Y20: =+StockerNovFeb!Unit -> CWT | Z20: =+IF($J20=0,0,T20/$J20) -> 6.672402806
A21: =StockersNovMay!A3 -> November- May Stockers | B21: =StockersNovMay!TotRet -> -66.1563916 | F21: =StockersNovMay!TotExp -> 1990.806392 | J21: =StockersNovMay!Price -> 235 | K21: =StockersNovMay!Unit -> CWT | L21: =IF(J21=0,0,F21/J21) -> 8.47151656 | P21: =StockersNovMay!VarRet -> -44.23049874 | T21: =StockersNovMay!VarExp -> 1968.880499 | X21: =StockersNovMay!Price -> 235 | Y21: =StockersNovMay!Unit -> CWT | Z21: =IF(J21=0,0,T21/J21) -> 8.378214888

Sheet Your Returns - Cash Rent
A1: Your Returns - Cash Rent
B3: Quantity | C3: Returns Above Total Specified Expenses | F3: Total Direct Expenses | I3: Breakeven Yield to Cover Total Costs at Price Entered
B4: Acres, AUs, or Head | C4: Total Costs | D4: Variable Costs | F4: Total Costs | G4: Variable Costs | I4: Price | J4: Units | K4: Total Costs | L4: Variable Costs
A5: CROPS
A7: =+CoastalEstablish!A3 -> Coastal Bermudagrass Establishment | B7: =+CoastalEstablish!E7 -> 0 | C7: =+CoastalEstablish!YTotRet -> 0 | D7: =+CoastalEstablish!YVarRet -> 0 | F7: =+CoastalEstablish!YTotExp -> 0 | G7: =+CoastalEstablish!YVarExp -> 0 | I7: =+CoastalEstablish!YPrice -> 0 | J7: =+CoastalEstablish!Unit ->  | K7: =+IF($I7=0,0,F7/$I7) -> 0 | L7: 0
A8: =+CoastalHay!A3 -> Coastal Bermudagrass Hay | B8: =+CoastalHay!E7 -> 0 | C8: =+CoastalHay!YTotRet -> 0 | D8: =+CoastalHay!YVarRet -> 0 | F8: =+CoastalHay!YTotExp -> 0 | G8: =+CoastalHay!YVarExp -> 0 | I8: =+CoastalHay!YPrice -> 0 | J8: =+CoastalHay!Unit -> Bale | K8: 0 | L8: 0
A9: =+CoastalPasture!A3 -> Coastal Bermudagrass Pasture | B9: =+CoastalPasture!E7 -> 0 | C9: =+CoastalPasture!YTotRet -> 0 | D9: =+CoastalPasture!YVarRet -> 0 | F9: =+CoastalPasture!YTotExp -> 0 | G9: =+CoastalPasture!YVarExp -> 0 | I9: =+CoastalPasture!YPrice -> 0 | J9: =+CoastalPasture!Unit -> AUM | K9: 0 | L9: 0
A10: =+Soybeans!A3 -> Soybeans | B10: =+Soybeans!E7 -> 0 | C10: =+Soybeans!YTotRet -> 0 | D10: =+Soybeans!YVarRet -> 0 | F10: =+Soybeans!YTotExp -> 0 | G10: =+Soybeans!YVarExp -> 0 | I10: =+Soybeans!YPrice -> 0 | J10: =+Soybeans!Unit -> Bushel | K10: 0 | L10: 0
A11: =+SorghumHay!A3 -> Sorghum for Hay | B11: =+SorghumHay!E7 -> 0 | C11: =+SorghumHay!YTotRet -> 0 | D11: =+SorghumHay!YVarRet -> 0 | F11: =+SorghumHay!YTotExp -> 0 | G11: =+SorghumHay!YVarExp -> 0 | I11: =+SorghumHay!YPrice -> 0 | J11: =+SorghumHay!Unit -> Roll | K11: 0 | L11: 0
A12: =+Sorghum!A3 -> Sorghum (Nitrogen Fertilizer Only) | B12: =+Sorghum!E7 -> 0 | C12: =+Sorghum!YTotRet -> 0 | D12: =+Sorghum!YVarRet -> 0 | F12: =+Sorghum!YTotExp -> 0 | G12: =+Sorghum!YVarExp -> 0 | I12: =+Sorghum!YPrice -> 0 | J12: =+Sorghum!Unit -> CWT | K12: 0 | L12: 0
A13: =+Wheat!A3 -> Soft Wheat | B13: =+Wheat!E7 -> 0 | C13: =+Wheat!YTotRet -> 0 | D13: =+Wheat!YVarRet -> 0 | F13: =+Wheat!YTotExp -> 0 | G13: =+Wheat!YVarExp -> 0 | I13: =+Wheat!YPrice -> 0 | J13: =+Wheat!Unit -> Bushel | K13: 0 | L13: 0
A15: LIVESTOCK
A17: =+CowCalfImprove!A3 -> Cow-Calf Improved Pasture | B17: =+CowCalfImprove!E7 -> 0 | C17: =+CowCalfImprove!YTotRet -> 0 | D17: =+CowCalfImprove!YVarRet -> 0 | F17: =+CowCalfImprove!YTotExp -> 0 | G17: =+CowCalfImprove!YVarExp -> 0 | I17: =+CowCalfImprove!YPrice -> 0 | J17: =+CowCalfImprove!Unit -> CWT | K17: =+IF($I17=0,0,F17/$I17) -> 0 | L17: 0
A18: =CowCalfNative!A3 -> Cow-Calf Native Pasture | B18: =CowCalfNative!E7 -> 0 | C18: =CowCalfNative!YTotRet -> 0 | D18: =CowCalfNative!YVarRet -> 0 | F18: =CowCalfNative!YTotExp -> 0 | G18: =CowCalfNative!YVarExp -> 0 | I18: =CowCalfNative!YPrice -> 0 | J18: =CowCalfNative!Unit -> CWT | K18: =IF(I18=0,0,F18/I18) -> 0 | L18: =IF(I18=0,0,G18/I18) -> 0
A19: =+StockersNative!A3 -> Stockers on Native Pasture | B19: =+StockersNative!E7 -> 0 | C19: =+StockersNative!YTotRet -> 0 | D19: =+StockersNative!YVarRet -> 0 | F19: =+StockersNative!YTotExp -> 0 | G19: =+StockersNative!YVarExp -> 0 | I19: =+StockersNative!YPrice -> 0 | J19: =+StockersNative!Unit -> CWT | K19: 0 | L19: 0
A20: =+StockerNovFeb!A3 -> November- February Stockers | B20: =+StockerNovFeb!E7 -> 0 | C20: =+StockerNovFeb!YTotRet -> 0 | D20: =+StockerNovFeb!YVarRet -> 0 | F20: =+StockerNovFeb!YTotExp -> 0 | G20: =+StockerNovFeb!YVarExp -> 0 | I20: =+StockerNovFeb!YPrice -> 0 | J20: =+StockerNovFeb!Unit -> CWT | K20: =+IF($I20=0,0,F20/$I20) -> 0 | L20: =+IF($I20=0,0,G20/$I20) -> 0
A21: =StockersNovMay!A3 -> November- May Stockers | B21: =StockersNovMay!E7 -> 0 | C21: =StockersNovMay!YTotRet -> 0 | D21: =StockersNovMay!YVarRet -> 0 | F21: =StockersNovMay!YTotExp -> 0 | G21: =StockersNovMay!YVarExp -> 0 | I21: =StockersNovMay!YPrice -> 0 | J21: =StockersNovMay!Unit -> CWT | K21: =IF(I21=0,0,F21/I21) -> 0 | L21: =IF(I21=0,0,G21/I21) -> 0
A23: OTHER BUDGETS
A25: =+'Livestock Budget'!A3 -> Livestock Budget | B25: =+'Livestock Budget'!D5 -> 0 | C25: =+'Livestock Budget'!YTotRet -> 0 | D25: =+'Livestock Budget'!YVarRet -> 0 | F25: =+'Livestock Budget'!YTotExp -> 0 | G25: =+'Livestock Budget'!YVarExp -> 0 | I25: =+'Livestock Budget'!YPrice -> 0 | J25: =+'Livestock Budget'!Unit -> CWT | K25: =+IF($I25=0,0,F25/$I25) -> 0 | L25: =+IF($I25=0,0,G25/$I25) -> 0
A26: =+'Crop Budget'!A3 -> Crop Enterprise | B26: =+'Crop Budget'!D5 -> 0 | C26: =+'Crop Budget'!YTotRet -> 0 | D26: =+'Crop Budget'!YVarRet -> 0 | F26: =+'Crop Budget'!YTotExp -> 0 | G26: =+'Crop Budget'!YVarExp -> 0 | I26: =+'Crop Budget'!YPrice -> 0 | J26: =+'Crop Budget'!Unit -> Cwt,lb,etc | K26: =+IF($I26=0,0,F26/$I26) -> 0 | L26: =+IF($I26=0,0,G26/$I26) -> 0

Sheet Your Returns-Share Rent
A1: Your Returns - Share Rent
A3: Variable Costs to the right of Total Costs | B3: Quantity | C3: Returns Above Total Specified Expenses | G3: Total Direct Expenses | K3: Breakeven Yield to Cover Total Costs at Price Entered | Q3: Returns Above Variable Specified Expenses | U3: Variable Direct Expenses | Y3: Breakeven Yield to Cover Variavle Costs at Price Entered
B4: Acres, AUs, or Head | C4: Total | D4: Tenant | E4: Landlord | G4: Total | H4: Tenant | I4: Landlord | K4: Price | L4: Units | M4: Total | N4: Tenant | O4: Landlord | Q4: Total | R4: Tenant | S4: Landlord | U4: Total | V4: Tenant | W4: Landlord | Y4: Price | Z4: Units | AA4: Total | AB4: Tenant | AC4: Landlord
A5: CROPS
A7: =+CoastalEstablish!A3 -> Coastal Bermudagrass Establishment | B7: =+CoastalEstablish!E7 -> 0 | C7: =+CoastalEstablish!YTotRet -> 0 | D7: =+CoastalEstablish!YTTotRet -> 0 | E7: =+CoastalEstablish!YLTotRet -> 0 | G7: =+CoastalEstablish!YTotExp -> 0 | H7: =+CoastalEstablish!YTTotExp -> 0 | I7: =+CoastalEstablish!YLTotExp -> 0 | K7: =+CoastalEstablish!YPrice -> 0 | L7: =+CoastalEstablish!Unit ->  | M7: =+IF($K7=0,0,G7/$K7) -> 0 | N7: =+IF($K7=0,0,H7/$K7) -> 0 | O7: =+IF($K7=0,0,I7/$K7) -> 0 | Q7: =+CoastalEstablish!YVarRet -> 0 | R7: =+CoastalEstablish!YTVarRet -> 0 | S7: =+CoastalEstablish!YLVarRet -> 0 | U7: =+CoastalEstablish!YVarExp -> 0 | V7: =+CoastalEstablish!YTVarExp -> 0 | W7: =+CoastalEstablish!YLVarExp -> 0 | Y7: =+CoastalEstablish!YPrice -> 0 | Z7: =+CoastalEstablish!Unit ->  | AA7: =+IF($K7=0,0,U7/$K7) -> 0 | AB7: 0 | AC7: 0
A8: =+CoastalHay!A3 -> Coastal Bermudagrass Hay | B8: =+CoastalHay!E7 -> 0 | C8: =+CoastalHay!YTotRet -> 0 | D8: =+CoastalHay!YTTotRet -> 0 | E8: =+CoastalHay!YLTotRet -> 0 | G8: =+CoastalHay!YTotExp -> 0 | H8: =+CoastalHay!YTTotExp -> 0 | I8: =+CoastalHay!YLTotExp -> 0 | K8: =+CoastalHay!YPrice -> 0 | L8: =+CoastalHay!Unit -> Bale | M8: =+IF($K8=0,0,G8/$K8) -> 0 | N8: =+IF($K8=0,0,H8/$K8) -> 0 | O8: =+IF($K8=0,0,I8/$K8) -> 0 | Q8: =+CoastalHay!YVarRet -> 0 | R8: =+CoastalHay!YTVarRet -> 0 | S8: =+CoastalHay!YLVarRet -> 0 | U8: =+CoastalHay!YVarExp -> 0 | V8: =+CoastalHay!YTVarExp -> 0 | W8: =+CoastalHay!YLVarExp -> 0 | Y8: =+CoastalHay!YPrice -> 0 | Z8: =+CoastalHay!Unit -> Bale | AA8: =+IF($K8=0,0,U8/$K8) -> 0 | AB8: =+IF($K8=0,0,V8/$K8) -> 0 | AC8: =+IF($K8=0,0,W8/$K8) -> 0
A9: =+CoastalPasture!A3 -> Coastal Bermudagrass Pasture | B9: =+CoastalPasture!E7 -> 0 | C9: =+CoastalPasture!YTotRet -> 0 | D9: =+CoastalPasture!YTTotRet -> 0 | E9: =+CoastalPasture!YLTotRet -> 0 | G9: =+CoastalPasture!YTotExp -> 0 | H9: =+CoastalPasture!YTTotExp -> 0 | I9: =+CoastalPasture!YLTotExp -> 0 | K9: =+CoastalPasture!YPrice -> 0 | L9: =+CoastalPasture!Unit -> AUM | M9: =+IF($K9=0,0,G9/$K9) -> 0 | N9: 0 | O9: 0 | Q9: =+CoastalPasture!YVarRet -> 0 | R9: =+CoastalPasture!YTVarRet -> 0 | S9: =+CoastalPasture!YLVarRet -> 0 | U9: =+CoastalPasture!YVarExp -> 0 | V9: =+CoastalPasture!YTVarExp -> 0 | W9: =+CoastalPasture!YLVarExp -> 0 | Y9: =+CoastalPasture!YPrice -> 0 | Z9: =+CoastalPasture!Unit -> AUM | AA9: =+IF($K9=0,0,U9/$K9) -> 0 | AB9: 0 | AC9: 0
A10: =+Soybeans!A3 -> Soybeans | B10: =+Soybeans!E7 -> 0 | C10: =+Soybeans!YTotRet -> 0 | D10: =+Soybeans!YTTotRet -> 0 | E10: =+Soybeans!YLTotRet -> 0 | G10: =+Soybeans!YTotExp -> 0 | H10: =+Soybeans!YTTotExp -> 0 | I10: =+Soybeans!YLTotExp -> 0 | K10: =+Soybeans!YPrice -> 0 | L10: =+Soybeans!Unit -> Bushel | M10: 0 | N10: 0 | O10: 0 | Q10: =+Soybeans!YVarRet -> 0 | R10: =+Soybeans!YTVarRet -> 0 | S10: =+Soybeans!YLVarRet -> 0 | U10: =+Soybeans!YVarExp -> 0 | V10: =+Soybeans!YTVarExp -> 0 | W10: =+Soybeans!YLVarExp -> 0 | Y10: =+Soybeans!YPrice -> 0 | Z10: =+Soybeans!Unit -> Bushel | AA10: 0 | AB10: 0 | AC10: 0
A11: =+SorghumHay!A3 -> Sorghum for Hay | B11: =+SorghumHay!E7 -> 0 | C11: =+SorghumHay!YTotRet -> 0 | D11: =+SorghumHay!YTTotRet -> 0 | E11: =+SorghumHay!YLTotRet -> 0 | G11: =+SorghumHay!YTotExp -> 0 | H11: =+SorghumHay!YTTotExp -> 0 | I11: =+SorghumHay!YLTotExp -> 0 | K11: =+SorghumHay!YPrice -> 0 | L11: =+SorghumHay!Unit -> Roll | M11: 0 | N11: 0 | O11: 0 | Q11: =+SorghumHay!YVarRet -> 0 | R11: =+SorghumHay!YTVarRet -> 0 | S11: =+SorghumHay!YLVarRet -> 0 | U11: =+SorghumHay!YVarExp -> 0 | V11: =+SorghumHay!YTVarExp -> 0 | W11: =+SorghumHay!YLVarExp -> 0 | Y11: =+SorghumHay!YPrice -> 0 | Z11: =+SorghumHay!Unit -> Roll | AA11: 0 | AB11: 0 | AC11: 0
A12: =+Sorghum!A3 -> Sorghum (Nitrogen Fertilizer Only) | B12: =+Sorghum!E7 -> 0 | C12: =+Sorghum!YTotRet -> 0 | D12: =+Sorghum!YTTotRet -> 0 | E12: =+Sorghum!YLTotRet -> 0 | G12: =+Sorghum!YTotExp -> 0 | H12: =+Sorghum!YTTotExp -> 0 | I12: =+Sorghum!YLTotExp -> 0 | K12: =+Sorghum!YPrice -> 0 | L12: =+Sorghum!Unit -> CWT | M12: 0 | N12: 0 | O12: 0 | Q12: =+Sorghum!YVarRet -> 0 | R12: =+Sorghum!YTVarRet -> 0 | S12: =+Sorghum!YLVarRet -> 0 | U12: =+Sorghum!YVarExp -> 0 | V12: =+Sorghum!YTVarExp -> 0 | W12: =+Sorghum!YLVarExp -> 0 | Y12: =+Sorghum!YPrice -> 0 | Z12: =+Sorghum!Unit -> CWT | AA12: 0 | AB12: 0 | AC12: 0
A13: =+Wheat!A3 -> Soft Wheat | B13: =+Wheat!E7 -> 0 | C13: =+Wheat!YTotRet -> 0 | D13: =+Wheat!YTTotRet -> 0 | E13: =+Wheat!YLTotRet -> 0 | G13: =+Wheat!YTotExp -> 0 | H13: =+Wheat!YTTotExp -> 0 | I13: =+Wheat!YLTotExp -> 0 | K13: =+Wheat!YPrice -> 0 | L13: =+Wheat!Unit -> Bushel | M13: 0 | N13: 0 | O13: 0 | Q13: =+Wheat!YVarRet -> 0 | R13: =+Wheat!YTVarRet -> 0 | S13: =+Wheat!YLVarRet -> 0 | U13: =+Wheat!YVarExp -> 0 | V13: =+Wheat!YTVarExp -> 0 | W13: =+Wheat!YLVarExp -> 0 | Y13: =+Wheat!YPrice -> 0 | Z13: =+Wheat!Unit -> Bushel | AA13: 0 | AB13: 0 | AC13: 0
A15: LIVESTOCK
A17: =+CowCalfImprove!A3 -> Cow-Calf Improved Pasture | B17: =+CowCalfImprove!E7 -> 0 | C17: =+CowCalfImprove!YTotRet -> 0 | G17: =+CowCalfImprove!YTotExp -> 0 | K17: =+CowCalfImprove!YPrice -> 0 | L17: =+CowCalfImprove!Unit -> CWT | M17: =+IF($K17=0,0,G17/$K17) -> 0 | Q17: =+CowCalfImprove!YVarRet -> 0 | U17: =+CowCalfImprove!YVarExp -> 0 | Y17: =+CowCalfImprove!YPrice -> 0 | Z17: =+CowCalfImprove!Unit -> CWT | AA17: =+IF($K17=0,0,U17/$K17) -> 0
A18: =CowCalfNative!A3 -> Cow-Calf Native Pasture | B18: =CowCalfNative!E7 -> 0 | C18: =CowCalfNative!YTotRet -> 0 | G18: =CowCalfNative!YTotExp -> 0 | K18: =CowCalfNative!YPrice -> 0 | L18: =CowCalfNative!Unit -> CWT | M18: =IF(K18=0,0,G18/K18) -> 0 | Q18: =CowCalfNative!YVarRet -> 0 | U18: =CowCalfNative!YVarExp -> 0 | Y18: =CowCalfNative!YPrice -> 0 | Z18: =CowCalfNative!Unit -> CWT | AA18: =IF(K18=0,0,U18/K18) -> 0
A19: =+StockersNative!A3 -> Stockers on Native Pasture | B19: =+StockersNative!E7 -> 0 | C19: =+StockersNative!YTotRet -> 0 | G19: =+StockersNative!YTotExp -> 0 | K19: =+StockersNative!YPrice -> 0 | L19: =+StockersNative!Unit -> CWT | M19: =+IF($K19=0,0,G19/$K19) -> 0 | Q19: =+StockersNative!YVarRet -> 0 | U19: =+StockersNative!YVarExp -> 0 | Y19: =+StockersNative!YPrice -> 0 | Z19: =+StockersNative!Unit -> CWT | AA19: 0
A20: =+StockerNovFeb!A3 -> November- February Stockers | B20: =+StockerNovFeb!E7 -> 0 | C20: =+StockerNovFeb!YTotRet -> 0 | G20: =+StockerNovFeb!YTotExp -> 0 | K20: =+StockerNovFeb!YPrice -> 0 | L20: =+StockerNovFeb!Unit -> CWT | M20: =+IF($K20=0,0,G20/$K20) -> 0 | Q20: =+StockerNovFeb!YVarRet -> 0 | U20: =+StockerNovFeb!YVarExp -> 0 | Y20: =+StockerNovFeb!YPrice -> 0 | Z20: =+StockerNovFeb!Unit -> CWT | AA20: 0
A21: =StockersNovMay!A3 -> November- May Stockers | B21: =StockersNovMay!E7 -> 0 | C21: =StockersNovMay!YTotRet -> 0 | G21: =StockersNovMay!YTotExp -> 0 | K21: =StockersNovMay!YPrice -> 0 | L21: =StockersNovMay!Unit -> CWT | M21: =IF(K21=0,0,G21/K21) -> 0 | Q21: =StockersNovMay!YVarRet -> 0 | U21: =StockersNovMay!YVarExp -> 0 | Y21: =StockersNovMay!YPrice -> 0 | Z21: =StockersNovMay!Unit -> CWT | AA21: =IF(K21=0,0,U21/K21) -> 0
O32: =+IF(#REF!=0,0,#REF!/#REF!) -> 
O36: =+IF($K17=0,0,I17/$K17) -> 0
O37: =+IF($K19=0,0,I19/$K19) -> 0
O38: =+IF($K20=0,0,I20/$K20) -> 0
